Workbook

Sheet ようこそ
B2: 黄色セル部分をプルダウンより選択してください。
B3: 属性選択 | F3: 傾斜配点
B4: 到着駅 | C4: 東京駅 | D4: =IF(C4="東京駅",2,3) -> 2 | F4: 所要時間 | G4: ±0% | H4: =VLOOKUP($G4,配点根拠!$AB$3:$AC$23,2,0) -> 1
B5: 部屋タイプ | C5: 1K | D5: =IF(C5="1K",5,6) -> 5 | F5: 通勤の快適性 | G5: ±0% | H5: =VLOOKUP($G5,配点根拠!$AB$3:$AC$23,2,0) -> 1
F6: 家賃相場 | G6: ±0% | H6: =VLOOKUP($G6,配点根拠!$AB$3:$AC$23,2,0) -> 1
F7: 商業施設充実度 | G7: ±0% | H7: =VLOOKUP($G7,配点根拠!$AB$3:$AC$23,2,0) -> 1

Sheet ランキング
E1: 1 | F1: 2 | G1: 3 | H1: 4 | I1: 5 | J1: 6 | K1: 7 | L1: 8 | M1: 9 | N1: 10 | O1: 11 | P1: 12 | Q1: 12
F2: 所要時間点数 | I2: 家賃点数
A3: 0 | B3: 道路名 | C3: IC名 | D3: 鉄道路線 | E3: 駅名 | F3: 東京 | G3: 新宿 | H3: 快適性点数 | I3: 1K | J3: 2LDK | K3: 商業施設 | L3: 所要時間 | M3: 快適性 | N3: 家賃 | O3: 商業施設 | P3: 総合点 | Q3: 総合点（百点換算）
A4: =A3+1 -> 1 | B4: 東京湾アクアライン | C4: 木更津金田 | D4: 高速バス | E4: 木更津金田BT | F4: 32.7 | G4: 6.6 | H4: 100 | I4: 99 | J4: 100 | K4: 100 | L4: =VLOOKUP($E4,$E:$K,ようこそ!$D$4,0) -> 32.7 | M4: =VLOOKUP($E4,$E:$K,ランキング!$H$1,0) -> 100 | N4: =VLOOKUP($E4,$E:$K,ようこそ!$D$5,0) -> 99 | O4: =VLOOKUP($E4,$E:$K,ランキング!$K$1,0) -> 100 | P4: =VLOOKUP($E4,$E:$K,ようこそ!$D$4,0)*ようこそ!$H$4+VLOOKUP($E4,$E:$K,ランキング!$H$1,0)*ようこそ!$H$5+VLOOKUP($E4,$E:$K,ようこそ!$D$5,0)*ようこそ!$H$6+VLOOKUP($E4,$E:$K,ランキング!$K$1,0)*ようこそ!$H$7 -> 331.7 | Q4: =_xlfn.PERCENTRANK.INC($P$4:$P$96,P4)*100 -> 100
A5: =A4+1 -> 2 | B5: 外環道 | C5: 外環浦和 | D5: JR京浜東北線 | E5: 南浦和 | F5: 46.8 | G5: 68.5 | H5: 92.4 | I5: 89.2 | J5: 66.4 | K5: 80 | L5: =VLOOKUP($E5,$E:$K,ようこそ!$D$4,0) -> 46.8 | M5: =VLOOKUP($E5,$E:$K,ランキング!$H$1,0) -> 92.4 | N5: =VLOOKUP($E5,$E:$K,ようこそ!$D$5,0) -> 89.2 | O5: =VLOOKUP($E5,$E:$K,ランキング!$K$1,0) -> 80 | P5: =VLOOKUP($E5,$E:$K,ようこそ!$D$4,0)*ようこそ!$H$4+VLOOKUP($E5,$E:$K,ランキング!$H$1,0)*ようこそ!$H$5+VLOOKUP($E5,$E:$K,ようこそ!$D$5,0)*ようこそ!$H$6+VLOOKUP($E5,$E:$K,ランキング!$K$1,0)*ようこそ!$H$7 -> 308.4 | Q5: =_xlfn.PERCENTRANK.INC($P$4:$P$96,P5)*100 -> 98.9
A6: =A5+1 -> 3 | B6: 外環道 | C6: 松戸 | D6: 北総線 | E6: 北国分 | F6: 40.3 | G6: 13.1 | H6: 84.8 | I6: 96.8 | J6: 87 | K6: 80 | L6: =VLOOKUP($E6,$E:$K,ようこそ!$D$4,0) -> 40.3 | M6: =VLOOKUP($E6,$E:$K,ランキング!$H$1,0) -> 84.8 | N6: =VLOOKUP($E6,$E:$K,ようこそ!$D$5,0) -> 96.8 | O6: =VLOOKUP($E6,$E:$K,ランキング!$K$1,0) -> 80 | P6: =VLOOKUP($E6,$E:$K,ようこそ!$D$4,0)*ようこそ!$H$4+VLOOKUP($E6,$E:$K,ランキング!$H$1,0)*ようこそ!$H$5+VLOOKUP($E6,$E:$K,ようこそ!$D$5,0)*ようこそ!$H$6+VLOOKUP($E6,$E:$K,ランキング!$K$1,0)*ようこそ!$H$7 -> 301.9 | Q6: =_xlfn.PERCENTRANK.INC($P$4:$P$96,P6)*100 -> 97.8
A7: =A6+1 -> 4 | B7: 東関東自動車道 | C7: 湾岸千葉IC | D7: JR京葉線 | E7: 海浜幕張 | F7: 37 | G7: 1.1 | H7: 92.4 | I7: 71.8 | J7: 71.8 | K7: 100 | L7: =VLOOKUP($E7,$E:$K,ようこそ!$D$4,0) -> 37 | M7: =VLOOKUP($E7,$E:$K,ランキング!$H$1,0) -> 92.4 | N7: =VLOOKUP($E7,$E:$K,ようこそ!$D$5,0) -> 71.8 | O7: =VLOOKUP($E7,$E:$K,ランキング!$K$1,0) -> 100 | P7: =VLOOKUP($E7,$E:$K,ようこそ!$D$4,0)*ようこそ!$H$4+VLOOKUP($E7,$E:$K,ランキング!$H$1,0)*ようこそ!$H$5+VLOOKUP($E7,$E:$K,ようこそ!$D$5,0)*ようこそ!$H$6+VLOOKUP($E7,$E:$K,ランキング!$K$1,0)*ようこそ!$H$7 -> 301.2 | Q7: =_xlfn.PERCENTRANK.INC($P$4:$P$96,P7)*100 -> 96.7
A8: =A7+1 -> 5 | B8: 首都高6号三郷線 | C8: 八潮 | D8: つくばエクスプレス | E8: 八潮 | F8: 53.3 | G8: 31.6 | H8: 92.4 | I8: 42.4 | J8: 62 | K8: 100 | L8: =VLOOKUP($E8,$E:$K,ようこそ!$D$4,0) -> 53.3 | M8: =VLOOKUP($E8,$E:$K,ランキング!$H$1,0) -> 92.4 | N8: =VLOOKUP($E8,$E:$K,ようこそ!$D$5,0) -> 42.4 | O8: =VLOOKUP($E8,$E:$K,ランキング!$K$1,0) -> 100 | P8: =VLOOKUP($E8,$E:$K,ようこそ!$D$4,0)*ようこそ!$H$4+VLOOKUP($E8,$E:$K,ランキング!$H$1,0)*ようこそ!$H$5+VLOOKUP($E8,$E:$K,ようこそ!$D$5,0)*ようこそ!$H$6+VLOOKUP($E8,$E:$K,ランキング!$K$1,0)*ようこそ!$H$7 -> 288.1 | Q8: =_xlfn.PERCENTRANK.INC($P$4:$P$96,P8)*100 -> 95.6
A9: =A8+1 -> 6 | B9: 東関東自動車道 | C9: 谷津船橋IC | D9: JR京葉線 | E9: 南船橋 | F9: 55.5 | G9: 9.8 | H9: 42.4 | I9: 88.1 | J9: 80.5 | K9: 100 | L9: =VLOOKUP($E9,$E:$K,ようこそ!$D$4,0) -> 55.5 | M9: =VLOOKUP($E9,$E:$K,ランキング!$H$1,0) -> 42.4 | N9: =VLOOKUP($E9,$E:$K,ようこそ!$D$5,0) -> 88.1 | O9: =VLOOKUP($E9,$E:$K,ランキング!$K$1,0) -> 100 | P9: =VLOOKUP($E9,$E:$K,ようこそ!$D$4,0)*ようこそ!$H$4+VLOOKUP($E9,$E:$K,ランキング!$H$1,0)*ようこそ!$H$5+VLOOKUP($E9,$E:$K,ようこそ!$D$5,0)*ようこそ!$H$6+VLOOKUP($E9,$E:$K,ランキング!$K$1,0)*ようこそ!$H$7 -> 286 | Q9: =_xlfn.PERCENTRANK.INC($P$4:$P$96,P9)*100 -> 94.5
A10: =A9+1 -> 7 | B10: 首都高6号向島線 | C10: 駒形 | D10: 都営浅草線 | E10: 本所吾妻橋 | F10: 96.8 | G10: 72.9 | H10: 74 | I10: 10.9 | J10: 18.5 | K10: 100 | L10: =VLOOKUP($E10,$E:$K,ようこそ!$D$4,0) -> 96.8 | M10: =VLOOKUP($E10,$E:$K,ランキング!$H$1,0) -> 74 | N10: =VLOOKUP($E10,$E:$K,ようこそ!$D$5,0) -> 10.9 | O10: =VLOOKUP($E10,$E:$K,ランキング!$K$1,0) -> 100 | P10: =VLOOKUP($E10,$E:$K,ようこそ!$D$4,0)*ようこそ!$H$4+VLOOKUP($E10,$E:$K,ランキング!$H$1,0)*ようこそ!$H$5+VLOOKUP($E10,$E:$K,ようこそ!$D$5,0)*ようこそ!$H$6+VLOOKUP($E10,$E:$K,ランキング!$K$1,0)*ようこそ!$H$7 -> 281.7 | Q10: =_xlfn.PERCENTRANK.INC($P$4:$P$96,P10)*100 -> 93.4
A11: =A10+1 -> 8 | B11: 京葉道路 | C11: 花輪 | D11: 京成本線 | E11: 船橋競馬場 | F11: 26.1 | G11: 9.8 | H11: 76.1 | I11: 79.4 | J11: 75 | K11: 100 | L11: =VLOOKUP($E11,$E:$K,ようこそ!$D$4,0) -> 26.1 | M11: =VLOOKUP($E11,$E:$K,ランキング!$H$1,0) -> 76.1 | N11: =VLOOKUP($E11,$E:$K,ようこそ!$D$5,0) -> 79.4 | O11: =VLOOKUP($E11,$E:$K,ランキング!$K$1,0) -> 100 | P11: =VLOOKUP($E11,$E:$K,ようこそ!$D$4,0)*ようこそ!$H$4+VLOOKUP($E11,$E:$K,ランキング!$H$1,0)*ようこそ!$H$5+VLOOKUP($E11,$E:$K,ようこそ!$D$5,0)*ようこそ!$H$6+VLOOKUP($E11,$E:$K,ランキング!$K$1,0)*ようこそ!$H$7 -> 281.6 | Q11: =_xlfn.PERCENTRANK.INC($P$4:$P$96,P11)*100 -> 92.3
A12: =A11+1 -> 9 | B12: 常磐自動車道 | C12: 谷和原 | D12: つくばエクスプレス | E12: 守谷 | F12: 7.7 | G12: 0 | H12: 92.4 | I12: 74 | J12: 92.4 | K12: 100 | L12: =VLOOKUP($E12,$E:$K,ようこそ!$D$4,0) -> 7.7 | M12: =VLOOKUP($E12,$E:$K,ランキング!$H$1,0) -> 92.4 | N12: =VLOOKUP($E12,$E:$K,ようこそ!$D$5,0) -> 74 | O12: =VLOOKUP($E12,$E:$K,ランキング!$K$1,0) -> 100 | P12: =VLOOKUP($E12,$E:$K,ようこそ!$D$4,0)*ようこそ!$H$4+VLOOKUP($E12,$E:$K,ランキング!$H$1,0)*ようこそ!$H$5+VLOOKUP($E12,$E:$K,ようこそ!$D$5,0)*ようこそ!$H$6+VLOOKUP($E12,$E:$K,ランキング!$K$1,0)*ようこそ!$H$7 -> 274.1 | Q12: =_xlfn.PERCENTRANK.INC($P$4:$P$96,P12)*100 -> 91.3
A13: =A12+1 -> 10 | B13: 東北自動車道 | C13: 浦和 | D13: 埼玉高速鉄道 | E13: 浦和美園 | F13: 6.6 | G13: 21.8 | H13: 100 | I13: 67.4 | J13: 91.4 | K13: 100 | L13: =VLOOKUP($E13,$E:$K,ようこそ!$D$4,0) -> 6.6 | M13: =VLOOKUP($E13,$E:$K,ランキング!$H$1,0) -> 100 | N13: =VLOOKUP($E13,$E:$K,ようこそ!$D$5,0) -> 67.4 | O13: =VLOOKUP($E13,$E:$K,ランキング!$K$1,0) -> 100 | P13: =VLOOKUP($E13,$E:$K,ようこそ!$D$4,0)*ようこそ!$H$4+VLOOKUP($E13,$E:$K,ランキング!$H$1,0)*ようこそ!$H$5+VLOOKUP($E13,$E:$K,ようこそ!$D$5,0)*ようこそ!$H$6+VLOOKUP($E13,$E:$K,ランキング!$K$1,0)*ようこそ!$H$7 -> 274 | Q13: =_xlfn.PERCENTRANK.INC($P$4:$P$96,P13)*100 -> 89.1
A14: =A13+1 -> 11 | B14: 外環道 | C14: 松戸 | D14: 北総線 | E14: 矢切 | F14: 44.6 | G14: 20.7 | H14: 84.8 | I14: 94.6 | J14: 95.7 | K14: 50 | L14: =VLOOKUP($E14,$E:$K,ようこそ!$D$4,0) -> 44.6 | M14: =VLOOKUP($E14,$E:$K,ランキング!$H$1,0) -> 84.8 | N14: =VLOOKUP($E14,$E:$K,ようこそ!$D$5,0) -> 94.6 | O14: =VLOOKUP($E14,$E:$K,ランキング!$K$1,0) -> 50 | P14: =VLOOKUP($E14,$E:$K,ようこそ!$D$4,0)*ようこそ!$H$4+VLOOKUP($E14,$E:$K,ランキング!$H$1,0)*ようこそ!$H$5+VLOOKUP($E14,$E:$K,ようこそ!$D$5,0)*ようこそ!$H$6+VLOOKUP($E14,$E:$K,ランキング!$K$1,0)*ようこそ!$H$7 -> 274 | Q14: =_xlfn.PERCENTRANK.INC($P$4:$P$96,P14)*100 -> 89.1
A15: =A14+1 -> 12 | B15: 京葉道路 | C15: 京葉市川 | D15: 都営新宿線 | E15: 本八幡 | F15: 39.2 | G15: 50 | H15: 100 | I15: 52.2 | J15: 57.7 | K15: 80 | L15: =VLOOKUP($E15,$E:$K,ようこそ!$D$4,0) -> 39.2 | M15: =VLOOKUP($E15,$E:$K,ランキング!$H$1,0) -> 100 | N15: =VLOOKUP($E15,$E:$K,ようこそ!$D$5,0) -> 52.2 | O15: =VLOOKUP($E15,$E:$K,ランキング!$K$1,0) -> 80 | P15: =VLOOKUP($E15,$E:$K,ようこそ!$D$4,0)*ようこそ!$H$4+VLOOKUP($E15,$E:$K,ランキング!$H$1,0)*ようこそ!$H$5+VLOOKUP($E15,$E:$K,ようこそ!$D$5,0)*ようこそ!$H$6+VLOOKUP($E15,$E:$K,ランキング!$K$1,0)*ようこそ!$H$7 -> 271.4 | Q15: =_xlfn.PERCENTRANK.INC($P$4:$P$96,P15)*100 -> 88
A16: =A15+1 -> 13 | B16: 外環道 | C16: 三郷南 | D16: JR常磐線 | E16: 松戸 | F16: 64.2 | G16: 49 | H16: 59.8 | I16: 65.3 | J16: 68.5 | K16: 80 | L16: =VLOOKUP($E16,$E:$K,ようこそ!$D$4,0) -> 64.2 | M16: =VLOOKUP($E16,$E:$K,ランキング!$H$1,0) -> 59.8 | N16: =VLOOKUP($E16,$E:$K,ようこそ!$D$5,0) -> 65.3 | O16: =VLOOKUP($E16,$E:$K,ランキング!$K$1,0) -> 80 | P16: =VLOOKUP($E16,$E:$K,ようこそ!$D$4,0)*ようこそ!$H$4+VLOOKUP($E16,$E:$K,ランキング!$H$1,0)*ようこそ!$H$5+VLOOKUP($E16,$E:$K,ようこそ!$D$5,0)*ようこそ!$H$6+VLOOKUP($E16,$E:$K,ランキング!$K$1,0)*ようこそ!$H$7 -> 269.3 | Q16: =_xlfn.PERCENTRANK.INC($P$4:$P$96,P16)*100 -> 86.9
A17: =A16+1 -> 14 | B17: 外環道 | C17: 草加 | D17: 東武スカイツリーライン | E17: 獨協大学前 | F17: 27.2 | G17: 18.5 | H17: 63.1 | I17: 97.9 | J17: 90.3 | K17: 80 | L17: =VLOOKUP($E17,$E:$K,ようこそ!$D$4,0) -> 27.2 | M17: =VLOOKUP($E17,$E:$K,ランキング!$H$1,0) -> 63.1 | N17: =VLOOKUP($E17,$E:$K,ようこそ!$D$5,0) -> 97.9 | O17: =VLOOKUP($E17,$E:$K,ランキング!$K$1,0) -> 80 | P17: =VLOOKUP($E17,$E:$K,ようこそ!$D$4,0)*ようこそ!$H$4+VLOOKUP($E17,$E:$K,ランキング!$H$1,0)*ようこそ!$H$5+VLOOKUP($E17,$E:$K,ようこそ!$D$5,0)*ようこそ!$H$6+VLOOKUP($E17,$E:$K,ランキング!$K$1,0)*ようこそ!$H$7 -> 268.2 | Q17: =_xlfn.PERCENTRANK.INC($P$4:$P$96,P17)*100 -> 85.8
A18: =A17+1 -> 15 | B18: 外環道 | C18: 和光 | D18: メトロ有楽町線 | E18: 和光市 | F18: 37 | G18: 81.6 | H18: 92.4 | I18: 56.6 | J18: 44.6 | K18: 80 | L18: =VLOOKUP($E18,$E:$K,ようこそ!$D$4,0) -> 37 | M18: =VLOOKUP($E18,$E:$K,ランキング!$H$1,0) -> 92.4 | N18: =VLOOKUP($E18,$E:$K,ようこそ!$D$5,0) -> 56.6 | O18: =VLOOKUP($E18,$E:$K,ランキング!$K$1,0) -> 80 | P18: =VLOOKUP($E18,$E:$K,ようこそ!$D$4,0)*ようこそ!$H$4+VLOOKUP($E18,$E:$K,ランキング!$H$1,0)*ようこそ!$H$5+VLOOKUP($E18,$E:$K,ようこそ!$D$5,0)*ようこそ!$H$6+VLOOKUP($E18,$E:$K,ランキング!$K$1,0)*ようこそ!$H$7 -> 266 | Q18: =_xlfn.PERCENTRANK.INC($P$4:$P$96,P18)*100 -> 84.7
A19: =A18+1 -> 16 | B19: 首都高中央環状線 | C19: 千住新橋 | D19: JR常磐線 | E19: 北千住 | F19: 82.7 | G19: 71.8 | H19: 58.7 | I19: 22.9 | J19: 28.3 | K19: 100 | L19: =VLOOKUP($E19,$E:$K,ようこそ!$D$4,0) -> 82.7 | M19: =VLOOKUP($E19,$E:$K,ランキング!$H$1,0) -> 58.7 | N19: =VLOOKUP($E19,$E:$K,ようこそ!$D$5,0) -> 22.9 | O19: =VLOOKUP($E19,$E:$K,ランキング!$K$1,0) -> 100 | P19: =VLOOKUP($E19,$E:$K,ようこそ!$D$4,0)*ようこそ!$H$4+VLOOKUP($E19,$E:$K,ランキング!$H$1,0)*ようこそ!$H$5+VLOOKUP($E19,$E:$K,ようこそ!$D$5,0)*ようこそ!$H$6+VLOOKUP($E19,$E:$K,ランキング!$K$1,0)*ようこそ!$H$7 -> 264.3 | Q19: =_xlfn.PERCENTRANK.INC($P$4:$P$96,P19)*100 -> 83.6
A20: =A19+1 -> 17 | B20: 東北自動車道 | C20: 岩槻 | D20: 東武野田線 | E20: 岩槻 | F20: 2.2 | G20: 15.3 | H20: 79.4 | I20: 100 | J20: 99 | K20: 80 | L20: =VLOOKUP($E20,$E:$K,ようこそ!$D$4,0) -> 2.2 | M20: =VLOOKUP($E20,$E:$K,ランキング!$H$1,0) -> 79.4 | N20: =VLOOKUP($E20,$E:$K,ようこそ!$D$5,0) -> 100 | O20: =VLOOKUP($E20,$E:$K,ランキング!$K$1,0) -> 80 | P20: =VLOOKUP($E20,$E:$K,ようこそ!$D$4,0)*ようこそ!$H$4+VLOOKUP($E20,$E:$K,ランキング!$H$1,0)*ようこそ!$H$5+VLOOKUP($E20,$E:$K,ようこそ!$D$5,0)*ようこそ!$H$6+VLOOKUP($E20,$E:$K,ランキング!$K$1,0)*ようこそ!$H$7 -> 261.6 | Q20: =_xlfn.PERCENTRANK.INC($P$4:$P$96,P20)*100 -> 82.6
A21: =A20+1 -> 18 | B21: 京葉道路 | C21: 原木 | D21: メトロ東西線 | E21: 西船橋 | F21: 47.9 | G21: 45.7 | H21: 92.4 | I21: 38.1 | J21: 45.7 | K21: 80 | L21: =VLOOKUP($E21,$E:$K,ようこそ!$D$4,0) -> 47.9 | M21: =VLOOKUP($E21,$E:$K,ランキング!$H$1,0) -> 92.4 | N21: =VLOOKUP($E21,$E:$K,ようこそ!$D$5,0) -> 38.1 | O21: =VLOOKUP($E21,$E:$K,ランキング!$K$1,0) -> 80 | P21: =VLOOKUP($E21,$E:$K,ようこそ!$D$4,0)*ようこそ!$H$4+VLOOKUP($E21,$E:$K,ランキング!$H$1,0)*ようこそ!$H$5+VLOOKUP($E21,$E:$K,ようこそ!$D$5,0)*ようこそ!$H$6+VLOOKUP($E21,$E:$K,ランキング!$K$1,0)*ようこそ!$H$7 -> 258.4 | Q21: =_xlfn.PERCENTRANK.INC($P$4:$P$96,P21)*100 -> 81.5
A22: =A21+1 -> 19 | B22: 首都高中央環状線 | C22: 小菅 | D22: 京成本線 | E22: 堀切菖蒲園 | F22: 69.6 | G22: 44.6 | H22: 76.1 | I22: 62 | J22: 59.8 | K22: 50 | L22: =VLOOKUP($E22,$E:$K,ようこそ!$D$4,0) -> 69.6 | M22: =VLOOKUP($E22,$E:$K,ランキング!$H$1,0) -> 76.1 | N22: =VLOOKUP($E22,$E:$K,ようこそ!$D$5,0) -> 62 | O22: =VLOOKUP($E22,$E:$K,ランキング!$K$1,0) -> 50 | P22: =VLOOKUP($E22,$E:$K,ようこそ!$D$4,0)*ようこそ!$H$4+VLOOKUP($E22,$E:$K,ランキング!$H$1,0)*ようこそ!$H$5+VLOOKUP($E22,$E:$K,ようこそ!$D$5,0)*ようこそ!$H$6+VLOOKUP($E22,$E:$K,ランキング!$K$1,0)*ようこそ!$H$7 -> 257.7 | Q22: =_xlfn.PERCENTRANK.INC($P$4:$P$96,P22)*100 -> 80.4
A23: =A22+1 -> 20 | B23: 首都高S新都心線 | C23: 新都心 | D23: JR上野東京ライン | E23: さいたま新都心 | F23: 59.8 | G23: 68.5 | H23: 50 | I23: 44.6 | J23: 24 | K23: 100 | L23: =VLOOKUP($E23,$E:$K,ようこそ!$D$4,0) -> 59.8 | M23: =VLOOKUP($E23,$E:$K,ランキング!$H$1,0) -> 50 | N23: =VLOOKUP($E23,$E:$K,ようこそ!$D$5,0) -> 44.6 | O23: =VLOOKUP($E23,$E:$K,ランキング!$K$1,0) -> 100 | P23: =VLOOKUP($E23,$E:$K,ようこそ!$D$4,0)*ようこそ!$H$4+VLOOKUP($E23,$E:$K,ランキング!$H$1,0)*ようこそ!$H$5+VLOOKUP($E23,$E:$K,ようこそ!$D$5,0)*ようこそ!$H$6+VLOOKUP($E23,$E:$K,ランキング!$K$1,0)*ようこそ!$H$7 -> 254.4 | Q23: =_xlfn.PERCENTRANK.INC($P$4:$P$96,P23)*100 -> 79.3
A24: =A23+1 -> 21 | B24: 首都高中央環状線 | C24: 四つ木 | D24: 京成押上線 | E24: 四ツ木 | F24: 90.3 | G24: 52.2 | H24: 65.3 | I24: 47.9 | J24: 41.4 | K24: 50 | L24: =VLOOKUP($E24,$E:$K,ようこそ!$D$4,0) -> 90.3 | M24: =VLOOKUP($E24,$E:$K,ランキング!$H$1,0) -> 65.3 | N24: =VLOOKUP($E24,$E:$K,ようこそ!$D$5,0) -> 47.9 | O24: =VLOOKUP($E24,$E:$K,ランキング!$K$1,0) -> 50 | P24: =VLOOKUP($E24,$E:$K,ようこそ!$D$4,0)*ようこそ!$H$4+VLOOKUP($E24,$E:$K,ランキング!$H$1,0)*ようこそ!$H$5+VLOOKUP($E24,$E:$K,ようこそ!$D$5,0)*ようこそ!$H$6+VLOOKUP($E24,$E:$K,ランキング!$K$1,0)*ようこそ!$H$7 -> 253.5 | Q24: =_xlfn.PERCENTRANK.INC($P$4:$P$96,P24)*100 -> 78.2
A25: =A24+1 -> 22 | B25: 京葉道路 | C25: 船橋 | D25: JR総武線 | E25: 船橋 | F25: 70.7 | G25: 47.9 | H25: 30.5 | I25: 52.2 | J25: 39.2 | K25: 100 | L25: =VLOOKUP($E25,$E:$K,ようこそ!$D$4,0) -> 70.7 | M25: =VLOOKUP($E25,$E:$K,ランキング!$H$1,0) -> 30.5 | N25: =VLOOKUP($E25,$E:$K,ようこそ!$D$5,0) -> 52.2 | O25: =VLOOKUP($E25,$E:$K,ランキング!$K$1,0) -> 100 | P25: =VLOOKUP($E25,$E:$K,ようこそ!$D$4,0)*ようこそ!$H$4+VLOOKUP($E25,$E:$K,ランキング!$H$1,0)*ようこそ!$H$5+VLOOKUP($E25,$E:$K,ようこそ!$D$5,0)*ようこそ!$H$6+VLOOKUP($E25,$E:$K,ランキング!$K$1,0)*ようこそ!$H$7 -> 253.4 | Q25: =_xlfn.PERCENTRANK.INC($P$4:$P$96,P25)*100 -> 77.1
A26: =A25+1 -> 23 | B26: 首都高5号池袋線 | C26: 中台 | D26: 都営三田線 | E26: 志村三丁目 | F26: 74 | G26: 74 | H26: 52.2 | I26: 26.1 | J26: 37 | K26: 100 | L26: =VLOOKUP($E26,$E:$K,ようこそ!$D$4,0) -> 74 | M26: =VLOOKUP($E26,$E:$K,ランキング!$H$1,0) -> 52.2 | N26: =VLOOKUP($E26,$E:$K,ようこそ!$D$5,0) -> 26.1 | O26: =VLOOKUP($E26,$E:$K,ランキング!$K$1,0) -> 100 | P26: =VLOOKUP($E26,$E:$K,ようこそ!$D$4,0)*ようこそ!$H$4+VLOOKUP($E26,$E:$K,ランキング!$H$1,0)*ようこそ!$H$5+VLOOKUP($E26,$E:$K,ようこそ!$D$5,0)*ようこそ!$H$6+VLOOKUP($E26,$E:$K,ランキング!$K$1,0)*ようこそ!$H$7 -> 252.3 | Q26: =_xlfn.PERCENTRANK.INC($P$4:$P$96,P26)*100 -> 76
A27: =A26+1 -> 24 | B27: 首都高6号三郷線 | C27: 加平 | D27: メトロ千代田線 | E27: 北綾瀬 | F27: 66.4 | G27: 33.7 | H27: 100 | I27: 64.2 | J27: 56.6 | K27: 20 | L27: =VLOOKUP($E27,$E:$K,ようこそ!$D$4,0) -> 66.4 | M27: =VLOOKUP($E27,$E:$K,ランキング!$H$1,0) -> 100 | N27: =VLOOKUP($E27,$E:$K,ようこそ!$D$5,0) -> 64.2 | O27: =VLOOKUP($E27,$E:$K,ランキング!$K$1,0) -> 20 | P27: =VLOOKUP($E27,$E:$K,ようこそ!$D$4,0)*ようこそ!$H$4+VLOOKUP($E27,$E:$K,ランキング!$H$1,0)*ようこそ!$H$5+VLOOKUP($E27,$E:$K,ようこそ!$D$5,0)*ようこそ!$H$6+VLOOKUP($E27,$E:$K,ランキング!$K$1,0)*ようこそ!$H$7 -> 250.6 | Q27: =_xlfn.PERCENTRANK.INC($P$4:$P$96,P27)*100 -> 75
A28: =A27+1 -> 25 | B28: 首都高川口線 | C28: 新郷 | D28: 埼玉高速鉄道 | E28: 鳩ヶ谷 | F28: 24 | G28: 46.8 | H28: 92.4 | I28: 83.7 | J28: 78.3 | K28: 50 | L28: =VLOOKUP($E28,$E:$K,ようこそ!$D$4,0) -> 24 | M28: =VLOOKUP($E28,$E:$K,ランキング!$H$1,0) -> 92.4 | N28: =VLOOKUP($E28,$E:$K,ようこそ!$D$5,0) -> 83.7 | O28: =VLOOKUP($E28,$E:$K,ランキング!$K$1,0) -> 50 | P28: =VLOOKUP($E28,$E:$K,ようこそ!$D$4,0)*ようこそ!$H$4+VLOOKUP($E28,$E:$K,ランキング!$H$1,0)*ようこそ!$H$5+VLOOKUP($E28,$E:$K,ようこそ!$D$5,0)*ようこそ!$H$6+VLOOKUP($E28,$E:$K,ランキング!$K$1,0)*ようこそ!$H$7 -> 250.1 | Q28: =_xlfn.PERCENTRANK.INC($P$4:$P$96,P28)*100 -> 73.9
A29: =A28+1 -> 26 | B29: 東京湾アクアライン | C29: 袖ケ浦 | D29: 高速バス | E29: 袖ケ浦BT | F29: 9.8 | G29: 2.2 | H29: 100 | I29: 90.3 | J29: 99 | K29: 50 | L29: =VLOOKUP($E29,$E:$K,ようこそ!$D$4,0) -> 9.8 | M29: =VLOOKUP($E29,$E:$K,ランキング!$H$1,0) -> 100 | N29: =VLOOKUP($E29,$E:$K,ようこそ!$D$5,0) -> 90.3 | O29: =VLOOKUP($E29,$E:$K,ランキング!$K$1,0) -> 50 | P29: =VLOOKUP($E29,$E:$K,ようこそ!$D$4,0)*ようこそ!$H$4+VLOOKUP($E29,$E:$K,ランキング!$H$1,0)*ようこそ!$H$5+VLOOKUP($E29,$E:$K,ようこそ!$D$5,0)*ようこそ!$H$6+VLOOKUP($E29,$E:$K,ランキング!$K$1,0)*ようこそ!$H$7 -> 250.1 | Q29: =_xlfn.PERCENTRANK.INC($P$4:$P$96,P29)*100 -> 72.8
A30: =A29+1 -> 27 | B30: 首都高湾岸線 | C30: 浦安 | D30: JR京葉線 | E30: 新浦安 | F30: 80.5 | G30: 28.3 | H30: 42.4 | I30: 45.7 | J30: 64.2 | K30: 80 | L30: =VLOOKUP($E30,$E:$K,ようこそ!$D$4,0) -> 80.5 | M30: =VLOOKUP($E30,$E:$K,ランキング!$H$1,0) -> 42.4 | N30: =VLOOKUP($E30,$E:$K,ようこそ!$D$5,0) -> 45.7 | O30: =VLOOKUP($E30,$E:$K,ランキング!$K$1,0) -> 80 | P30: =VLOOKUP($E30,$E:$K,ようこそ!$D$4,0)*ようこそ!$H$4+VLOOKUP($E30,$E:$K,ランキング!$H$1,0)*ようこそ!$H$5+VLOOKUP($E30,$E:$K,ようこそ!$D$5,0)*ようこそ!$H$6+VLOOKUP($E30,$E:$K,ランキング!$K$1,0)*ようこそ!$H$7 -> 248.6 | Q30: =_xlfn.PERCENTRANK.INC($P$4:$P$96,P30)*100 -> 71.7
A31: =A30+1 -> 28 | B31: 首都高川口線 | C31: 新井宿 | D31: 埼玉高速鉄道 | E31: 新井宿 | F31: 17.4 | G31: 37 | H31: 78.3 | I31: 92.4 | J31: 96.8 | K31: 50 | L31: =VLOOKUP($E31,$E:$K,ようこそ!$D$4,0) -> 17.4 | M31: =VLOOKUP($E31,$E:$K,ランキング!$H$1,0) -> 78.3 | N31: =VLOOKUP($E31,$E:$K,ようこそ!$D$5,0) -> 92.4 | O31: =VLOOKUP($E31,$E:$K,ランキング!$K$1,0) -> 50 | P31: =VLOOKUP($E31,$E:$K,ようこそ!$D$4,0)*ようこそ!$H$4+VLOOKUP($E31,$E:$K,ランキング!$H$1,0)*ようこそ!$H$5+VLOOKUP($E31,$E:$K,ようこそ!$D$5,0)*ようこそ!$H$6+VLOOKUP($E31,$E:$K,ランキング!$K$1,0)*ようこそ!$H$7 -> 238.1 | Q31: =_xlfn.PERCENTRANK.INC($P$4:$P$96,P31)*100 -> 70.6
A32: =A31+1 -> 29 | B32: 外環道 | C32: 市川中央 | D32: JR総武線 | E32: 市川 | F32: 84.8 | G32: 62 | H32: 30.5 | I32: 41.4 | J32: 29.4 | K32: 80 | L32: =VLOOKUP($E32,$E:$K,ようこそ!$D$4,0) -> 84.8 | M32: =VLOOKUP($E32,$E:$K,ランキング!$H$1,0) -> 30.5 | N32: =VLOOKUP($E32,$E:$K,ようこそ!$D$5,0) -> 41.4 | O32: =VLOOKUP($E32,$E:$K,ランキング!$K$1,0) -> 80 | P32: =VLOOKUP($E32,$E:$K,ようこそ!$D$4,0)*ようこそ!$H$4+VLOOKUP($E32,$E:$K,ランキング!$H$1,0)*ようこそ!$H$5+VLOOKUP($E32,$E:$K,ようこそ!$D$5,0)*ようこそ!$H$6+VLOOKUP($E32,$E:$K,ランキング!$K$1,0)*ようこそ!$H$7 -> 236.7 | Q32: =_xlfn.PERCENTRANK.INC($P$4:$P$96,P32)*100 -> 69.5
A33: =A32+1 -> 30 | B33: 首都高5号池袋線 | C33: 高島平 | D33: 都営三田線 | E33: 西高島平 | F33: 54.4 | G33: 51.1 | H33: 100 | I33: 80.5 | J33: 81.6 | K33: 0 | L33: =VLOOKUP($E33,$E:$K,ようこそ!$D$4,0) -> 54.4 | M33: =VLOOKUP($E33,$E:$K,ランキング!$H$1,0) -> 100 | N33: =VLOOKUP($E33,$E:$K,ようこそ!$D$5,0) -> 80.5 | O33: =VLOOKUP($E33,$E:$K,ランキング!$K$1,0) -> 0 | P33: =VLOOKUP($E33,$E:$K,ようこそ!$D$4,0)*ようこそ!$H$4+VLOOKUP($E33,$E:$K,ランキング!$H$1,0)*ようこそ!$H$5+VLOOKUP($E33,$E:$K,ようこそ!$D$5,0)*ようこそ!$H$6+VLOOKUP($E33,$E:$K,ランキング!$K$1,0)*ようこそ!$H$7 -> 234.9 | Q33: =_xlfn.PERCENTRANK.INC($P$4:$P$96,P33)*100 -> 68.4
A34: =A33+1 -> 31 | B34: 東関東自動車道 | C34: 湾岸習志野IC | D34: JR京葉線 | E34: 新習志野 | F34: 42.4 | G34: 3.3 | H34: 42.4 | I34: 68.5 | J34: 83.7 | K34: 80 | L34: =VLOOKUP($E34,$E:$K,ようこそ!$D$4,0) -> 42.4 | M34: =VLOOKUP($E34,$E:$K,ランキング!$H$1,0) -> 42.4 | N34: =VLOOKUP($E34,$E:$K,ようこそ!$D$5,0) -> 68.5 | O34: =VLOOKUP($E34,$E:$K,ランキング!$K$1,0) -> 80 | P34: =VLOOKUP($E34,$E:$K,ようこそ!$D$4,0)*ようこそ!$H$4+VLOOKUP($E34,$E:$K,ランキング!$H$1,0)*ようこそ!$H$5+VLOOKUP($E34,$E:$K,ようこそ!$D$5,0)*ようこそ!$H$6+VLOOKUP($E34,$E:$K,ランキング!$K$1,0)*ようこそ!$H$7 -> 233.3 | Q34: =_xlfn.PERCENTRANK.INC($P$4:$P$96,P34)*100 -> 67.3
A35: =A34+1 -> 32 | B35: 首都高湾岸線 | C35: 葛西 | D35: JR京葉線 | E35: 葛西臨海公園 | F35: 93.5 | G35: 38.1 | H35: 42.4 | I35: 77.2 | J35: 71.8 | K35: 20 | L35: =VLOOKUP($E35,$E:$K,ようこそ!$D$4,0) -> 93.5 | M35: =VLOOKUP($E35,$E:$K,ランキング!$H$1,0) -> 42.4 | N35: =VLOOKUP($E35,$E:$K,ようこそ!$D$5,0) -> 77.2 | O35: =VLOOKUP($E35,$E:$K,ランキング!$K$1,0) -> 20 | P35: =VLOOKUP($E35,$E:$K,ようこそ!$D$4,0)*ようこそ!$H$4+VLOOKUP($E35,$E:$K,ランキング!$H$1,0)*ようこそ!$H$5+VLOOKUP($E35,$E:$K,ようこそ!$D$5,0)*ようこそ!$H$6+VLOOKUP($E35,$E:$K,ランキング!$K$1,0)*ようこそ!$H$7 -> 233.1 | Q35: =_xlfn.PERCENTRANK.INC($P$4:$P$96,P35)*100 -> 66.3
A36: =A35+1 -> 33 | B36: 首都高中央環状線 | C36: 船堀橋 | D36: 都営新宿線 | E36: 東大島 | F36: 75 | G36: 82.7 | H36: 57.7 | I36: 50 | J36: 14.2 | K36: 50 | L36: =VLOOKUP($E36,$E:$K,ようこそ!$D$4,0) -> 75 | M36: =VLOOKUP($E36,$E:$K,ランキング!$H$1,0) -> 57.7 | N36: =VLOOKUP($E36,$E:$K,ようこそ!$D$5,0) -> 50 | O36: =VLOOKUP($E36,$E:$K,ランキング!$K$1,0) -> 50 | P36: =VLOOKUP($E36,$E:$K,ようこそ!$D$4,0)*ようこそ!$H$4+VLOOKUP($E36,$E:$K,ランキング!$H$1,0)*ようこそ!$H$5+VLOOKUP($E36,$E:$K,ようこそ!$D$5,0)*ようこそ!$H$6+VLOOKUP($E36,$E:$K,ランキング!$K$1,0)*ようこそ!$H$7 -> 232.7 | Q36: =_xlfn.PERCENTRANK.INC($P$4:$P$96,P36)*100 -> 65.2
A37: =A36+1 -> 34 | B37: 首都高7号小松川線 | C37: 錦糸町 | D37: JR総武線 | E37: 錦糸町 | F37: 95.7 | G37: 92.4 | H37: 30.5 | I37: 2.2 | J37: 9.8 | K37: 100 | L37: =VLOOKUP($E37,$E:$K,ようこそ!$D$4,0) -> 95.7 | M37: =VLOOKUP($E37,$E:$K,ランキング!$H$1,0) -> 30.5 | N37: =VLOOKUP($E37,$E:$K,ようこそ!$D$5,0) -> 2.2 | O37: =VLOOKUP($E37,$E:$K,ランキング!$K$1,0) -> 100 | P37: =VLOOKUP($E37,$E:$K,ようこそ!$D$4,0)*ようこそ!$H$4+VLOOKUP($E37,$E:$K,ランキング!$H$1,0)*ようこそ!$H$5+VLOOKUP($E37,$E:$K,ようこそ!$D$5,0)*ようこそ!$H$6+VLOOKUP($E37,$E:$K,ランキング!$K$1,0)*ようこそ!$H$7 -> 228.4 | Q37: =_xlfn.PERCENTRANK.INC($P$4:$P$96,P37)*100 -> 64.1
A38: =A37+1 -> 35 | B38: 首都高中央環状線 | C38: 中野長者橋 | D38: メトロ丸ノ内線 | E38: 中野坂上 | F38: 83.7 | G38: 100 | H38: 49 | I38: 12 | J38: 5.5 | K38: 80 | L38: =VLOOKUP($E38,$E:$K,ようこそ!$D$4,0) -> 83.7 | M38: =VLOOKUP($E38,$E:$K,ランキング!$H$1,0) -> 49 | N38: =VLOOKUP($E38,$E:$K,ようこそ!$D$5,0) -> 12 | O38: =VLOOKUP($E38,$E:$K,ランキング!$K$1,0) -> 80 | P38: =VLOOKUP($E38,$E:$K,ようこそ!$D$4,0)*ようこそ!$H$4+VLOOKUP($E38,$E:$K,ランキング!$H$1,0)*ようこそ!$H$5+VLOOKUP($E38,$E:$K,ようこそ!$D$5,0)*ようこそ!$H$6+VLOOKUP($E38,$E:$K,ランキング!$K$1,0)*ようこそ!$H$7 -> 224.7 | Q38: =_xlfn.PERCENTRANK.INC($P$4:$P$96,P38)*100 -> 63
A39: =A38+1 -> 36 | B39: 首都高6号向島線 | C39: 向島 | D39: 東武スカイツリーライン | E39: 曳舟 | F39: 92.4 | G39: 58.7 | H39: 63.1 | I39: 18.5 | J39: 16.4 | K39: 50 | L39: =VLOOKUP($E39,$E:$K,ようこそ!$D$4,0) -> 92.4 | M39: =VLOOKUP($E39,$E:$K,ランキング!$H$1,0) -> 63.1 | N39: =VLOOKUP($E39,$E:$K,ようこそ!$D$5,0) -> 18.5 | O39: =VLOOKUP($E39,$E:$K,ランキング!$K$1,0) -> 50 | P39: =VLOOKUP($E39,$E:$K,ようこそ!$D$4,0)*ようこそ!$H$4+VLOOKUP($E39,$E:$K,ランキング!$H$1,0)*ようこそ!$H$5+VLOOKUP($E39,$E:$K,ようこそ!$D$5,0)*ようこそ!$H$6+VLOOKUP($E39,$E:$K,ランキング!$K$1,0)*ようこそ!$H$7 -> 224 | Q39: =_xlfn.PERCENTRANK.INC($P$4:$P$96,P39)*100 -> 61.9
A40: =A39+1 -> 37 | B40: 首都高4号新宿線 | C40: 幡ヶ谷 | D40: 京王新線 | E40: 幡ヶ谷 | F40: 77.2 | G40: 99 | H40: 49 | I40: 14.2 | J40: 1.1 | K40: 80 | L40: =VLOOKUP($E40,$E:$K,ようこそ!$D$4,0) -> 77.2 | M40: =VLOOKUP($E40,$E:$K,ランキング!$H$1,0) -> 49 | N40: =VLOOKUP($E40,$E:$K,ようこそ!$D$5,0) -> 14.2 | O40: =VLOOKUP($E40,$E:$K,ランキング!$K$1,0) -> 80 | P40: =VLOOKUP($E40,$E:$K,ようこそ!$D$4,0)*ようこそ!$H$4+VLOOKUP($E40,$E:$K,ランキング!$H$1,0)*ようこそ!$H$5+VLOOKUP($E40,$E:$K,ようこそ!$D$5,0)*ようこそ!$H$6+VLOOKUP($E40,$E:$K,ランキング!$K$1,0)*ようこそ!$H$7 -> 220.4 | Q40: =_xlfn.PERCENTRANK.INC($P$4:$P$96,P40)*100 -> 60.8
A41: =A40+1 -> 38 | B41: 首都高5号池袋線 | C41: 戸田南 | D41: JR埼京線 | E41: 戸田 | F41: 33.7 | G41: 84.8 | H41: 19.6 | I41: 84.8 | J41: 84.8 | K41: 80 | L41: =VLOOKUP($E41,$E:$K,ようこそ!$D$4,0) -> 33.7 | M41: =VLOOKUP($E41,$E:$K,ランキング!$H$1,0) -> 19.6 | N41: =VLOOKUP($E41,$E:$K,ようこそ!$D$5,0) -> 84.8 | O41: =VLOOKUP($E41,$E:$K,ランキング!$K$1,0) -> 80 | P41: =VLOOKUP($E41,$E:$K,ようこそ!$D$4,0)*ようこそ!$H$4+VLOOKUP($E41,$E:$K,ランキング!$H$1,0)*ようこそ!$H$5+VLOOKUP($E41,$E:$K,ようこそ!$D$5,0)*ようこそ!$H$6+VLOOKUP($E41,$E:$K,ランキング!$K$1,0)*ようこそ!$H$7 -> 218.1 | Q41: =_xlfn.PERCENTRANK.INC($P$4:$P$96,P41)*100 -> 59.7
A42: =A41+1 -> 39 | B42: 首都高7号小松川線 | C42: 篠崎 | D42: 都営新宿線 | E42: 篠崎 | F42: 52.2 | G42: 57.7 | H42: 57.7 | I42: 57.7 | J42: 46.8 | K42: 50 | L42: =VLOOKUP($E42,$E:$K,ようこそ!$D$4,0) -> 52.2 | M42: =VLOOKUP($E42,$E:$K,ランキング!$H$1,0) -> 57.7 | N42: =VLOOKUP($E42,$E:$K,ようこそ!$D$5,0) -> 57.7 | O42: =VLOOKUP($E42,$E:$K,ランキング!$K$1,0) -> 50 | P42: =VLOOKUP($E42,$E:$K,ようこそ!$D$4,0)*ようこそ!$H$4+VLOOKUP($E42,$E:$K,ランキング!$H$1,0)*ようこそ!$H$5+VLOOKUP($E42,$E:$K,ようこそ!$D$5,0)*ようこそ!$H$6+VLOOKUP($E42,$E:$K,ランキング!$K$1,0)*ようこそ!$H$7 -> 217.6 | Q42: =_xlfn.PERCENTRANK.INC($P$4:$P$96,P42)*100 -> 58.6
A43: =A42+1 -> 40 | B43: 外環道 | C43: 外環三郷西 | D43: JR武蔵野線 | E43: 新三郷 | F43: 8.7 | G43: 7.7 | H43: 31.6 | I43: 77.2 | J43: 89.2 | K43: 100 | L43: =VLOOKUP($E43,$E:$K,ようこそ!$D$4,0) -> 8.7 | M43: =VLOOKUP($E43,$E:$K,ランキング!$H$1,0) -> 31.6 | N43: =VLOOKUP($E43,$E:$K,ようこそ!$D$5,0) -> 77.2 | O43: =VLOOKUP($E43,$E:$K,ランキング!$K$1,0) -> 100 | P43: =VLOOKUP($E43,$E:$K,ようこそ!$D$4,0)*ようこそ!$H$4+VLOOKUP($E43,$E:$K,ランキング!$H$1,0)*ようこそ!$H$5+VLOOKUP($E43,$E:$K,ようこそ!$D$5,0)*ようこそ!$H$6+VLOOKUP($E43,$E:$K,ランキング!$K$1,0)*ようこそ!$H$7 -> 217.5 | Q43: =_xlfn.PERCENTRANK.INC($P$4:$P$96,P43)*100 -> 57.6
A44: =A43+1 -> 41 | B44: 首都高中央環状線 | C44: 船堀橋 | D44: 都営新宿線 | E44: 船堀 | F44: 68.5 | G44: 75 | H44: 57.7 | I44: 35.9 | J44: 25 | K44: 50 | L44: =VLOOKUP($E44,$E:$K,ようこそ!$D$4,0) -> 68.5 | M44: =VLOOKUP($E44,$E:$K,ランキング!$H$1,0) -> 57.7 | N44: =VLOOKUP($E44,$E:$K,ようこそ!$D$5,0) -> 35.9 | O44: =VLOOKUP($E44,$E:$K,ランキング!$K$1,0) -> 50 | P44: =VLOOKUP($E44,$E:$K,ようこそ!$D$4,0)*ようこそ!$H$4+VLOOKUP($E44,$E:$K,ランキング!$H$1,0)*ようこそ!$H$5+VLOOKUP($E44,$E:$K,ようこそ!$D$5,0)*ようこそ!$H$6+VLOOKUP($E44,$E:$K,ランキング!$K$1,0)*ようこそ!$H$7 -> 212.1 | Q44: =_xlfn.PERCENTRANK.INC($P$4:$P$96,P44)*100 -> 56.5
A45: =A44+1 -> 42 | B45: 首都高1号羽田線 | C45: 鈴ヶ森 | D45: 京急本線 | E45: 大森海岸 | F45: 51.1 | G45: 53.3 | H45: 70.7 | I45: 8.7 | J45: 12 | K45: 80 | L45: =VLOOKUP($E45,$E:$K,ようこそ!$D$4,0) -> 51.1 | M45: =VLOOKUP($E45,$E:$K,ランキング!$H$1,0) -> 70.7 | N45: =VLOOKUP($E45,$E:$K,ようこそ!$D$5,0) -> 8.7 | O45: =VLOOKUP($E45,$E:$K,ランキング!$K$1,0) -> 80 | P45: =VLOOKUP($E45,$E:$K,ようこそ!$D$4,0)*ようこそ!$H$4+VLOOKUP($E45,$E:$K,ランキング!$H$1,0)*ようこそ!$H$5+VLOOKUP($E45,$E:$K,ようこそ!$D$5,0)*ようこそ!$H$6+VLOOKUP($E45,$E:$K,ランキング!$K$1,0)*ようこそ!$H$7 -> 210.5 | Q45: =_xlfn.PERCENTRANK.INC($P$4:$P$96,P45)*100 -> 55.4
A46: =A45+1 -> 43 | B46: 首都高7号小松川線 | C46: 錦糸町 | D46: 都営新宿線 | E46: 住吉 | F46: 99 | G46: 90.3 | H46: 57.7 | I46: 3.3 | J46: 21.8 | K46: 50 | L46: =VLOOKUP($E46,$E:$K,ようこそ!$D$4,0) -> 99 | M46: =VLOOKUP($E46,$E:$K,ランキング!$H$1,0) -> 57.7 | N46: =VLOOKUP($E46,$E:$K,ようこそ!$D$5,0) -> 3.3 | O46: =VLOOKUP($E46,$E:$K,ランキング!$K$1,0) -> 50 | P46: =VLOOKUP($E46,$E:$K,ようこそ!$D$4,0)*ようこそ!$H$4+VLOOKUP($E46,$E:$K,ランキング!$H$1,0)*ようこそ!$H$5+VLOOKUP($E46,$E:$K,ようこそ!$D$5,0)*ようこそ!$H$6+VLOOKUP($E46,$E:$K,ランキング!$K$1,0)*ようこそ!$H$7 -> 210 | Q46: =_xlfn.PERCENTRANK.INC($P$4:$P$96,P46)*100 -> 54.3
A47: =A46+1 -> 44 | B47: 首都高中央環状線 | C47: 平井大橋 | D47: JR総武線 | E47: 新小岩 | F47: 94.6 | G47: 78.3 | H47: 30.5 | I47: 33.7 | J47: 32.7 | K47: 50 | L47: =VLOOKUP($E47,$E:$K,ようこそ!$D$4,0) -> 94.6 | M47: =VLOOKUP($E47,$E:$K,ランキング!$H$1,0) -> 30.5 | N47: =VLOOKUP($E47,$E:$K,ようこそ!$D$5,0) -> 33.7 | O47: =VLOOKUP($E47,$E:$K,ランキング!$K$1,0) -> 50 | P47: =VLOOKUP($E47,$E:$K,ようこそ!$D$4,0)*ようこそ!$H$4+VLOOKUP($E47,$E:$K,ランキング!$H$1,0)*ようこそ!$H$5+VLOOKUP($E47,$E:$K,ようこそ!$D$5,0)*ようこそ!$H$6+VLOOKUP($E47,$E:$K,ランキング!$K$1,0)*ようこそ!$H$7 -> 208.8 | Q47: =_xlfn.PERCENTRANK.INC($P$4:$P$96,P47)*100 -> 53.2
A48: =A47+1 -> 45 | B48: 外環道 | C48: 市川南 | D48: メトロ東西線 | E48: 妙典 | F48: 63.1 | G48: 30.5 | H48: 3.3 | I48: 60.9 | J48: 52.2 | K48: 80 | L48: =VLOOKUP($E48,$E:$K,ようこそ!$D$4,0) -> 63.1 | M48: =VLOOKUP($E48,$E:$K,ランキング!$H$1,0) -> 3.3 | N48: =VLOOKUP($E48,$E:$K,ようこそ!$D$5,0) -> 60.9 | O48: =VLOOKUP($E48,$E:$K,ランキング!$K$1,0) -> 80 | P48: =VLOOKUP($E48,$E:$K,ようこそ!$D$4,0)*ようこそ!$H$4+VLOOKUP($E48,$E:$K,ランキング!$H$1,0)*ようこそ!$H$5+VLOOKUP($E48,$E:$K,ようこそ!$D$5,0)*ようこそ!$H$6+VLOOKUP($E48,$E:$K,ランキング!$K$1,0)*ようこそ!$H$7 -> 207.3 | Q48: =_xlfn.PERCENTRANK.INC($P$4:$P$96,P48)*100 -> 52.1
A49: =A48+1 -> 46 | B49: 首都高中央環状線 | C49: 王子北 | D49: JR京浜東北線 | E49: 王子 | F49: 89.2 | G49: 88.1 | H49: 33.7 | I49: 30.5 | J49: 22.9 | K49: 50 | L49: =VLOOKUP($E49,$E:$K,ようこそ!$D$4,0) -> 89.2 | M49: =VLOOKUP($E49,$E:$K,ランキング!$H$1,0) -> 33.7 | N49: =VLOOKUP($E49,$E:$K,ようこそ!$D$5,0) -> 30.5 | O49: =VLOOKUP($E49,$E:$K,ランキング!$K$1,0) -> 50 | P49: =VLOOKUP($E49,$E:$K,ようこそ!$D$4,0)*ようこそ!$H$4+VLOOKUP($E49,$E:$K,ランキング!$H$1,0)*ようこそ!$H$5+VLOOKUP($E49,$E:$K,ようこそ!$D$5,0)*ようこそ!$H$6+VLOOKUP($E49,$E:$K,ランキング!$K$1,0)*ようこそ!$H$7 -> 203.4 | Q49: =_xlfn.PERCENTRANK.INC($P$4:$P$96,P49)*100 -> 51
A50: =A49+1 -> 47 | B50: 首都高K1号横羽線 | C50: 汐入 | D50: JR鶴見線 | E50: 弁天橋 | F50: 34.8 | G50: 26.1 | H50: 82.7 | I50: 83.7 | J50: 69.6 | K50: 0 | L50: =VLOOKUP($E50,$E:$K,ようこそ!$D$4,0) -> 34.8 | M50: =VLOOKUP($E50,$E:$K,ランキング!$H$1,0) -> 82.7 | N50: =VLOOKUP($E50,$E:$K,ようこそ!$D$5,0) -> 83.7 | O50: =VLOOKUP($E50,$E:$K,ランキング!$K$1,0) -> 0 | P50: =VLOOKUP($E50,$E:$K,ようこそ!$D$4,0)*ようこそ!$H$4+VLOOKUP($E50,$E:$K,ランキング!$H$1,0)*ようこそ!$H$5+VLOOKUP($E50,$E:$K,ようこそ!$D$5,0)*ようこそ!$H$6+VLOOKUP($E50,$E:$K,ランキング!$K$1,0)*ようこそ!$H$7 -> 201.2 | Q50: =_xlfn.PERCENTRANK.INC($P$4:$P$96,P50)*100 -> 50
A51: =A50+1 -> 48 | B51: 首都高S新都心線 | C51: 新都心西 | D51: JR埼京線 | E51: 北与野 | F51: 15.3 | G51: 59.8 | H51: 19.6 | I51: 64.2 | J51: 76.1 | K51: 100 | L51: =VLOOKUP($E51,$E:$K,ようこそ!$D$4,0) -> 15.3 | M51: =VLOOKUP($E51,$E:$K,ランキング!$H$1,0) -> 19.6 | N51: =VLOOKUP($E51,$E:$K,ようこそ!$D$5,0) -> 64.2 | O51: =VLOOKUP($E51,$E:$K,ランキング!$K$1,0) -> 100 | P51: =VLOOKUP($E51,$E:$K,ようこそ!$D$4,0)*ようこそ!$H$4+VLOOKUP($E51,$E:$K,ランキング!$H$1,0)*ようこそ!$H$5+VLOOKUP($E51,$E:$K,ようこそ!$D$5,0)*ようこそ!$H$6+VLOOKUP($E51,$E:$K,ランキング!$K$1,0)*ようこそ!$H$7 -> 199.1 | Q51: =_xlfn.PERCENTRANK.INC($P$4:$P$96,P51)*100 -> 48.9
A52: =A51+1 -> 49 | B52: 首都高K3号狩場線 | C52: 花之木 | D52: 京急本線 | E52: 南太田 | F52: 20.7 | G52: 27.2 | H52: 70.7 | I52: 87 | J52: 49 | K52: 20 | L52: =VLOOKUP($E52,$E:$K,ようこそ!$D$4,0) -> 20.7 | M52: =VLOOKUP($E52,$E:$K,ランキング!$H$1,0) -> 70.7 | N52: =VLOOKUP($E52,$E:$K,ようこそ!$D$5,0) -> 87 | O52: =VLOOKUP($E52,$E:$K,ランキング!$K$1,0) -> 20 | P52: =VLOOKUP($E52,$E:$K,ようこそ!$D$4,0)*ようこそ!$H$4+VLOOKUP($E52,$E:$K,ランキング!$H$1,0)*ようこそ!$H$5+VLOOKUP($E52,$E:$K,ようこそ!$D$5,0)*ようこそ!$H$6+VLOOKUP($E52,$E:$K,ランキング!$K$1,0)*ようこそ!$H$7 -> 198.4 | Q52: =_xlfn.PERCENTRANK.INC($P$4:$P$96,P52)*100 -> 47.8
A53: =A52+1 -> 50 | B53: 首都高6号三郷線 | C53: 三郷 | D53: つくばエクスプレス | E53: 三郷中央 | F53: 38.1 | G53: 25 | H53: 38.1 | I53: 40.3 | J53: 88.1 | K53: 80 | L53: =VLOOKUP($E53,$E:$K,ようこそ!$D$4,0) -> 38.1 | M53: =VLOOKUP($E53,$E:$K,ランキング!$H$1,0) -> 38.1 | N53: =VLOOKUP($E53,$E:$K,ようこそ!$D$5,0) -> 40.3 | O53: =VLOOKUP($E53,$E:$K,ランキング!$K$1,0) -> 80 | P53: =VLOOKUP($E53,$E:$K,ようこそ!$D$4,0)*ようこそ!$H$4+VLOOKUP($E53,$E:$K,ランキング!$H$1,0)*ようこそ!$H$5+VLOOKUP($E53,$E:$K,ようこそ!$D$5,0)*ようこそ!$H$6+VLOOKUP($E53,$E:$K,ランキング!$K$1,0)*ようこそ!$H$7 -> 196.5 | Q53: =_xlfn.PERCENTRANK.INC($P$4:$P$96,P53)*100 -> 46.7
A54: =A53+1 -> 51 | B54: 外環道 | C54: 川口西 | D54: JR京浜東北線 | E54: 蕨 | F54: 58.7 | G54: 77.2 | H54: 33.7 | I54: 53.3 | J54: 50 | K54: 50 | L54: =VLOOKUP($E54,$E:$K,ようこそ!$D$4,0) -> 58.7 | M54: =VLOOKUP($E54,$E:$K,ランキング!$H$1,0) -> 33.7 | N54: =VLOOKUP($E54,$E:$K,ようこそ!$D$5,0) -> 53.3 | O54: =VLOOKUP($E54,$E:$K,ランキング!$K$1,0) -> 50 | P54: =VLOOKUP($E54,$E:$K,ようこそ!$D$4,0)*ようこそ!$H$4+VLOOKUP($E54,$E:$K,ランキング!$H$1,0)*ようこそ!$H$5+VLOOKUP($E54,$E:$K,ようこそ!$D$5,0)*ようこそ!$H$6+VLOOKUP($E54,$E:$K,ランキング!$K$1,0)*ようこそ!$H$7 -> 195.7 | Q54: =_xlfn.PERCENTRANK.INC($P$4:$P$96,P54)*100 -> 45.6
A55: =A54+1 -> 52 | B55: 外環道 | C55: 川口東 | D55: 埼玉高速鉄道 | E55: 戸塚安行 | F55: 12 | G55: 29.4 | H55: 78.3 | I55: 78.3 | J55: 93.5 | K55: 20 | L55: =VLOOKUP($E55,$E:$K,ようこそ!$D$4,0) -> 12 | M55: =VLOOKUP($E55,$E:$K,ランキング!$H$1,0) -> 78.3 | N55: =VLOOKUP($E55,$E:$K,ようこそ!$D$5,0) -> 78.3 | O55: =VLOOKUP($E55,$E:$K,ランキング!$K$1,0) -> 20 | P55: =VLOOKUP($E55,$E:$K,ようこそ!$D$4,0)*ようこそ!$H$4+VLOOKUP($E55,$E:$K,ランキング!$H$1,0)*ようこそ!$H$5+VLOOKUP($E55,$E:$K,ようこそ!$D$5,0)*ようこそ!$H$6+VLOOKUP($E55,$E:$K,ランキング!$K$1,0)*ようこそ!$H$7 -> 188.6 | Q55: =_xlfn.PERCENTRANK.INC($P$4:$P$96,P55)*100 -> 44.5
A56: =A55+1 -> 53 | B56: 首都高7号小松川線 | C56: 一之江 | D56: 都営新宿線 | E56: 一之江 | F56: 62 | G56: 70.7 | H56: 57.7 | I56: 47.9 | J56: 58.7 | K56: 20 | L56: =VLOOKUP($E56,$E:$K,ようこそ!$D$4,0) -> 62 | M56: =VLOOKUP($E56,$E:$K,ランキング!$H$1,0) -> 57.7 | N56: =VLOOKUP($E56,$E:$K,ようこそ!$D$5,0) -> 47.9 | O56: =VLOOKUP($E56,$E:$K,ランキング!$K$1,0) -> 20 | P56: =VLOOKUP($E56,$E:$K,ようこそ!$D$4,0)*ようこそ!$H$4+VLOOKUP($E56,$E:$K,ランキング!$H$1,0)*ようこそ!$H$5+VLOOKUP($E56,$E:$K,ようこそ!$D$5,0)*ようこそ!$H$6+VLOOKUP($E56,$E:$K,ランキング!$K$1,0)*ようこそ!$H$7 -> 187.6 | Q56: =_xlfn.PERCENTRANK.INC($P$4:$P$96,P56)*100 -> 42.3
A57: =A56+1 -> 54 | B57: 首都高2号目黒線 | C57: 戸越 | D57: 都営浅草線 | E57: 戸越 | F57: 85.9 | G57: 89.2 | H57: 74 | I57: 7.7 | J57: 6.6 | K57: 20 | L57: =VLOOKUP($E57,$E:$K,ようこそ!$D$4,0) -> 85.9 | M57: =VLOOKUP($E57,$E:$K,ランキング!$H$1,0) -> 74 | N57: =VLOOKUP($E57,$E:$K,ようこそ!$D$5,0) -> 7.7 | O57: =VLOOKUP($E57,$E:$K,ランキング!$K$1,0) -> 20 | P57: =VLOOKUP($E57,$E:$K,ようこそ!$D$4,0)*ようこそ!$H$4+VLOOKUP($E57,$E:$K,ランキング!$H$1,0)*ようこそ!$H$5+VLOOKUP($E57,$E:$K,ようこそ!$D$5,0)*ようこそ!$H$6+VLOOKUP($E57,$E:$K,ランキング!$K$1,0)*ようこそ!$H$7 -> 187.6 | Q57: =_xlfn.PERCENTRANK.INC($P$4:$P$96,P57)*100 -> 42.3
A58: =A57+1 -> 55 | B58: 東名高速道路 | C58: 横浜町田 | D58: 東急田園都市線 | E58: 南町田 | F58: 1.1 | G58: 5.5 | H58: 26.1 | I58: 59.8 | J58: 72.9 | K58: 100 | L58: =VLOOKUP($E58,$E:$K,ようこそ!$D$4,0) -> 1.1 | M58: =VLOOKUP($E58,$E:$K,ランキング!$H$1,0) -> 26.1 | N58: =VLOOKUP($E58,$E:$K,ようこそ!$D$5,0) -> 59.8 | O58: =VLOOKUP($E58,$E:$K,ランキング!$K$1,0) -> 100 | P58: =VLOOKUP($E58,$E:$K,ようこそ!$D$4,0)*ようこそ!$H$4+VLOOKUP($E58,$E:$K,ランキング!$H$1,0)*ようこそ!$H$5+VLOOKUP($E58,$E:$K,ようこそ!$D$5,0)*ようこそ!$H$6+VLOOKUP($E58,$E:$K,ランキング!$K$1,0)*ようこそ!$H$7 -> 187 | Q58: =_xlfn.PERCENTRANK.INC($P$4:$P$96,P58)*100 -> 41.3
A59: =A58+1 -> 56 | B59: 首都高9号深川線 | C59: 木場 | D59: メトロ東西線 | E59: 木場 | F59: 97.9 | G59: 80.5 | H59: 3.3 | I59: 5.5 | J59: 8.7 | K59: 80 | L59: =VLOOKUP($E59,$E:$K,ようこそ!$D$4,0) -> 97.9 | M59: =VLOOKUP($E59,$E:$K,ランキング!$H$1,0) -> 3.3 | N59: =VLOOKUP($E59,$E:$K,ようこそ!$D$5,0) -> 5.5 | O59: =VLOOKUP($E59,$E:$K,ランキング!$K$1,0) -> 80 | P59: =VLOOKUP($E59,$E:$K,ようこそ!$D$4,0)*ようこそ!$H$4+VLOOKUP($E59,$E:$K,ランキング!$H$1,0)*ようこそ!$H$5+VLOOKUP($E59,$E:$K,ようこそ!$D$5,0)*ようこそ!$H$6+VLOOKUP($E59,$E:$K,ランキング!$K$1,0)*ようこそ!$H$7 -> 186.7 | Q59: =_xlfn.PERCENTRANK.INC($P$4:$P$96,P59)*100 -> 40.2
A60: =A59+1 -> 57 | B60: 首都高中央環状線 | C60: 扇大橋 | D60: 都営日暮里舎人ライナー | E60: 扇大橋 | F60: 76.1 | G60: 64.2 | H60: 10.9 | I60: 49 | J60: 67.4 | K60: 50 | L60: =VLOOKUP($E60,$E:$K,ようこそ!$D$4,0) -> 76.1 | M60: =VLOOKUP($E60,$E:$K,ランキング!$H$1,0) -> 10.9 | N60: =VLOOKUP($E60,$E:$K,ようこそ!$D$5,0) -> 49 | O60: =VLOOKUP($E60,$E:$K,ランキング!$K$1,0) -> 50 | P60: =VLOOKUP($E60,$E:$K,ようこそ!$D$4,0)*ようこそ!$H$4+VLOOKUP($E60,$E:$K,ランキング!$H$1,0)*ようこそ!$H$5+VLOOKUP($E60,$E:$K,ようこそ!$D$5,0)*ようこそ!$H$6+VLOOKUP($E60,$E:$K,ランキング!$K$1,0)*ようこそ!$H$7 -> 186 | Q60: =_xlfn.PERCENTRANK.INC($P$4:$P$96,P60)*100 -> 39.1
A61: =A60+1 -> 58 | B61: 常磐自動車道 | C61: 流山 | D61: つくばエクスプレス | E61: 流山おおたかの森 | F61: 18.5 | G61: 10.9 | H61: 38.1 | I61: 27.2 | J61: 35.9 | K61: 100 | L61: =VLOOKUP($E61,$E:$K,ようこそ!$D$4,0) -> 18.5 | M61: =VLOOKUP($E61,$E:$K,ランキング!$H$1,0) -> 38.1 | N61: =VLOOKUP($E61,$E:$K,ようこそ!$D$5,0) -> 27.2 | O61: =VLOOKUP($E61,$E:$K,ランキング!$K$1,0) -> 100 | P61: =VLOOKUP($E61,$E:$K,ようこそ!$D$4,0)*ようこそ!$H$4+VLOOKUP($E61,$E:$K,ランキング!$H$1,0)*ようこそ!$H$5+VLOOKUP($E61,$E:$K,ようこそ!$D$5,0)*ようこそ!$H$6+VLOOKUP($E61,$E:$K,ランキング!$K$1,0)*ようこそ!$H$7 -> 183.8 | Q61: =_xlfn.PERCENTRANK.INC($P$4:$P$96,P61)*100 -> 38
A62: =A61+1 -> 59 | B62: 首都高5号池袋線 | C62: 板橋本町 | D62: 都営三田線 | E62: 板橋本町 | F62: 89.2 | G62: 87 | H62: 52.2 | I62: 21.8 | J62: 17.4 | K62: 20 | L62: =VLOOKUP($E62,$E:$K,ようこそ!$D$4,0) -> 89.2 | M62: =VLOOKUP($E62,$E:$K,ランキング!$H$1,0) -> 52.2 | N62: =VLOOKUP($E62,$E:$K,ようこそ!$D$5,0) -> 21.8 | O62: =VLOOKUP($E62,$E:$K,ランキング!$K$1,0) -> 20 | P62: =VLOOKUP($E62,$E:$K,ようこそ!$D$4,0)*ようこそ!$H$4+VLOOKUP($E62,$E:$K,ランキング!$H$1,0)*ようこそ!$H$5+VLOOKUP($E62,$E:$K,ようこそ!$D$5,0)*ようこそ!$H$6+VLOOKUP($E62,$E:$K,ランキング!$K$1,0)*ようこそ!$H$7 -> 183.2 | Q62: =_xlfn.PERCENTRANK.INC($P$4:$P$96,P62)*100 -> 36.9
A63: =A62+1 -> 60 | B63: 首都高3号渋谷線 | C63: 用賀 | D63: 東急田園都市線 | E63: 用賀 | F63: 56.6 | G63: 76.1 | H63: 26.1 | I63: 19.6 | J63: 7.7 | K63: 80 | L63: =VLOOKUP($E63,$E:$K,ようこそ!$D$4,0) -> 56.6 | M63: =VLOOKUP($E63,$E:$K,ランキング!$H$1,0) -> 26.1 | N63: =VLOOKUP($E63,$E:$K,ようこそ!$D$5,0) -> 19.6 | O63: =VLOOKUP($E63,$E:$K,ランキング!$K$1,0) -> 80 | P63: =VLOOKUP($E63,$E:$K,ようこそ!$D$4,0)*ようこそ!$H$4+VLOOKUP($E63,$E:$K,ランキング!$H$1,0)*ようこそ!$H$5+VLOOKUP($E63,$E:$K,ようこそ!$D$5,0)*ようこそ!$H$6+VLOOKUP($E63,$E:$K,ランキング!$K$1,0)*ようこそ!$H$7 -> 182.3 | Q63: =_xlfn.PERCENTRANK.INC($P$4:$P$96,P63)*100 -> 35.8
A64: =A63+1 -> 61 | B64: 首都高6号向島線 | C64: 堤通 | D64: 東武スカイツリーライン | E64: 鐘ヶ淵 | F64: 67.4 | G64: 39.2 | H64: 63.1 | I64: 31.6 | J64: 31.6 | K64: 20 | L64: =VLOOKUP($E64,$E:$K,ようこそ!$D$4,0) -> 67.4 | M64: =VLOOKUP($E64,$E:$K,ランキング!$H$1,0) -> 63.1 | N64: =VLOOKUP($E64,$E:$K,ようこそ!$D$5,0) -> 31.6 | O64: =VLOOKUP($E64,$E:$K,ランキング!$K$1,0) -> 20 | P64: =VLOOKUP($E64,$E:$K,ようこそ!$D$4,0)*ようこそ!$H$4+VLOOKUP($E64,$E:$K,ランキング!$H$1,0)*ようこそ!$H$5+VLOOKUP($E64,$E:$K,ようこそ!$D$5,0)*ようこそ!$H$6+VLOOKUP($E64,$E:$K,ランキング!$K$1,0)*ようこそ!$H$7 -> 182.1 | Q64: =_xlfn.PERCENTRANK.INC($P$4:$P$96,P64)*100 -> 34.7
A65: =A64+1 -> 62 | B65: 首都高S大宮線 | C65: 浦和南 | D65: JR埼京線 | E65: 南与野 | F65: 16.4 | G65: 69.6 | H65: 19.6 | I65: 95.7 | J65: 85.9 | K65: 50 | L65: =VLOOKUP($E65,$E:$K,ようこそ!$D$4,0) -> 16.4 | M65: =VLOOKUP($E65,$E:$K,ランキング!$H$1,0) -> 19.6 | N65: =VLOOKUP($E65,$E:$K,ようこそ!$D$5,0) -> 95.7 | O65: =VLOOKUP($E65,$E:$K,ランキング!$K$1,0) -> 50 | P65: =VLOOKUP($E65,$E:$K,ようこそ!$D$4,0)*ようこそ!$H$4+VLOOKUP($E65,$E:$K,ランキング!$H$1,0)*ようこそ!$H$5+VLOOKUP($E65,$E:$K,ようこそ!$D$5,0)*ようこそ!$H$6+VLOOKUP($E65,$E:$K,ランキング!$K$1,0)*ようこそ!$H$7 -> 181.7 | Q65: =_xlfn.PERCENTRANK.INC($P$4:$P$96,P65)*100 -> 32.6
A66: =A65+1 -> 63 | B66: 首都高中央環状線 | C66: 平井大橋 | D66: JR総武線 | E66: 平井 | F66: 89.2 | G66: 83.7 | H66: 7.7 | I66: 34.8 | J66: 34.8 | K66: 50 | L66: =VLOOKUP($E66,$E:$K,ようこそ!$D$4,0) -> 89.2 | M66: =VLOOKUP($E66,$E:$K,ランキング!$H$1,0) -> 7.7 | N66: =VLOOKUP($E66,$E:$K,ようこそ!$D$5,0) -> 34.8 | O66: =VLOOKUP($E66,$E:$K,ランキング!$K$1,0) -> 50 | P66: =VLOOKUP($E66,$E:$K,ようこそ!$D$4,0)*ようこそ!$H$4+VLOOKUP($E66,$E:$K,ランキング!$H$1,0)*ようこそ!$H$5+VLOOKUP($E66,$E:$K,ようこそ!$D$5,0)*ようこそ!$H$6+VLOOKUP($E66,$E:$K,ランキング!$K$1,0)*ようこそ!$H$7 -> 181.7 | Q66: =_xlfn.PERCENTRANK.INC($P$4:$P$96,P66)*100 -> 32.6
A67: =A66+1 -> 64 | B67: 首都高K1号横羽線 | C67: 浜川崎 | D67: JR南武支線 | E67: 浜川崎 | F67: 25 | G67: 14.2 | H67: 100 | I67: 54.4 | J67: 60.9 | K67: 0 | L67: =VLOOKUP($E67,$E:$K,ようこそ!$D$4,0) -> 25 | M67: =VLOOKUP($E67,$E:$K,ランキング!$H$1,0) -> 100 | N67: =VLOOKUP($E67,$E:$K,ようこそ!$D$5,0) -> 54.4 | O67: =VLOOKUP($E67,$E:$K,ランキング!$K$1,0) -> 0 | P67: =VLOOKUP($E67,$E:$K,ようこそ!$D$4,0)*ようこそ!$H$4+VLOOKUP($E67,$E:$K,ランキング!$H$1,0)*ようこそ!$H$5+VLOOKUP($E67,$E:$K,ようこそ!$D$5,0)*ようこそ!$H$6+VLOOKUP($E67,$E:$K,ランキング!$K$1,0)*ようこそ!$H$7 -> 179.4 | Q67: =_xlfn.PERCENTRANK.INC($P$4:$P$96,P67)*100 -> 31.5
A68: =A67+1 -> 65 | B68: 首都高1号羽田線 | C68: 平和島 | D68: 京急本線 | E68: 平和島 | F68: 71.8 | G68: 65.3 | H68: 70.7 | I68: 16.4 | J68: 27.2 | K68: 20 | L68: =VLOOKUP($E68,$E:$K,ようこそ!$D$4,0) -> 71.8 | M68: =VLOOKUP($E68,$E:$K,ランキング!$H$1,0) -> 70.7 | N68: =VLOOKUP($E68,$E:$K,ようこそ!$D$5,0) -> 16.4 | O68: =VLOOKUP($E68,$E:$K,ランキング!$K$1,0) -> 20 | P68: =VLOOKUP($E68,$E:$K,ようこそ!$D$4,0)*ようこそ!$H$4+VLOOKUP($E68,$E:$K,ランキング!$H$1,0)*ようこそ!$H$5+VLOOKUP($E68,$E:$K,ようこそ!$D$5,0)*ようこそ!$H$6+VLOOKUP($E68,$E:$K,ランキング!$K$1,0)*ようこそ!$H$7 -> 178.9 | Q68: =_xlfn.PERCENTRANK.INC($P$4:$P$96,P68)*100 -> 30.4
A69: =A68+1 -> 66 | B69: 首都高K1号横羽線 | C69: 大師 | D69: 京急大師線 | E69: 大師橋 | F69: 24 | G69: 22.9 | H69: 82.7 | I69: 70.7 | J69: 55.5 | K69: 0 | L69: =VLOOKUP($E69,$E:$K,ようこそ!$D$4,0) -> 24 | M69: =VLOOKUP($E69,$E:$K,ランキング!$H$1,0) -> 82.7 | N69: =VLOOKUP($E69,$E:$K,ようこそ!$D$5,0) -> 70.7 | O69: =VLOOKUP($E69,$E:$K,ランキング!$K$1,0) -> 0 | P69: =VLOOKUP($E69,$E:$K,ようこそ!$D$4,0)*ようこそ!$H$4+VLOOKUP($E69,$E:$K,ランキング!$H$1,0)*ようこそ!$H$5+VLOOKUP($E69,$E:$K,ようこそ!$D$5,0)*ようこそ!$H$6+VLOOKUP($E69,$E:$K,ランキング!$K$1,0)*ようこそ!$H$7 -> 177.4 | Q69: =_xlfn.PERCENTRANK.INC($P$4:$P$96,P69)*100 -> 29.3
A70: =A69+1 -> 67 | B70: 首都高中央環状線 | C70: 清新町 | D70: メトロ東西線 | E70: 西葛西 | F70: 91.4 | G70: 63.1 | H70: 3.3 | I70: 32.7 | J70: 47.9 | K70: 50 | L70: =VLOOKUP($E70,$E:$K,ようこそ!$D$4,0) -> 91.4 | M70: =VLOOKUP($E70,$E:$K,ランキング!$H$1,0) -> 3.3 | N70: =VLOOKUP($E70,$E:$K,ようこそ!$D$5,0) -> 32.7 | O70: =VLOOKUP($E70,$E:$K,ランキング!$K$1,0) -> 50 | P70: =VLOOKUP($E70,$E:$K,ようこそ!$D$4,0)*ようこそ!$H$4+VLOOKUP($E70,$E:$K,ランキング!$H$1,0)*ようこそ!$H$5+VLOOKUP($E70,$E:$K,ようこそ!$D$5,0)*ようこそ!$H$6+VLOOKUP($E70,$E:$K,ランキング!$K$1,0)*ようこそ!$H$7 -> 177.4 | Q70: =_xlfn.PERCENTRANK.INC($P$4:$P$96,P70)*100 -> 28.2
A71: =A70+1 -> 68 | B71: 首都高1号羽田線 | C71: 勝島 | D71: 京急本線 | E71: 立会川 | F71: 74 | G71: 66.4 | H71: 70.7 | I71: 9.8 | J71: 20.7 | K71: 20 | L71: =VLOOKUP($E71,$E:$K,ようこそ!$D$4,0) -> 74 | M71: =VLOOKUP($E71,$E:$K,ランキング!$H$1,0) -> 70.7 | N71: =VLOOKUP($E71,$E:$K,ようこそ!$D$5,0) -> 9.8 | O71: =VLOOKUP($E71,$E:$K,ランキング!$K$1,0) -> 20 | P71: =VLOOKUP($E71,$E:$K,ようこそ!$D$4,0)*ようこそ!$H$4+VLOOKUP($E71,$E:$K,ランキング!$H$1,0)*ようこそ!$H$5+VLOOKUP($E71,$E:$K,ようこそ!$D$5,0)*ようこそ!$H$6+VLOOKUP($E71,$E:$K,ランキング!$K$1,0)*ようこそ!$H$7 -> 174.5 | Q71: =_xlfn.PERCENTRANK.INC($P$4:$P$96,P71)*100 -> 27.1
A72: =A71+1 -> 69 | B72: 首都高K1号横羽線 | C72: 生麦 | D72: 京急本線 | E72: 生麦 | F72: 21.8 | G72: 19.6 | H72: 70.7 | I72: 59.8 | J72: 44.6 | K72: 20 | L72: =VLOOKUP($E72,$E:$K,ようこそ!$D$4,0) -> 21.8 | M72: =VLOOKUP($E72,$E:$K,ランキング!$H$1,0) -> 70.7 | N72: =VLOOKUP($E72,$E:$K,ようこそ!$D$5,0) -> 59.8 | O72: =VLOOKUP($E72,$E:$K,ランキング!$K$1,0) -> 20 | P72: =VLOOKUP($E72,$E:$K,ようこそ!$D$4,0)*ようこそ!$H$4+VLOOKUP($E72,$E:$K,ランキング!$H$1,0)*ようこそ!$H$5+VLOOKUP($E72,$E:$K,ようこそ!$D$5,0)*ようこそ!$H$6+VLOOKUP($E72,$E:$K,ランキング!$K$1,0)*ようこそ!$H$7 -> 172.3 | Q72: =_xlfn.PERCENTRANK.INC($P$4:$P$96,P72)*100 -> 26
A73: =A72+1 -> 70 | B73: 外環道 | C73: 戸田東 | D73: JR埼京線 | E73: 北戸田 | F73: 29.4 | G73: 80.5 | H73: 19.6 | I73: 72.9 | J73: 82.7 | K73: 50 | L73: =VLOOKUP($E73,$E:$K,ようこそ!$D$4,0) -> 29.4 | M73: =VLOOKUP($E73,$E:$K,ランキング!$H$1,0) -> 19.6 | N73: =VLOOKUP($E73,$E:$K,ようこそ!$D$5,0) -> 72.9 | O73: =VLOOKUP($E73,$E:$K,ランキング!$K$1,0) -> 50 | P73: =VLOOKUP($E73,$E:$K,ようこそ!$D$4,0)*ようこそ!$H$4+VLOOKUP($E73,$E:$K,ランキング!$H$1,0)*ようこそ!$H$5+VLOOKUP($E73,$E:$K,ようこそ!$D$5,0)*ようこそ!$H$6+VLOOKUP($E73,$E:$K,ランキング!$K$1,0)*ようこそ!$H$7 -> 171.9 | Q73: =_xlfn.PERCENTRANK.INC($P$4:$P$96,P73)*100 -> 25
A74: =A73+1 -> 71 | B74: 首都高4号新宿線 | C74: 高井戸 | D74: 京王井の頭線 | E74: 高井戸 | F74: 30.5 | G74: 92.4 | H74: 65.3 | I74: 20.7 | J74: 19.6 | K74: 50 | L74: =VLOOKUP($E74,$E:$K,ようこそ!$D$4,0) -> 30.5 | M74: =VLOOKUP($E74,$E:$K,ランキング!$H$1,0) -> 65.3 | N74: =VLOOKUP($E74,$E:$K,ようこそ!$D$5,0) -> 20.7 | O74: =VLOOKUP($E74,$E:$K,ランキング!$K$1,0) -> 50 | P74: =VLOOKUP($E74,$E:$K,ようこそ!$D$4,0)*ようこそ!$H$4+VLOOKUP($E74,$E:$K,ランキング!$H$1,0)*ようこそ!$H$5+VLOOKUP($E74,$E:$K,ようこそ!$D$5,0)*ようこそ!$H$6+VLOOKUP($E74,$E:$K,ランキング!$K$1,0)*ようこそ!$H$7 -> 166.5 | Q74: =_xlfn.PERCENTRANK.INC($P$4:$P$96,P74)*100 -> 23.9
A75: =A74+1 -> 72 | B75: 首都高5号池袋線 | C75: 北池袋 | D75: メトロ有楽町線 | E75: 要町 | F75: 79.4 | G75: 96.8 | H75: 49 | I75: 17.4 | J75: 10.9 | K75: 20 | L75: =VLOOKUP($E75,$E:$K,ようこそ!$D$4,0) -> 79.4 | M75: =VLOOKUP($E75,$E:$K,ランキング!$H$1,0) -> 49 | N75: =VLOOKUP($E75,$E:$K,ようこそ!$D$5,0) -> 17.4 | O75: =VLOOKUP($E75,$E:$K,ランキング!$K$1,0) -> 20 | P75: =VLOOKUP($E75,$E:$K,ようこそ!$D$4,0)*ようこそ!$H$4+VLOOKUP($E75,$E:$K,ランキング!$H$1,0)*ようこそ!$H$5+VLOOKUP($E75,$E:$K,ようこそ!$D$5,0)*ようこそ!$H$6+VLOOKUP($E75,$E:$K,ランキング!$K$1,0)*ようこそ!$H$7 -> 165.8 | Q75: =_xlfn.PERCENTRANK.INC($P$4:$P$96,P75)*100 -> 22.8
A76: =A75+1 -> 73 | B76: 首都高K3号狩場線 | C76: 永田 | D76: JR横須賀線 | E76: 保土ヶ谷 | F76: 49 | G76: 56.6 | H76: 4.4 | I76: 91.4 | J76: 63.1 | K76: 20 | L76: =VLOOKUP($E76,$E:$K,ようこそ!$D$4,0) -> 49 | M76: =VLOOKUP($E76,$E:$K,ランキング!$H$1,0) -> 4.4 | N76: =VLOOKUP($E76,$E:$K,ようこそ!$D$5,0) -> 91.4 | O76: =VLOOKUP($E76,$E:$K,ランキング!$K$1,0) -> 20 | P76: =VLOOKUP($E76,$E:$K,ようこそ!$D$4,0)*ようこそ!$H$4+VLOOKUP($E76,$E:$K,ランキング!$H$1,0)*ようこそ!$H$5+VLOOKUP($E76,$E:$K,ようこそ!$D$5,0)*ようこそ!$H$6+VLOOKUP($E76,$E:$K,ランキング!$K$1,0)*ようこそ!$H$7 -> 164.8 | Q76: =_xlfn.PERCENTRANK.INC($P$4:$P$96,P76)*100 -> 21.7
A77: =A76+1 -> 74 | B77: 中央自動車道 | C77: 調布 | D77: 京王線 | E77: 西調布 | F77: 5.5 | G77: 55.5 | H77: 49 | I77: 85.9 | J77: 54.4 | K77: 20 | L77: =VLOOKUP($E77,$E:$K,ようこそ!$D$4,0) -> 5.5 | M77: =VLOOKUP($E77,$E:$K,ランキング!$H$1,0) -> 49 | N77: =VLOOKUP($E77,$E:$K,ようこそ!$D$5,0) -> 85.9 | O77: =VLOOKUP($E77,$E:$K,ランキング!$K$1,0) -> 20 | P77: =VLOOKUP($E77,$E:$K,ようこそ!$D$4,0)*ようこそ!$H$4+VLOOKUP($E77,$E:$K,ランキング!$H$1,0)*ようこそ!$H$5+VLOOKUP($E77,$E:$K,ようこそ!$D$5,0)*ようこそ!$H$6+VLOOKUP($E77,$E:$K,ランキング!$K$1,0)*ようこそ!$H$7 -> 160.4 | Q77: =_xlfn.PERCENTRANK.INC($P$4:$P$96,P77)*100 -> 20.6
A78: =A77+1 -> 75 | B78: 首都高K1号横羽線 | C78: 子安 | D78: JR京浜東北線 | E78: 新子安 | F78: 57.7 | G78: 34.8 | H78: 13.1 | I78: 39.2 | J78: 53.3 | K78: 50 | L78: =VLOOKUP($E78,$E:$K,ようこそ!$D$4,0) -> 57.7 | M78: =VLOOKUP($E78,$E:$K,ランキング!$H$1,0) -> 13.1 | N78: =VLOOKUP($E78,$E:$K,ようこそ!$D$5,0) -> 39.2 | O78: =VLOOKUP($E78,$E:$K,ランキング!$K$1,0) -> 50 | P78: =VLOOKUP($E78,$E:$K,ようこそ!$D$4,0)*ようこそ!$H$4+VLOOKUP($E78,$E:$K,ランキング!$H$1,0)*ようこそ!$H$5+VLOOKUP($E78,$E:$K,ようこそ!$D$5,0)*ようこそ!$H$6+VLOOKUP($E78,$E:$K,ランキング!$K$1,0)*ようこそ!$H$7 -> 160 | Q78: =_xlfn.PERCENTRANK.INC($P$4:$P$96,P78)*100 -> 19.5
A79: =A78+1 -> 76 | B79: 首都高3号渋谷線 | C79: 三軒茶屋 | D79: 東急田園都市線 | E79: 三軒茶屋 | F79: 79.4 | G79: 93.5 | H79: 26.1 | I79: 4.4 | J79: 2.2 | K79: 50 | L79: =VLOOKUP($E79,$E:$K,ようこそ!$D$4,0) -> 79.4 | M79: =VLOOKUP($E79,$E:$K,ランキング!$H$1,0) -> 26.1 | N79: =VLOOKUP($E79,$E:$K,ようこそ!$D$5,0) -> 4.4 | O79: =VLOOKUP($E79,$E:$K,ランキング!$K$1,0) -> 50 | P79: =VLOOKUP($E79,$E:$K,ようこそ!$D$4,0)*ようこそ!$H$4+VLOOKUP($E79,$E:$K,ランキング!$H$1,0)*ようこそ!$H$5+VLOOKUP($E79,$E:$K,ようこそ!$D$5,0)*ようこそ!$H$6+VLOOKUP($E79,$E:$K,ランキング!$K$1,0)*ようこそ!$H$7 -> 159.9 | Q79: =_xlfn.PERCENTRANK.INC($P$4:$P$96,P79)*100 -> 18.4
A80: =A79+1 -> 77 | B80: 首都高4号新宿線 | C80: 永福 | D80: 京王線 | E80: 下高井戸 | F80: 44.6 | G80: 97.9 | H80: 49 | I80: 15.3 | J80: 4.4 | K80: 50 | L80: =VLOOKUP($E80,$E:$K,ようこそ!$D$4,0) -> 44.6 | M80: =VLOOKUP($E80,$E:$K,ランキング!$H$1,0) -> 49 | N80: =VLOOKUP($E80,$E:$K,ようこそ!$D$5,0) -> 15.3 | O80: =VLOOKUP($E80,$E:$K,ランキング!$K$1,0) -> 50 | P80: =VLOOKUP($E80,$E:$K,ようこそ!$D$4,0)*ようこそ!$H$4+VLOOKUP($E80,$E:$K,ランキング!$H$1,0)*ようこそ!$H$5+VLOOKUP($E80,$E:$K,ようこそ!$D$5,0)*ようこそ!$H$6+VLOOKUP($E80,$E:$K,ランキング!$K$1,0)*ようこそ!$H$7 -> 158.9 | Q80: =_xlfn.PERCENTRANK.INC($P$4:$P$96,P80)*100 -> 17.3
A81: =A80+1 -> 78 | B81: 首都高4号新宿線 | C81: 高井戸 | D81: 京王線 | E81: 八幡山 | F81: 28.3 | G81: 94.6 | H81: 49 | I81: 30.5 | J81: 13.1 | K81: 50 | L81: =VLOOKUP($E81,$E:$K,ようこそ!$D$4,0) -> 28.3 | M81: =VLOOKUP($E81,$E:$K,ランキング!$H$1,0) -> 49 | N81: =VLOOKUP($E81,$E:$K,ようこそ!$D$5,0) -> 30.5 | O81: =VLOOKUP($E81,$E:$K,ランキング!$K$1,0) -> 50 | P81: =VLOOKUP($E81,$E:$K,ようこそ!$D$4,0)*ようこそ!$H$4+VLOOKUP($E81,$E:$K,ランキング!$H$1,0)*ようこそ!$H$5+VLOOKUP($E81,$E:$K,ようこそ!$D$5,0)*ようこそ!$H$6+VLOOKUP($E81,$E:$K,ランキング!$K$1,0)*ようこそ!$H$7 -> 157.8 | Q81: =_xlfn.PERCENTRANK.INC($P$4:$P$96,P81)*100 -> 16.3
A82: =A81+1 -> 79 | B82: 首都高1号羽田線 | C82: 羽田 | D82: 京急空港線 | E82: 穴守稲荷 | F82: 41.4 | G82: 41.4 | H82: 82.7 | I82: 13.1 | J82: 33.7 | K82: 20 | L82: =VLOOKUP($E82,$E:$K,ようこそ!$D$4,0) -> 41.4 | M82: =VLOOKUP($E82,$E:$K,ランキング!$H$1,0) -> 82.7 | N82: =VLOOKUP($E82,$E:$K,ようこそ!$D$5,0) -> 13.1 | O82: =VLOOKUP($E82,$E:$K,ランキング!$K$1,0) -> 20 | P82: =VLOOKUP($E82,$E:$K,ようこそ!$D$4,0)*ようこそ!$H$4+VLOOKUP($E82,$E:$K,ランキング!$H$1,0)*ようこそ!$H$5+VLOOKUP($E82,$E:$K,ようこそ!$D$5,0)*ようこそ!$H$6+VLOOKUP($E82,$E:$K,ランキング!$K$1,0)*ようこそ!$H$7 -> 157.2 | Q82: =_xlfn.PERCENTRANK.INC($P$4:$P$96,P82)*100 -> 15.2
A83: =A82+1 -> 80 | B83: 常磐自動車道 | C83: 柏 | D83: つくばエクスプレス | E83: 柏の葉キャンパス | F83: 12 | G83: 4.4 | H83: 38.1 | I83: 6.6 | J83: 15.3 | K83: 100 | L83: =VLOOKUP($E83,$E:$K,ようこそ!$D$4,0) -> 12 | M83: =VLOOKUP($E83,$E:$K,ランキング!$H$1,0) -> 38.1 | N83: =VLOOKUP($E83,$E:$K,ようこそ!$D$5,0) -> 6.6 | O83: =VLOOKUP($E83,$E:$K,ランキング!$K$1,0) -> 100 | P83: =VLOOKUP($E83,$E:$K,ようこそ!$D$4,0)*ようこそ!$H$4+VLOOKUP($E83,$E:$K,ランキング!$H$1,0)*ようこそ!$H$5+VLOOKUP($E83,$E:$K,ようこそ!$D$5,0)*ようこそ!$H$6+VLOOKUP($E83,$E:$K,ランキング!$K$1,0)*ようこそ!$H$7 -> 156.7 | Q83: =_xlfn.PERCENTRANK.INC($P$4:$P$96,P83)*100 -> 14.1
A84: =A83+1 -> 81 | B84: 首都高9号深川線 | C84: 福住 | D84: メトロ東西線 | E84: 門前仲町 | F84: 100 | G84: 85.9 | H84: 3.3 | I84: 1.1 | J84: 3.3 | K84: 50 | L84: =VLOOKUP($E84,$E:$K,ようこそ!$D$4,0) -> 100 | M84: =VLOOKUP($E84,$E:$K,ランキング!$H$1,0) -> 3.3 | N84: =VLOOKUP($E84,$E:$K,ようこそ!$D$5,0) -> 1.1 | O84: =VLOOKUP($E84,$E:$K,ランキング!$K$1,0) -> 50 | P84: =VLOOKUP($E84,$E:$K,ようこそ!$D$4,0)*ようこそ!$H$4+VLOOKUP($E84,$E:$K,ランキング!$H$1,0)*ようこそ!$H$5+VLOOKUP($E84,$E:$K,ようこそ!$D$5,0)*ようこそ!$H$6+VLOOKUP($E84,$E:$K,ランキング!$K$1,0)*ようこそ!$H$7 -> 154.4 | Q84: =_xlfn.PERCENTRANK.INC($P$4:$P$96,P84)*100 -> 13
A85: =A84+1 -> 82 | B85: 首都高川口線 | C85: 鹿浜橋 | D85: 都営日暮里舎人ライナー | E85: 江北 | F85: 66.4 | G85: 54.4 | H85: 10.9 | I85: 55.5 | J85: 26.1 | K85: 20 | L85: =VLOOKUP($E85,$E:$K,ようこそ!$D$4,0) -> 66.4 | M85: =VLOOKUP($E85,$E:$K,ランキング!$H$1,0) -> 10.9 | N85: =VLOOKUP($E85,$E:$K,ようこそ!$D$5,0) -> 55.5 | O85: =VLOOKUP($E85,$E:$K,ランキング!$K$1,0) -> 20 | P85: =VLOOKUP($E85,$E:$K,ようこそ!$D$4,0)*ようこそ!$H$4+VLOOKUP($E85,$E:$K,ランキング!$H$1,0)*ようこそ!$H$5+VLOOKUP($E85,$E:$K,ようこそ!$D$5,0)*ようこそ!$H$6+VLOOKUP($E85,$E:$K,ランキング!$K$1,0)*ようこそ!$H$7 -> 152.8 | Q85: =_xlfn.PERCENTRANK.INC($P$4:$P$96,P85)*100 -> 11.9
A86: =A85+1 -> 83 | B86: 首都高K3号狩場線 | C86: 阪東橋 | D86: 横浜地下鉄ブルーライン | E86: 阪東橋 | F86: 15.3 | G86: 24 | H86: 71.8 | I86: 44.6 | J86: 38.1 | K86: 20 | L86: =VLOOKUP($E86,$E:$K,ようこそ!$D$4,0) -> 15.3 | M86: =VLOOKUP($E86,$E:$K,ランキング!$H$1,0) -> 71.8 | N86: =VLOOKUP($E86,$E:$K,ようこそ!$D$5,0) -> 44.6 | O86: =VLOOKUP($E86,$E:$K,ランキング!$K$1,0) -> 20 | P86: =VLOOKUP($E86,$E:$K,ようこそ!$D$4,0)*ようこそ!$H$4+VLOOKUP($E86,$E:$K,ランキング!$H$1,0)*ようこそ!$H$5+VLOOKUP($E86,$E:$K,ようこそ!$D$5,0)*ようこそ!$H$6+VLOOKUP($E86,$E:$K,ランキング!$K$1,0)*ようこそ!$H$7 -> 151.7 | Q86: =_xlfn.PERCENTRANK.INC($P$4:$P$96,P86)*100 -> 10.8
A87: =A86+1 -> 84 | B87: 首都高川口線 | C87: 足立入谷 | D87: 都営日暮里舎人ライナー | E87: 舎人 | F87: 51.1 | G87: 43.5 | H87: 10.9 | I87: 66.4 | J87: 79.4 | K87: 20 | L87: =VLOOKUP($E87,$E:$K,ようこそ!$D$4,0) -> 51.1 | M87: =VLOOKUP($E87,$E:$K,ランキング!$H$1,0) -> 10.9 | N87: =VLOOKUP($E87,$E:$K,ようこそ!$D$5,0) -> 66.4 | O87: =VLOOKUP($E87,$E:$K,ランキング!$K$1,0) -> 20 | P87: =VLOOKUP($E87,$E:$K,ようこそ!$D$4,0)*ようこそ!$H$4+VLOOKUP($E87,$E:$K,ランキング!$H$1,0)*ようこそ!$H$5+VLOOKUP($E87,$E:$K,ようこそ!$D$5,0)*ようこそ!$H$6+VLOOKUP($E87,$E:$K,ランキング!$K$1,0)*ようこそ!$H$7 -> 148.4 | Q87: =_xlfn.PERCENTRANK.INC($P$4:$P$96,P87)*100 -> 9.7
A88: =A87+1 -> 85 | B88: 京葉道路 | C88: 武石 | D88: JR総武線 | E88: 幕張 | F88: 20.7 | G88: 12 | H88: 7.7 | I88: 69.6 | J88: 94.6 | K88: 50 | L88: =VLOOKUP($E88,$E:$K,ようこそ!$D$4,0) -> 20.7 | M88: =VLOOKUP($E88,$E:$K,ランキング!$H$1,0) -> 7.7 | N88: =VLOOKUP($E88,$E:$K,ようこそ!$D$5,0) -> 69.6 | O88: =VLOOKUP($E88,$E:$K,ランキング!$K$1,0) -> 50 | P88: =VLOOKUP($E88,$E:$K,ようこそ!$D$4,0)*ようこそ!$H$4+VLOOKUP($E88,$E:$K,ランキング!$H$1,0)*ようこそ!$H$5+VLOOKUP($E88,$E:$K,ようこそ!$D$5,0)*ようこそ!$H$6+VLOOKUP($E88,$E:$K,ランキング!$K$1,0)*ようこそ!$H$7 -> 148 | Q88: =_xlfn.PERCENTRANK.INC($P$4:$P$96,P88)*100 -> 8.6
A89: =A88+1 -> 86 | B89: 首都高6号三郷線 | C89: 加平 | D89: つくばエクスプレス | E89: 六町 | F89: 60.9 | G89: 43.5 | H89: 38.1 | I89: 25 | J89: 40.3 | K89: 20 | L89: =VLOOKUP($E89,$E:$K,ようこそ!$D$4,0) -> 60.9 | M89: =VLOOKUP($E89,$E:$K,ランキング!$H$1,0) -> 38.1 | N89: =VLOOKUP($E89,$E:$K,ようこそ!$D$5,0) -> 25 | O89: =VLOOKUP($E89,$E:$K,ランキング!$K$1,0) -> 20 | P89: =VLOOKUP($E89,$E:$K,ようこそ!$D$4,0)*ようこそ!$H$4+VLOOKUP($E89,$E:$K,ランキング!$H$1,0)*ようこそ!$H$5+VLOOKUP($E89,$E:$K,ようこそ!$D$5,0)*ようこそ!$H$6+VLOOKUP($E89,$E:$K,ランキング!$K$1,0)*ようこそ!$H$7 -> 144 | Q89: =_xlfn.PERCENTRANK.INC($P$4:$P$96,P89)*100 -> 7.6
A90: =A89+1 -> 87 | B90: 中央自動車道 | C90: 稲城 | D90: JR南武線 | E90: 稲城長沼 | F90: 5.5 | G90: 60.9 | H90: 15.3 | I90: 93.5 | J90: 74 | K90: 20 | L90: =VLOOKUP($E90,$E:$K,ようこそ!$D$4,0) -> 5.5 | M90: =VLOOKUP($E90,$E:$K,ランキング!$H$1,0) -> 15.3 | N90: =VLOOKUP($E90,$E:$K,ようこそ!$D$5,0) -> 93.5 | O90: =VLOOKUP($E90,$E:$K,ランキング!$K$1,0) -> 20 | P90: =VLOOKUP($E90,$E:$K,ようこそ!$D$4,0)*ようこそ!$H$4+VLOOKUP($E90,$E:$K,ランキング!$H$1,0)*ようこそ!$H$5+VLOOKUP($E90,$E:$K,ようこそ!$D$5,0)*ようこそ!$H$6+VLOOKUP($E90,$E:$K,ランキング!$K$1,0)*ようこそ!$H$7 -> 134.3 | Q90: =_xlfn.PERCENTRANK.INC($P$4:$P$96,P90)*100 -> 6.5
A91: =A90+1 -> 88 | B91: 京葉道路 | C91: 幕張 | D91: JR総武線 | E91: 幕張本郷 | F91: 31.6 | G91: 18.5 | H91: 7.7 | I91: 75 | J91: 77.2 | K91: 20 | L91: =VLOOKUP($E91,$E:$K,ようこそ!$D$4,0) -> 31.6 | M91: =VLOOKUP($E91,$E:$K,ランキング!$H$1,0) -> 7.7 | N91: =VLOOKUP($E91,$E:$K,ようこそ!$D$5,0) -> 75 | O91: =VLOOKUP($E91,$E:$K,ランキング!$K$1,0) -> 20 | P91: =VLOOKUP($E91,$E:$K,ようこそ!$D$4,0)*ようこそ!$H$4+VLOOKUP($E91,$E:$K,ランキング!$H$1,0)*ようこそ!$H$5+VLOOKUP($E91,$E:$K,ようこそ!$D$5,0)*ようこそ!$H$6+VLOOKUP($E91,$E:$K,ランキング!$K$1,0)*ようこそ!$H$7 -> 134.3 | Q91: =_xlfn.PERCENTRANK.INC($P$4:$P$96,P91)*100 -> 5.4
A92: =A91+1 -> 89 | B92: 首都高K1号横羽線 | C92: 東神奈川 | D92: JR京浜東北線 | E92: 東神奈川 | F92: 46.8 | G92: 41.4 | H92: 13.1 | I92: 24 | J92: 30.5 | K92: 50 | L92: =VLOOKUP($E92,$E:$K,ようこそ!$D$4,0) -> 46.8 | M92: =VLOOKUP($E92,$E:$K,ランキング!$H$1,0) -> 13.1 | N92: =VLOOKUP($E92,$E:$K,ようこそ!$D$5,0) -> 24 | O92: =VLOOKUP($E92,$E:$K,ランキング!$K$1,0) -> 50 | P92: =VLOOKUP($E92,$E:$K,ようこそ!$D$4,0)*ようこそ!$H$4+VLOOKUP($E92,$E:$K,ランキング!$H$1,0)*ようこそ!$H$5+VLOOKUP($E92,$E:$K,ようこそ!$D$5,0)*ようこそ!$H$6+VLOOKUP($E92,$E:$K,ランキング!$K$1,0)*ようこそ!$H$7 -> 133.9 | Q92: =_xlfn.PERCENTRANK.INC($P$4:$P$96,P92)*100 -> 4.3
A93: =A92+1 -> 90 | B93: 首都高3号渋谷線 | C93: 池尻 | D93: 東急田園都市線 | E93: 池尻大橋 | F93: 81.6 | G93: 95.7 | H93: 26.1 | I93: 0 | J93: 0 | K93: 20 | L93: =VLOOKUP($E93,$E:$K,ようこそ!$D$4,0) -> 81.6 | M93: =VLOOKUP($E93,$E:$K,ランキング!$H$1,0) -> 26.1 | N93: =VLOOKUP($E93,$E:$K,ようこそ!$D$5,0) -> 0 | O93: =VLOOKUP($E93,$E:$K,ランキング!$K$1,0) -> 20 | P93: =VLOOKUP($E93,$E:$K,ようこそ!$D$4,0)*ようこそ!$H$4+VLOOKUP($E93,$E:$K,ランキング!$H$1,0)*ようこそ!$H$5+VLOOKUP($E93,$E:$K,ようこそ!$D$5,0)*ようこそ!$H$6+VLOOKUP($E93,$E:$K,ランキング!$K$1,0)*ようこそ!$H$7 -> 127.7 | Q93: =_xlfn.PERCENTRANK.INC($P$4:$P$96,P93)*100 -> 3.2
A94: =A93+1 -> 91 | B94: 東名高速道路 | C94: 横浜青葉 | D94: 東急田園都市線 | E94: 市が尾 | F94: 3.3 | G94: 16.4 | H94: 26.1 | I94: 38.1 | J94: 51.1 | K94: 50 | L94: =VLOOKUP($E94,$E:$K,ようこそ!$D$4,0) -> 3.3 | M94: =VLOOKUP($E94,$E:$K,ランキング!$H$1,0) -> 26.1 | N94: =VLOOKUP($E94,$E:$K,ようこそ!$D$5,0) -> 38.1 | O94: =VLOOKUP($E94,$E:$K,ランキング!$K$1,0) -> 50 | P94: =VLOOKUP($E94,$E:$K,ようこそ!$D$4,0)*ようこそ!$H$4+VLOOKUP($E94,$E:$K,ランキング!$H$1,0)*ようこそ!$H$5+VLOOKUP($E94,$E:$K,ようこそ!$D$5,0)*ようこそ!$H$6+VLOOKUP($E94,$E:$K,ランキング!$K$1,0)*ようこそ!$H$7 -> 117.5 | Q94: =_xlfn.PERCENTRANK.INC($P$4:$P$96,P94)*100 -> 2.1
A95: =A94+1 -> 92 | B95: 東名高速道路 | C95: 東名川崎 | D95: 東急田園都市線 | E95: 宮前平 | F95: 13.1 | G95: 32.7 | H95: 26.1 | I95: 28.3 | J95: 42.4 | K95: 50 | L95: =VLOOKUP($E95,$E:$K,ようこそ!$D$4,0) -> 13.1 | M95: =VLOOKUP($E95,$E:$K,ランキング!$H$1,0) -> 26.1 | N95: =VLOOKUP($E95,$E:$K,ようこそ!$D$5,0) -> 28.3 | O95: =VLOOKUP($E95,$E:$K,ランキング!$K$1,0) -> 50 | P95: =VLOOKUP($E95,$E:$K,ようこそ!$D$4,0)*ようこそ!$H$4+VLOOKUP($E95,$E:$K,ランキング!$H$1,0)*ようこそ!$H$5+VLOOKUP($E95,$E:$K,ようこそ!$D$5,0)*ようこそ!$H$6+VLOOKUP($E95,$E:$K,ランキング!$K$1,0)*ようこそ!$H$7 -> 117.5 | Q95: =_xlfn.PERCENTRANK.INC($P$4:$P$96,P95)*100 -> 1
A96: =A95+1 -> 93 | B96: 中央自動車道 | C96: 国立府中 | D96: JR南武線 | E96: 谷保 | F96: 0 | G96: 35.9 | H96: 15.3 | I96: 81.6 | J96: 65.3 | K96: 20 | L96: =VLOOKUP($E96,$E:$K,ようこそ!$D$4,0) -> 0 | M96: =VLOOKUP($E96,$E:$K,ランキング!$H$1,0) -> 15.3 | N96: =VLOOKUP($E96,$E:$K,ようこそ!$D$5,0) -> 81.6 | O96: =VLOOKUP($E96,$E:$K,ランキング!$K$1,0) -> 20 | P96: =VLOOKUP($E96,$E:$K,ようこそ!$D$4,0)*ようこそ!$H$4+VLOOKUP($E96,$E:$K,ランキング!$H$1,0)*ようこそ!$H$5+VLOOKUP($E96,$E:$K,ようこそ!$D$5,0)*ようこそ!$H$6+VLOOKUP($E96,$E:$K,ランキング!$K$1,0)*ようこそ!$H$7 -> 116.9 | Q96: =_xlfn.PERCENTRANK.INC($P$4:$P$96,P96)*100 -> 0

Sheet 所要時間
F2: 東京駅周辺到着 | I2: 新宿駅周辺到着 | L2: 東京駅周辺到着所要時間 | O2: 新宿駅周辺到着所要時間 | R2: 平均所要時間（分） | T2: 所要時間点数
A3: 0 | B3: 道路名 | C3: IC名 | D3: 鉄道路線 | E3: 駅名 | F3: 8時着 | G3: 8時半着 | H3: 9時着 | I3: 8時着 | J3: 8時半着 | K3: 9時着 | L3: 8時着 | M3: 8時半着 | N3: 9時着 | O3: 8時着 | P3: 8時半着 | Q3: 9時着 | R3: 東京 | S3: 新宿 | T3: 東京 | U3: 新宿
A4: =A3+1 -> 1 | B4: 首都高中央環状線 | C4: 中野長者橋 | D4: メトロ丸ノ内線 | E4: 中野坂上 | F4: 07:37:00 | G4: 08:07:00 | H4: 08:35:00 | I4: 07:56:00 | J4: 08:26:00 | K4: 08:55:00 | L4: 23 | M4: 23 | N4: 25 | O4: 4 | P4: 4 | Q4: 5 | R4: 23.66666667 | S4: 4.333333333 | T4: 83.7 | U4: 100
A5: 2 | B5: 首都高4号新宿線 | C5: 幡ヶ谷 | D5: 京王新線 | E5: 幡ヶ谷 | F5: 07:31:00 | G5: 08:05:00 | H5: 08:34:00 | I5: 07:53:00 | J5: 08:23:00 | K5: 08:55:00 | L5: 29 | M5: 25 | N5: 26 | O5: 7 | P5: 7 | Q5: 5 | R5: 26.66666667 | S5: 6.333333333 | T5: 77.2 | U5: 99
A6: 3 | B6: 首都高4号新宿線 | C6: 永福 | D6: 京王線 | E6: 下高井戸 | F6: 07:20:00 | G6: 07:53:00 | H6: 08:18:00 | I6: 07:46:00 | J6: 08:11:00 | K6: 08:47:00 | L6: 40 | M6: 37 | N6: 42 | O6: 14 | P6: 19 | Q6: 13 | R6: 39.66666667 | S6: 15.33333333 | T6: 44.6 | U6: 97.9
A7: 4 | B7: 首都高5号池袋線 | C7: 北池袋 | D7: メトロ有楽町線 | E7: 要町 | F7: 07:32:00 | G7: 08:06:00 | H7: 08:33:00 | I7: 07:45:00 | J7: 08:13:00 | K7: 08:42:00 | L7: 28 | M7: 24 | N7: 27 | O7: 15 | P7: 17 | Q7: 18 | R7: 26.33333333 | S7: 16.66666667 | T7: 79.4 | U7: 96.8
A8: 5 | B8: 首都高3号渋谷線 | C8: 池尻 | D8: 東急田園都市線 | E8: 池尻大橋 | F8: 07:34:00 | G8: 08:08:00 | H8: 08:36:00 | I8: 07:41:00 | J8: 08:08:00 | K8: 08:36:00 | L8: 26 | M8: 22 | N8: 24 | O8: 19 | P8: 22 | Q8: 24 | R8: 24 | S8: 21.66666667 | T8: 81.6 | U8: 95.7
A9: 6 | B9: 首都高4号新宿線 | C9: 高井戸 | D9: 京王線 | E9: 八幡山 | F9: 07:15:00 | G9: 07:46:00 | H9: 08:12:00 | I9: 07:40:00 | J9: 08:05:00 | K9: 08:39:00 | L9: 45 | M9: 44 | N9: 48 | O9: 20 | P9: 25 | Q9: 21 | R9: 45.66666667 | S9: 22 | T9: 28.3 | U9: 94.6
A10: 7 | B10: 首都高3号渋谷線 | C10: 三軒茶屋 | D10: 東急田園都市線 | E10: 三軒茶屋 | F10: 07:32:00 | G10: 08:06:00 | H10: 08:33:00 | I10: 07:39:00 | J10: 08:06:00 | K10: 08:33:00 | L10: 28 | M10: 24 | N10: 27 | O10: 21 | P10: 24 | Q10: 27 | R10: 26.33333333 | S10: 24 | T10: 79.4 | U10: 93.5
A11: 8 | B11: 首都高7号小松川線 | C11: 錦糸町 | D11: JR総武線 | E11: 錦糸町 | F11: 07:48:00 | G11: 08:20:00 | H11: 08:46:00 | I11: 07:36:00 | J11: 08:08:00 | K11: 08:34:00 | L11: 12 | M11: 10 | N11: 14 | O11: 24 | P11: 22 | Q11: 26 | R11: 12 | S11: 24 | T11: 95.7 | U11: 92.4
A12: 9 | B12: 首都高4号新宿線 | C12: 高井戸 | D12: 京王井の頭線 | E12: 高井戸 | F12: 07:16:00 | G12: 07:45:00 | H12: 08:13:00 | I12: 07:36:00 | J12: 08:06:00 | K12: 08:36:00 | L12: 44 | M12: 45 | N12: 47 | O12: 24 | P12: 24 | Q12: 24 | R12: 45.33333333 | S12: 24 | T12: 30.5 | U12: 92.4
A13: 10 | B13: 首都高7号小松川線 | C13: 錦糸町 | D13: 都営新宿線 | E13: 住吉 | F13: 07:51:00 | G13: 08:21:00 | H13: 08:50:00 | I13: 07:35:00 | J13: 08:05:00 | K13: 08:36:00 | L13: 9 | M13: 9 | N13: 10 | O13: 25 | P13: 25 | Q13: 24 | R13: 9.333333333 | S13: 24.66666667 | T13: 99 | U13: 90.3
A14: 11 | B14: 首都高2号目黒線 | C14: 戸越 | D14: 都営浅草線 | E14: 戸越 | F14: 07:36:00 | G14: 08:06:00 | H14: 08:39:00 | I14: 07:36:00 | J14: 08:06:00 | K14: 08:33:00 | L14: 24 | M14: 24 | N14: 21 | O14: 24 | P14: 24 | Q14: 27 | R14: 23 | S14: 25 | T14: 85.9 | U14: 89.2
A15: 12 | B15: 首都高中央環状線 | C15: 王子北 | D15: JR京浜東北線 | E15: 王子 | F15: 07:36:00 | G15: 08:09:00 | H15: 08:37:00 | I15: 07:33:00 | J15: 08:04:00 | K15: 08:34:00 | L15: 24 | M15: 21 | N15: 23 | O15: 27 | P15: 26 | Q15: 26 | R15: 22.66666667 | S15: 26.33333333 | T15: 89.2 | U15: 88.1
A16: 13 | B16: 首都高5号池袋線 | C16: 板橋本町 | D16: 都営三田線 | E16: 板橋本町 | F16: 07:37:00 | G16: 08:08:00 | H16: 08:37:00 | I16: 07:37:00 | J16: 07:58:00 | K16: 08:30:00 | L16: 23 | M16: 22 | N16: 23 | O16: 23 | P16: 32 | Q16: 30 | R16: 22.66666667 | S16: 28.33333333 | T16: 89.2 | U16: 87
A17: 14 | B17: 首都高9号深川線 | C17: 福住 | D17: メトロ東西線 | E17: 門前仲町 | F17: 07:52:00 | G17: 08:23:00 | H17: 08:51:00 | I17: 07:32:00 | J17: 07:59:00 | K17: 08:32:00 | L17: 8 | M17: 7 | N17: 9 | O17: 28 | P17: 31 | Q17: 28 | R17: 8 | S17: 29 | T17: 100 | U17: 85.9
A18: 15 | B18: 首都高5号池袋線 | C18: 戸田南 | D18: JR埼京線 | E18: 戸田 | F18: 07:18:00 | G18: 07:47:00 | H18: 08:15:00 | I18: 07:29:00 | J18: 08:01:00 | K18: 08:31:00 | L18: 42 | M18: 43 | N18: 45 | O18: 31 | P18: 29 | Q18: 29 | R18: 43.33333333 | S18: 29.66666667 | T18: 33.7 | U18: 84.8
A19: 16 | B19: 首都高中央環状線 | C19: 平井大橋 | D19: JR総武線 | E19: 平井 | F19: 07:38:00 | G19: 08:09:00 | H19: 08:35:00 | I19: 07:30:00 | J19: 08:02:00 | K19: 08:29:00 | L19: 22 | M19: 21 | N19: 25 | O19: 30 | P19: 28 | Q19: 31 | R19: 22.66666667 | S19: 29.66666667 | T19: 89.2 | U19: 83.7
A20: 17 | B20: 首都高中央環状線 | C20: 船堀橋 | D20: 都営新宿線 | E20: 東大島 | F20: 07:28:00 | G20: 08:03:00 | H20: 08:34:00 | I20: 07:28:00 | J20: 07:59:00 | K20: 08:30:00 | L20: 32 | M20: 27 | N20: 26 | O20: 32 | P20: 31 | Q20: 30 | R20: 28.33333333 | S20: 31 | T20: 75 | U20: 82.7
A21: 18 | B21: 外環道 | C21: 和光 | D21: メトロ有楽町線 | E21: 和光市 | F21: 07:16:00 | G21: 07:48:00 | H21: 08:16:00 | I21: 07:29:00 | J21: 07:59:00 | K21: 08:28:00 | L21: 44 | M21: 42 | N21: 44 | O21: 31 | P21: 31 | Q21: 32 | R21: 43.33333333 | S21: 31.33333333 | T21: 37 | U21: 81.6
A22: 19 | B22: 首都高9号深川線 | C22: 木場 | D22: メトロ東西線 | E22: 木場 | F22: 07:50:00 | G22: 08:20:00 | H22: 08:48:00 | I22: 07:29:00 | J22: 07:57:00 | K22: 08:29:00 | L22: 10 | M22: 10 | N22: 12 | O22: 31 | P22: 33 | Q22: 31 | R22: 10.66666667 | S22: 31.66666667 | T22: 97.9 | U22: 80.5
A23: 20 | B23: 外環道 | C23: 戸田東 | D23: JR埼京線 | E23: 北戸田 | F23: 07:16:00 | G23: 07:44:00 | H23: 08:13:00 | I23: 07:27:00 | J23: 07:59:00 | K23: 08:29:00 | L23: 44 | M23: 46 | N23: 47 | O23: 33 | P23: 31 | Q23: 31 | R23: 45.66666667 | S23: 31.66666667 | T23: 29.4 | U23: 80.5
A24: 21 | B24: 首都高中央環状線 | C24: 平井大橋 | D24: JR総武線 | E24: 新小岩 | F24: 07:43:00 | G24: 08:14:00 | H24: 08:41:00 | I24: 07:27:00 | J24: 07:59:00 | K24: 08:26:00 | L24: 17 | M24: 16 | N24: 19 | O24: 33 | P24: 31 | Q24: 34 | R24: 17.33333333 | S24: 32.66666667 | T24: 94.6 | U24: 78.3
A25: 22 | B25: 外環道 | C25: 川口西 | D25: JR京浜東北線 | E25: 蕨 | F25: 07:26:00 | G25: 07:56:00 | H25: 08:22:00 | I25: 07:28:00 | J25: 07:56:00 | K25: 08:27:00 | L25: 34 | M25: 34 | N25: 38 | O25: 32 | P25: 34 | Q25: 33 | R25: 35.33333333 | S25: 33 | T25: 58.7 | U25: 77.2
A26: 23 | B26: 首都高3号渋谷線 | C26: 用賀 | D26: 東急田園都市線 | E26: 用賀 | F26: 07:21:00 | G26: 07:57:00 | H26: 08:23:00 | I26: 07:30:00 | J26: 07:57:00 | K26: 08:23:00 | L26: 39 | M26: 33 | N26: 37 | O26: 30 | P26: 33 | Q26: 37 | R26: 36.33333333 | S26: 33.33333333 | T26: 56.6 | U26: 76.1
A27: 24 | B27: 首都高中央環状線 | C27: 船堀橋 | D27: 都営新宿線 | E27: 船堀 | F27: 07:26:00 | G27: 08:00:00 | H27: 08:31:00 | I27: 07:26:00 | J27: 07:56:00 | K27: 08:27:00 | L27: 34 | M27: 30 | N27: 29 | O27: 34 | P27: 34 | Q27: 33 | R27: 31 | S27: 33.66666667 | T27: 68.5 | U27: 75
A28: 25 | B28: 首都高5号池袋線 | C28: 中台 | D28: 都営三田線 | E28: 志村三丁目 | F28: 07:31:00 | G28: 08:02:00 | H28: 08:32:00 | I28: 07:31:00 | J28: 07:53:00 | K28: 08:24:00 | L28: 29 | M28: 28 | N28: 28 | O28: 29 | P28: 37 | Q28: 36 | R28: 28.33333333 | S28: 34 | T28: 74 | U28: 74
A29: 26 | B29: 首都高6号向島線 | C29: 駒形 | D29: 都営浅草線 | E29: 本所吾妻橋 | F29: 07:49:00 | G29: 08:19:00 | H29: 08:50:00 | I29: 07:24:00 | J29: 07:57:00 | K29: 08:27:00 | L29: 11 | M29: 11 | N29: 10 | O29: 36 | P29: 33 | Q29: 33 | R29: 10.66666667 | S29: 34 | T29: 96.8 | U29: 72.9
A30: 27 | B30: 首都高中央環状線 | C30: 千住新橋 | D30: JR常磐線 | E30: 北千住 | F30: 07:36:00 | G30: 08:09:00 | H30: 08:34:00 | I30: 07:27:00 | J30: 07:57:00 | K30: 08:22:00 | L30: 24 | M30: 21 | N30: 26 | O30: 33 | P30: 33 | Q30: 38 | R30: 23.66666667 | S30: 34.66666667 | T30: 82.7 | U30: 71.8
A31: 28 | B31: 首都高7号小松川線 | C31: 一之江 | D31: 都営新宿線 | E31: 一之江 | F31: 07:24:00 | G31: 07:57:00 | H31: 08:29:00 | I31: 07:24:00 | J31: 07:54:00 | K31: 08:25:00 | L31: 36 | M31: 33 | N31: 31 | O31: 36 | P31: 36 | Q31: 35 | R31: 33.33333333 | S31: 35.66666667 | T31: 62 | U31: 70.7
A32: 29 | B32: 首都高S大宮線 | C32: 浦和南 | D32: JR埼京線 | E32: 南与野 | F32: 07:09:00 | G32: 07:43:00 | H32: 08:07:00 | I32: 07:23:00 | J32: 07:51:00 | K32: 08:28:00 | L32: 51 | M32: 47 | N32: 53 | O32: 37 | P32: 39 | Q32: 32 | R32: 50.33333333 | S32: 36 | T32: 16.4 | U32: 69.6
A33: 30 | B33: 首都高S新都心線 | C33: 新都心 | D33: JR上野東京ライン | E33: さいたま新都心 | F33: 07:26:00 | G33: 07:56:00 | H33: 08:23:00 | I33: 07:26:00 | J33: 07:50:00 | K33: 08:23:00 | L33: 34 | M33: 34 | N33: 37 | O33: 34 | P33: 40 | Q33: 37 | R33: 35 | S33: 37 | T33: 59.8 | U33: 68.5
A34: 31 | B34: 外環道 | C34: 外環浦和 | D34: JR京浜東北線 | E34: 南浦和 | F34: 07:22:00 | G34: 07:52:00 | H34: 08:18:00 | I34: 07:24:00 | J34: 07:52:00 | K34: 08:23:00 | L34: 38 | M34: 38 | N34: 42 | O34: 36 | P34: 38 | Q34: 37 | R34: 39.33333333 | S34: 37 | T34: 46.8 | U34: 68.5
A35: 32 | B35: 首都高1号羽田線 | C35: 勝島 | D35: 京急本線 | E35: 立会川 | F35: 07:33:00 | G35: 08:04:00 | H35: 08:28:00 | I35: 07:25:00 | J35: 07:55:00 | K35: 08:19:00 | L35: 27 | M35: 26 | N35: 32 | O35: 35 | P35: 35 | Q35: 41 | R35: 28.33333333 | S35: 37 | T35: 74 | U35: 66.4
A36: =A35+1 -> 33 | B36: 首都高1号羽田線 | C36: 平和島 | D36: 京急本線 | E36: 平和島 | F36: 07:34:00 | G36: 08:02:00 | H36: 08:29:00 | I36: 07:24:00 | J36: 07:53:00 | K36: 08:19:00 | L36: 26 | M36: 28 | N36: 31 | O36: 36 | P36: 37 | Q36: 41 | R36: 28.33333333 | S36: 38 | T36: 71.8 | U36: 65.3
A37: 34 | B37: 首都高中央環状線 | C37: 扇大橋 | D37: 都営日暮里舎人ライナー | E37: 扇大橋 | F37: 07:32:00 | G37: 08:02:00 | H37: 08:32:00 | I37: 07:22:00 | J37: 07:52:00 | K37: 08:22:00 | L37: 28 | M37: 28 | N37: 28 | O37: 38 | P37: 38 | Q37: 38 | R37: 28 | S37: 38 | T37: 76.1 | U37: 64.2
A38: 35 | B38: 首都高中央環状線 | C38: 清新町 | D38: メトロ東西線 | E38: 西葛西 | F38: 07:40:00 | G38: 08:10:00 | H38: 08:41:00 | I38: 07:21:00 | J38: 07:49:00 | K38: 08:20:00 | L38: 20 | M38: 20 | N38: 19 | O38: 39 | P38: 41 | Q38: 40 | R38: 19.66666667 | S38: 40 | T38: 91.4 | U38: 63.1
A39: 36 | B39: 外環道 | C39: 市川中央 | D39: JR総武線 | E39: 市川 | F39: 07:37:00 | G39: 08:08:00 | H39: 08:35:00 | I39: 07:20:00 | J39: 07:51:00 | K39: 08:19:00 | L39: 23 | M39: 22 | N39: 25 | O39: 40 | P39: 39 | Q39: 41 | R39: 23.33333333 | S39: 40 | T39: 84.8 | U39: 62
A40: 37 | B40: 中央自動車道 | C40: 稲城 | D40: JR南武線 | E40: 稲城長沼 | F40: 07:01:00 | G40: 07:31:00 | H40: 07:58:00 | I40: 07:18:00 | J40: 07:55:00 | K40: 08:16:00 | L40: 59 | M40: 59 | N40: 62 | O40: 42 | P40: 35 | Q40: 44 | R40: 60 | S40: 40.33333333 | T40: 5.5 | U40: 60.9
A41: 38 | B41: 首都高S新都心線 | C41: 新都心西 | D41: JR埼京線 | E41: 北与野 | F41: 07:12:00 | G41: 07:39:00 | H41: 08:08:00 | I41: 07:19:00 | J41: 07:47:00 | K41: 08:23:00 | L41: 48 | M41: 51 | N41: 52 | O41: 41 | P41: 43 | Q41: 37 | R41: 50.33333333 | S41: 40.33333333 | T41: 15.3 | U41: 59.8
A42: 39 | B42: 首都高6号向島線 | C42: 向島 | D42: 東武スカイツリーライン | E42: 曳舟 | F42: 07:40:00 | G42: 08:13:00 | H42: 08:39:00 | I42: 07:19:00 | J42: 07:52:00 | K42: 08:17:00 | L42: 20 | M42: 17 | N42: 21 | O42: 41 | P42: 38 | Q42: 43 | R42: 19.33333333 | S42: 40.66666667 | T42: 92.4 | U42: 58.7
A43: 40 | B43: 首都高7号小松川線 | C43: 篠崎 | D43: 都営新宿線 | E43: 篠崎 | F43: 07:18:00 | G43: 07:52:00 | H43: 08:24:00 | I43: 07:18:00 | J43: 07:49:00 | K43: 08:20:00 | L43: 42 | M43: 38 | N43: 36 | O43: 42 | P43: 41 | Q43: 40 | R43: 38.66666667 | S43: 41 | T43: 52.2 | U43: 57.7
A44: 41 | B44: 首都高K3号狩場線 | C44: 永田 | D44: JR横須賀線 | E44: 保土ヶ谷 | F44: 07:23:00 | G44: 07:53:00 | H44: 08:16:00 | I44: 07:20:00 | J44: 07:49:00 | K44: 08:16:00 | L44: 37 | M44: 37 | N44: 44 | O44: 40 | P44: 41 | Q44: 44 | R44: 39.33333333 | S44: 41.66666667 | T44: 49 | U44: 56.6
A45: 42 | B45: 中央自動車道 | C45: 調布 | D45: 京王線 | E45: 西調布 | F45: 07:04:00 | G45: 07:29:00 | H45: 07:57:00 | I45: 07:17:00 | J45: 07:49:00 | K45: 08:19:00 | L45: 56 | M45: 61 | N45: 63 | O45: 43 | P45: 41 | Q45: 41 | R45: 60 | S45: 41.66666667 | T45: 5.5 | U45: 55.5
A46: 43 | B46: 首都高川口線 | C46: 鹿浜橋 | D46: 都営日暮里舎人ライナー | E46: 江北 | F46: 07:28:00 | G46: 07:58:00 | H46: 08:28:00 | I46: 07:18:00 | J46: 07:48:00 | K46: 08:18:00 | L46: 32 | M46: 32 | N46: 32 | O46: 42 | P46: 42 | Q46: 42 | R46: 32 | S46: 42 | T46: 66.4 | U46: 54.4
A47: 44 | B47: 首都高1号羽田線 | C47: 鈴ヶ森 | D47: 京急本線 | E47: 大森海岸 | F47: 07:21:00 | G47: 07:55:00 | H47: 08:17:00 | I47: 07:21:00 | J47: 07:46:00 | K47: 08:17:00 | L47: 39 | M47: 35 | N47: 43 | O47: 39 | P47: 44 | Q47: 43 | R47: 39 | S47: 42 | T47: 51.1 | U47: 53.3
A48: 45 | B48: 外環道 | C48: 松戸 | D48: 北総線 | E48: 北国分 | F48: 07:19:00 | G48: 07:48:00 | H48: 08:18:00 | I48: 06:54:00 | J48: 08:28:00 | K48: 07:59:00 | L48: 41 | M48: 42 | N48: 42 | O48: 66 | P48: 2 | Q48: 61 | R48: 41.66666667 | S48: 43 | T48: 40.3 | U48: 52.2
A49: 46 | B49: 首都高中央環状線 | C49: 四つ木 | D49: 京成押上線 | E49: 四ツ木 | F49: 07:38:00 | G49: 08:09:00 | H49: 08:39:00 | I49: 07:15:00 | J49: 07:49:00 | K49: 08:15:00 | L49: 22 | M49: 21 | N49: 21 | O49: 45 | P49: 41 | Q49: 45 | R49: 21.33333333 | S49: 43.66666667 | T49: 90.3 | U49: 51.1
A50: 47 | B50: 首都高5号池袋線 | C50: 高島平 | D50: 都営三田線 | E50: 西高島平 | F50: 07:22:00 | G50: 07:53:00 | H50: 08:22:00 | I50: 07:22:00 | J50: 07:43:00 | K50: 08:14:00 | L50: 38 | M50: 37 | N50: 38 | O50: 38 | P50: 47 | Q50: 46 | R50: 37.66666667 | S50: 43.66666667 | T50: 54.4 | U50: 50
A51: 48 | B51: 京葉道路 | C51: 京葉市川 | D51: 都営新宿線 | E51: 本八幡 | F51: 07:15:00 | G51: 07:49:00 | H51: 08:20:00 | I51: 07:15:00 | J51: 07:45:00 | K51: 08:16:00 | L51: 45 | M51: 41 | N51: 40 | O51: 45 | P51: 45 | Q51: 44 | R51: 42 | S51: 44.66666667 | T51: 39.2 | U51: 49
A52: 49 | B52: 外環道 | C52: 三郷南 | D52: JR常磐線 | E52: 松戸 | F52: 07:29:00 | G52: 07:58:00 | H52: 08:26:00 | I52: 07:15:00 | J52: 07:47:00 | K52: 08:12:00 | L52: 31 | M52: 32 | N52: 34 | O52: 45 | P52: 43 | Q52: 48 | R52: 32.33333333 | S52: 45.33333333 | T52: 64.2 | U52: 47.9
A53: 50 | B53: 京葉道路 | C53: 船橋 | D53: JR総武線 | E53: 船橋 | F53: 07:31:00 | G53: 08:02:00 | H53: 08:29:00 | I53: 07:14:00 | J53: 07:45:00 | K53: 08:12:00 | L53: 29 | M53: 28 | N53: 31 | O53: 46 | P53: 45 | Q53: 48 | R53: 29.33333333 | S53: 46.33333333 | T53: 70.7 | U53: 46.8
A54: 51 | B54: 首都高川口線 | C54: 新郷 | D54: 埼玉高速鉄道 | E54: 鳩ヶ谷 | F54: 07:13:00 | G54: 07:46:00 | H54: 08:09:00 | I54: 07:13:00 | J54: 07:46:00 | K54: 08:09:00 | L54: 47 | M54: 44 | N54: 51 | O54: 47 | P54: 44 | Q54: 51 | R54: 47.33333333 | S54: 47.33333333 | T54: 24 | U54: 45.7
A55: 52 | B55: 京葉道路 | C55: 原木 | D55: メトロ東西線 | E55: 西船橋 | F55: 07:19:00 | G55: 07:49:00 | H55: 08:24:00 | I55: 07:11:00 | J55: 07:44:00 | K55: 08:11:00 | L55: 41 | M55: 41 | N55: 36 | O55: 49 | P55: 46 | Q55: 49 | R55: 39.33333333 | S55: 48 | T55: 47.9 | U55: 44.6
A56: 53 | B56: 首都高中央環状線 | C56: 小菅 | D56: 京成本線 | E56: 堀切菖蒲園 | F56: 07:32:00 | G56: 07:59:00 | H56: 08:28:00 | I56: 07:12:00 | J56: 07:42:00 | K56: 08:12:00 | L56: 28 | M56: 31 | N56: 32 | O56: 48 | P56: 48 | Q56: 48 | R56: 30.33333333 | S56: 48 | T56: 69.6 | U56: 43.5
A57: 54 | B57: 首都高6号三郷線 | C57: 加平 | D57: つくばエクスプレス | E57: 六町 | F57: 07:24:00 | G57: 07:56:00 | H57: 08:27:00 | I57: 07:12:00 | J57: 07:42:00 | K57: 08:09:00 | L57: 36 | M57: 34 | N57: 33 | O57: 48 | P57: 48 | Q57: 51 | R57: 34.33333333 | S57: 49 | T57: 60.9 | U57: 42.4
A58: 55 | B58: 首都高川口線 | C58: 足立入谷 | D58: 都営日暮里舎人ライナー | E58: 舎人 | F58: 07:21:00 | G58: 07:51:00 | H58: 08:21:00 | I58: 07:11:00 | J58: 07:41:00 | K58: 08:11:00 | L58: 39 | M58: 39 | N58: 39 | O58: 49 | P58: 49 | Q58: 49 | R58: 39 | S58: 49 | T58: 51.1 | U58: 42.4
A59: 56 | B59: 首都高K1号横羽線 | C59: 東神奈川 | D59: JR京浜東北線 | E59: 東神奈川 | F59: 07:23:00 | G59: 07:50:00 | H59: 08:19:00 | I59: 07:14:00 | J59: 07:42:00 | K59: 08:06:00 | L59: 37 | M59: 40 | N59: 41 | O59: 46 | P59: 48 | Q59: 54 | R59: 39.33333333 | S59: 49.33333333 | T59: 46.8 | U59: 40.3
A60: 57 | B60: 首都高1号羽田線 | C60: 羽田 | D60: 京急空港線 | E60: 穴守稲荷 | F60: 07:21:00 | G60: 07:51:00 | H60: 08:15:00 | I60: 07:12:00 | J60: 07:42:00 | K60: 08:08:00 | L60: 39 | M60: 39 | N60: 45 | O60: 48 | P60: 48 | Q60: 52 | R60: 41 | S60: 49.33333333 | T60: 41.4 | U60: 40.3
A61: 58 | B61: 首都高6号向島線 | C61: 堤通 | D61: 東武スカイツリーライン | E61: 鐘ヶ淵 | F61: 07:33:00 | G61: 07:59:00 | H61: 08:25:00 | I61: 07:13:00 | J61: 07:45:00 | K61: 08:04:00 | L61: 27 | M61: 31 | N61: 35 | O61: 47 | P61: 45 | Q61: 56 | R61: 31 | S61: 49.33333333 | T61: 67.4 | U61: 38.1
A62: 59 | B62: 首都高湾岸線 | C62: 葛西 | D62: JR京葉線 | E62: 葛西臨海公園 | F62: 07:43:00 | G62: 08:09:00 | H62: 08:42:00 | I62: 07:09:00 | J62: 07:43:00 | K62: 08:09:00 | L62: 17 | M62: 21 | N62: 18 | O62: 51 | P62: 47 | Q62: 51 | R62: 18.66666667 | S62: 49.66666667 | T62: 93.5 | U62: 37
A63: 60 | B63: 首都高川口線 | C63: 新井宿 | D63: 埼玉高速鉄道 | E63: 新井宿 | F63: 07:10:00 | G63: 07:43:00 | H63: 08:07:00 | I63: 07:10:00 | J63: 07:43:00 | K63: 08:07:00 | L63: 50 | M63: 47 | N63: 53 | O63: 50 | P63: 47 | Q63: 53 | R63: 50 | S63: 50 | T63: 17.4 | U63: 35.9
A64: 61 | B64: 中央自動車道 | C64: 国立府中 | D64: JR南武線 | E64: 谷保 | F64: 06:47:00 | G64: 07:17:00 | H64: 07:47:00 | I64: 07:05:00 | J64: 07:43:00 | K64: 08:12:00 | L64: 73 | M64: 73 | N64: 73 | O64: 55 | P64: 47 | Q64: 48 | R64: 73 | S64: 50 | T64: 0 | U64: 34.8
A65: 62 | B65: 首都高K1号横羽線 | C65: 子安 | D65: JR京浜東北線 | E65: 新子安 | F65: 07:26:00 | G65: 07:53:00 | H65: 08:22:00 | I65: 07:11:00 | J65: 07:39:00 | K65: 08:09:00 | L65: 34 | M65: 37 | N65: 38 | O65: 49 | P65: 51 | Q65: 51 | R65: 36.33333333 | S65: 50.33333333 | T65: 57.7 | U65: 33.7
A66: 63 | B66: 首都高6号三郷線 | C66: 加平 | D66: メトロ千代田線 | E66: 北綾瀬 | F66: 07:28:00 | G66: 07:58:00 | H66: 08:28:00 | I66: 07:15:00 | J66: 07:38:00 | K66: 08:06:00 | L66: 32 | M66: 32 | N66: 32 | O66: 45 | P66: 52 | Q66: 54 | R66: 32 | S66: 50.33333333 | T66: 66.4 | U66: 32.7
A67: 64 | B67: 東名高速道路 | C67: 東名川崎 | D67: 東急田園都市線 | E67: 宮前平 | F67: 07:13:00 | G67: 07:39:00 | H67: 08:05:00 | I67: 07:13:00 | J67: 07:39:00 | K67: 08:05:00 | L67: 47 | M67: 51 | N67: 55 | O67: 47 | P67: 51 | Q67: 55 | R67: 51 | S67: 51 | T67: 13.1 | U67: 31.6
A68: =A67+1 -> 65 | B68: 首都高6号三郷線 | C68: 八潮 | D68: つくばエクスプレス | E68: 八潮 | F68: 07:20:00 | G68: 07:52:00 | H68: 08:23:00 | I68: 07:09:00 | J68: 07:38:00 | K68: 08:05:00 | L68: 40 | M68: 38 | N68: 37 | O68: 51 | P68: 52 | Q68: 55 | R68: 38.33333333 | S68: 52.66666667 | T68: 53.3 | U68: 30.5
A69: 66 | B69: 外環道 | C69: 市川南 | D69: メトロ東西線 | E69: 妙典 | F69: 07:27:00 | G69: 07:58:00 | H69: 08:26:00 | I69: 07:09:00 | J69: 07:35:00 | K69: 08:08:00 | L69: 33 | M69: 32 | N69: 34 | O69: 51 | P69: 55 | Q69: 52 | R69: 33 | S69: 52.66666667 | T69: 63.1 | U69: 29.4
A70: 67 | B70: 外環道 | C70: 川口東 | D70: 埼玉高速鉄道 | E70: 戸塚安行 | F70: 07:07:00 | G70: 07:40:00 | H70: 08:04:00 | I70: 07:07:00 | J70: 07:40:00 | K70: 08:04:00 | L70: 53 | M70: 50 | N70: 56 | O70: 53 | P70: 50 | Q70: 56 | R70: 53 | S70: 53 | T70: 12 | U70: 28.3
A71: 68 | B71: 首都高湾岸線 | C71: 浦安 | D71: JR京葉線 | E71: 新浦安 | F71: 07:36:00 | G71: 08:03:00 | H71: 08:35:00 | I71: 07:09:00 | J71: 07:36:00 | K71: 08:03:00 | L71: 24 | M71: 27 | N71: 25 | O71: 51 | P71: 54 | Q71: 57 | R71: 25.33333333 | S71: 54 | T71: 80.5 | U71: 27.2
A72: 69 | B72: 首都高K3号狩場線 | C72: 花之木 | D72: 京急本線 | E72: 南太田 | F72: 07:14:00 | G72: 07:40:00 | H72: 08:13:00 | I72: 07:09:00 | J72: 07:35:00 | K72: 08:01:00 | L72: 46 | M72: 50 | N72: 47 | O72: 51 | P72: 55 | Q72: 59 | R72: 47.66666667 | S72: 55 | T72: 20.7 | U72: 26.1
A73: 70 | B73: 首都高K1号横羽線 | C73: 汐入 | D73: JR鶴見線 | E73: 弁天橋 | F73: 07:20:00 | G73: 07:45:00 | H73: 08:15:00 | I73: 07:03:00 | J73: 07:39:00 | K73: 08:02:00 | L73: 40 | M73: 45 | N73: 45 | O73: 57 | P73: 51 | Q73: 58 | R73: 43.33333333 | S73: 55.33333333 | T73: 34.8 | U73: 25
A74: 71 | B74: 首都高6号三郷線 | C74: 三郷 | D74: つくばエクスプレス | E74: 三郷中央 | F74: 07:16:00 | G74: 07:48:00 | H74: 08:19:00 | I74: 07:05:00 | J74: 07:35:00 | K74: 08:01:00 | L74: 44 | M74: 42 | N74: 41 | O74: 55 | P74: 55 | Q74: 59 | R74: 42.33333333 | S74: 56.33333333 | T74: 38.1 | U74: 24
A75: 72 | B75: 首都高K3号狩場線 | C75: 阪東橋 | D75: 横浜地下鉄ブルーライン | E75: 阪東橋 | F75: 07:12:00 | G75: 07:38:00 | H75: 08:09:00 | I75: 07:04:00 | J75: 07:33:00 | K75: 08:01:00 | L75: 48 | M75: 52 | N75: 51 | O75: 56 | P75: 57 | Q75: 59 | R75: 50.33333333 | S75: 57.33333333 | T75: 15.3 | U75: 22.9
A76: 73 | B76: 首都高K1号横羽線 | C76: 大師 | D76: 京急大師線 | E76: 大師橋 | F76: 07:16:00 | G76: 07:41:00 | H76: 08:11:00 | I76: 07:01:00 | J76: 07:31:00 | K76: 08:01:00 | L76: 44 | M76: 49 | N76: 49 | O76: 59 | P76: 59 | Q76: 59 | R76: 47.33333333 | S76: 59 | T76: 24 | U76: 21.8
A77: 74 | B77: 東北自動車道 | C77: 浦和 | D77: 埼玉高速鉄道 | E77: 浦和美園 | F77: 07:01:00 | G77: 07:34:00 | H77: 07:58:00 | I77: 07:01:00 | J77: 07:34:00 | K77: 07:58:00 | L77: 59 | M77: 56 | N77: 62 | O77: 59 | P77: 56 | Q77: 62 | R77: 59 | S77: 59 | T77: 6.6 | U77: 20.7
A78: 75 | B78: 外環道 | C78: 松戸 | D78: 北総線 | E78: 矢切 | F78: 07:21:00 | G78: 07:50:00 | H78: 08:20:00 | I78: 06:59:00 | J78: 07:30:00 | K78: 08:01:00 | L78: 39 | M78: 40 | N78: 40 | O78: 61 | P78: 60 | Q78: 59 | R78: 39.66666667 | S78: 60 | T78: 44.6 | U78: 19.6
A79: 76 | B79: 首都高K1号横羽線 | C79: 生麦 | D79: 京急本線 | E79: 生麦 | F79: 07:14:00 | G79: 07:44:00 | H79: 08:10:00 | I79: 07:00:00 | J79: 07:30:00 | K79: 08:00:00 | L79: 46 | M79: 46 | N79: 50 | O79: 60 | P79: 60 | Q79: 60 | R79: 47.33333333 | S79: 60 | T79: 21.8 | U79: 18.5
A80: 77 | B80: 京葉道路 | C80: 幕張 | D80: JR総武線 | E80: 幕張本郷 | F80: 07:16:00 | G80: 07:46:00 | H80: 08:14:00 | I80: 07:00:00 | J80: 07:31:00 | K80: 07:58:00 | L80: 44 | M80: 44 | N80: 46 | O80: 60 | P80: 59 | Q80: 62 | R80: 44.66666667 | S80: 60.33333333 | T80: 31.6 | U80: 17.4
A81: 78 | B81: 外環道 | C81: 草加 | D81: 東武スカイツリーライン | E81: 獨協大学前 | F81: 07:13:00 | G81: 07:43:00 | H81: 08:16:00 | I81: 06:59:00 | J81: 07:33:00 | K81: 07:57:00 | L81: 47 | M81: 47 | N81: 44 | O81: 61 | P81: 57 | Q81: 63 | R81: 46 | S81: 60.33333333 | T81: 27.2 | U81: 17.4
A82: 79 | B82: 東名高速道路 | C82: 横浜青葉 | D82: 東急田園都市線 | E82: 市が尾 | F82: 06:59:00 | G82: 07:30:00 | H82: 07:56:00 | I82: 06:59:00 | J82: 07:30:00 | K82: 07:56:00 | L82: 61 | M82: 60 | N82: 64 | O82: 61 | P82: 60 | Q82: 64 | R82: 61.66666667 | S82: 61.66666667 | T82: 3.3 | U82: 15.3
A83: 80 | B83: 東北自動車道 | C83: 岩槻 | D83: 東武野田線 | E83: 岩槻 | F83: 06:58:00 | G83: 07:31:00 | H83: 07:54:00 | I83: 06:58:00 | J83: 07:27:00 | K83: 07:59:00 | L83: 62 | M83: 59 | N83: 66 | O83: 62 | P83: 63 | Q83: 61 | R83: 62.33333333 | S83: 62 | T83: 2.2 | U83: 14.2
A84: 81 | B84: 首都高K1号横羽線 | C84: 浜川崎 | D84: JR南武支線 | E84: 浜川崎 | F84: 07:14:00 | G84: 07:40:00 | H84: 08:17:00 | I84: 07:02:00 | J84: 07:27:00 | K84: 07:54:00 | L84: 46 | M84: 50 | N84: 43 | O84: 58 | P84: 63 | Q84: 66 | R84: 46.33333333 | S84: 62.33333333 | T84: 25 | U84: 13.1
A85: 82 | B85: 京葉道路 | C85: 武石 | D85: JR総武線 | E85: 幕張 | F85: 07:13:00 | G85: 07:43:00 | H85: 08:11:00 | I85: 06:58:00 | J85: 07:28:00 | K85: 07:55:00 | L85: 47 | M85: 47 | N85: 49 | O85: 62 | P85: 62 | Q85: 65 | R85: 47.66666667 | S85: 63 | T85: 20.7 | U85: 12
A86: 83 | B86: 常磐自動車道 | C86: 流山 | D86: つくばエクスプレス | E86: 流山おおたかの森 | F86: 07:09:00 | G86: 07:40:00 | H86: 08:12:00 | I86: 06:57:00 | J86: 07:28:00 | K86: 07:54:00 | L86: 51 | M86: 50 | N86: 48 | O86: 63 | P86: 62 | Q86: 66 | R86: 49.66666667 | S86: 63.66666667 | T86: 18.5 | U86: 10.9
A87: 84 | B87: 東関東自動車道 | C87: 谷津船橋IC | D87: JR京葉線 | E87: 南船橋 | F87: 07:26:00 | G87: 07:52:00 | H87: 08:22:00 | I87: 07:00:00 | J87: 07:26:00 | K87: 07:52:00 | L87: 34 | M87: 38 | N87: 38 | O87: 60 | P87: 64 | Q87: 68 | R87: 36.66666667 | S87: 64 | T87: 55.5 | U87: 9.8
A88: 85 | B88: 京葉道路 | C88: 花輪 | D88: 京成本線 | E88: 船橋競馬場 | F88: 07:15:00 | G88: 07:48:00 | H88: 08:09:00 | I88: 06:55:00 | J88: 07:28:00 | K88: 07:55:00 | L88: 45 | M88: 42 | N88: 51 | O88: 65 | P88: 62 | Q88: 65 | R88: 46 | S88: 64 | T88: 26.1 | U88: 9.8
A89: 86 | B89: 外環道 | C89: 外環三郷西 | D89: JR武蔵野線 | E89: 新三郷 | F89: 07:02:00 | G89: 07:34:00 | H89: 07:59:00 | I89: 06:54:00 | J89: 07:25:00 | K89: 07:57:00 | L89: 58 | M89: 56 | N89: 61 | O89: 66 | P89: 65 | Q89: 63 | R89: 58.33333333 | S89: 64.66666667 | T89: 8.7 | U89: 7.7
A90: 87 | B90: 東京湾アクアライン | C90: 木更津金田 | D90: 高速バス | E90: 木更津金田BT | F90: 07:17:00 | G90: 07:47:00 | H90: 08:14:00 | I90: 06:55:00 | J90: 07:25:00 | K90: 07:55:00 | L90: 43 | M90: 43 | N90: 46 | O90: 65 | P90: 65 | Q90: 65 | R90: 44 | S90: 65 | T90: 32.7 | U90: 6.6
A91: 88 | B91: 東名高速道路 | C91: 横浜町田 | D91: 東急田園都市線 | E91: 南町田 | F91: 06:53:00 | G91: 07:24:00 | H91: 07:50:00 | I91: 06:53:00 | J91: 07:24:00 | K91: 07:55:00 | L91: 67 | M91: 66 | N91: 70 | O91: 67 | P91: 66 | Q91: 65 | R91: 67.66666667 | S91: 66 | T91: 1.1 | U91: 5.5
A92: 89 | B92: 常磐自動車道 | C92: 柏 | D92: つくばエクスプレス | E92: 柏の葉キャンパス | F92: 07:06:00 | G92: 07:37:00 | H92: 08:08:00 | I92: 06:54:00 | J92: 07:24:00 | K92: 07:50:00 | L92: 54 | M92: 53 | N92: 52 | O92: 66 | P92: 66 | Q92: 70 | R92: 53 | S92: 67.33333333 | T92: 12 | U92: 4.4
A93: 90 | B93: 東関東自動車道 | C93: 湾岸習志野IC | D93: JR京葉線 | E93: 新習志野 | F93: 07:23:00 | G93: 07:49:00 | H93: 08:19:00 | I93: 06:54:00 | J93: 07:23:00 | K93: 07:49:00 | L93: 37 | M93: 41 | N93: 41 | O93: 66 | P93: 67 | Q93: 71 | R93: 39.66666667 | S93: 68 | T93: 42.4 | U93: 3.3
A94: 91 | B94: 東京湾アクアライン | C94: 袖ケ浦 | D94: 高速バス | E94: 袖ケ浦BT | F94: 07:00:00 | G94: 07:30:00 | H94: 08:05:00 | I94: 07:02:00 | J94: 07:17:00 | K94: 07:47:00 | L94: 60 | M94: 60 | N94: 55 | O94: 58 | P94: 73 | Q94: 73 | R94: 58.33333333 | S94: 68 | T94: 9.8 | U94: 2.2
A95: 92 | B95: 東関東自動車道 | C95: 湾岸千葉IC | D95: JR京葉線 | E95: 海浜幕張 | F95: 07:19:00 | G95: 07:45:00 | H95: 08:16:00 | I95: 06:55:00 | J95: 07:19:00 | K95: 07:45:00 | L95: 41 | M95: 45 | N95: 44 | O95: 65 | P95: 71 | Q95: 75 | R95: 43.33333333 | S95: 70.33333333 | T95: 37 | U95: 1.1
A96: 93 | B96: 常磐自動車道 | C96: 谷和原 | D96: つくばエクスプレス | E96: 守谷 | F96: 07:00:00 | G96: 07:30:00 | H96: 08:03:00 | I96: 06:49:00 | J96: 07:19:00 | K96: 07:45:00 | L96: 60 | M96: 60 | N96: 57 | O96: 71 | P96: 71 | Q96: 75 | R96: 59 | S96: 72.33333333 | T96: 7.7 | U96: 0

Sheet 家賃相場
F2: 家賃相場（万円） | H2: 家賃点数 | K2: 点数
A3: 0 | B3: 道路名 | C3: IC名 | D3: 鉄道路線 | E3: 駅名 | F3: 1K | G3: 2LDK | H3: 1K | I3: 2LDK | J3: 商業施設 | K3: 商業施設
A4: =A3+1 -> 1 | B4: 東京湾アクアライン | C4: 木更津金田 | D4: 高速バス | E4: 木更津金田BT | F4: 4.5 | G4: 6.1 | H4: =100-_xlfn.PERCENTRANK.INC(F$4:F$96,F4)*100 -> 99 | I4: =100-_xlfn.PERCENTRANK.INC(G$4:G$96,G4)*100 -> 100 | J4: ◎ | K4: =VLOOKUP(J4,配点根拠!$G$3:$H$7,2,0) -> 100
A5: 2 | B5: 東北自動車道 | C5: 岩槻 | D5: 東武野田線 | E5: 岩槻 | F5: 4.4 | G5: 6.31 | H5: 100 | I5: 99 | J5: ○ | K5: =VLOOKUP(J5,配点根拠!$G$3:$H$7,2,0) -> 80
A6: 3 | B6: 東京湾アクアライン | C6: 袖ケ浦 | D6: 高速バス | E6: 袖ケ浦BT | F6: 5.28 | G6: 6.31 | H6: 90.3 | I6: 99 | J6: ■ | K6: =VLOOKUP(J6,配点根拠!$G$3:$H$7,2,0) -> 50
A7: 4 | B7: 首都高川口線 | C7: 新井宿 | D7: 埼玉高速鉄道 | E7: 新井宿 | F7: 5.2 | G7: 6.88 | H7: 92.4 | I7: 96.8 | J7: ■ | K7: =VLOOKUP(J7,配点根拠!$G$3:$H$7,2,0) -> 50
A8: 5 | B8: 外環道 | C8: 松戸 | D8: 北総線 | E8: 矢切 | F8: 5.05 | G8: 7.6 | H8: 94.6 | I8: 95.7 | J8: ■ | K8: =VLOOKUP(J8,配点根拠!$G$3:$H$7,2,0) -> 50
A9: 6 | B9: 京葉道路 | C9: 武石 | D9: JR総武線 | E9: 幕張 | F9: 6.04 | G9: 7.97 | H9: 69.6 | I9: 94.6 | J9: ■ | K9: =VLOOKUP(J9,配点根拠!$G$3:$H$7,2,0) -> 50
A10: 7 | B10: 外環道 | C10: 川口東 | D10: 埼玉高速鉄道 | E10: 戸塚安行 | F10: 5.88 | G10: 8.02 | H10: 78.3 | I10: 93.5 | J10: △ | K10: =VLOOKUP(J10,配点根拠!$G$3:$H$7,2,0) -> 20
A11: 8 | B11: 常磐自動車道 | C11: 谷和原 | D11: つくばエクスプレス | E11: 守谷 | F11: 5.93 | G11: 8.09 | H11: 74 | I11: 92.4 | J11: ◎ | K11: =VLOOKUP(J11,配点根拠!$G$3:$H$7,2,0) -> 100
A12: 9 | B12: 東北自動車道 | C12: 浦和 | D12: 埼玉高速鉄道 | E12: 浦和美園 | F12: 6.13 | G12: 8.3 | H12: 67.4 | I12: 91.4 | J12: ◎ | K12: =VLOOKUP(J12,配点根拠!$G$3:$H$7,2,0) -> 100
A13: 10 | B13: 外環道 | C13: 草加 | D13: 東武スカイツリーライン | E13: 獨協大学前 | F13: 4.82 | G13: 8.36 | H13: 97.9 | I13: 90.3 | J13: ○ | K13: =VLOOKUP(J13,配点根拠!$G$3:$H$7,2,0) -> 80
A14: 11 | B14: 外環道 | C14: 外環三郷西 | D14: JR武蔵野線 | E14: 新三郷 | F14: 5.9 | G14: 8.4 | H14: 77.2 | I14: 89.2 | J14: ◎ | K14: =VLOOKUP(J14,配点根拠!$G$3:$H$7,2,0) -> 100
A15: 12 | B15: 首都高6号三郷線 | C15: 三郷 | D15: つくばエクスプレス | E15: 三郷中央 | F15: 6.88 | G15: 8.5 | H15: 40.3 | I15: 88.1 | J15: ○ | K15: =VLOOKUP(J15,配点根拠!$G$3:$H$7,2,0) -> 80
A16: 13 | B16: 外環道 | C16: 松戸 | D16: 北総線 | E16: 北国分 | F16: 4.86 | G16: 8.55 | H16: 96.8 | I16: 87 | J16: ○ | K16: =VLOOKUP(J16,配点根拠!$G$3:$H$7,2,0) -> 80
A17: 14 | B17: 首都高S大宮線 | C17: 浦和南 | D17: JR埼京線 | E17: 南与野 | F17: 4.96 | G17: 8.6 | H17: 95.7 | I17: 85.9 | J17: ■ | K17: =VLOOKUP(J17,配点根拠!$G$3:$H$7,2,0) -> 50
A18: 15 | B18: 首都高5号池袋線 | C18: 戸田南 | D18: JR埼京線 | E18: 戸田 | F18: 5.69 | G18: 8.68 | H18: 84.8 | I18: 84.8 | J18: ○ | K18: =VLOOKUP(J18,配点根拠!$G$3:$H$7,2,0) -> 80
A19: 16 | B19: 東関東自動車道 | C19: 湾岸習志野IC | D19: JR京葉線 | E19: 新習志野 | F19: 6.1 | G19: 8.7 | H19: 68.5 | I19: 83.7 | J19: ○ | K19: =VLOOKUP(J19,配点根拠!$G$3:$H$7,2,0) -> 80
A20: 17 | B20: 外環道 | C20: 戸田東 | D20: JR埼京線 | E20: 北戸田 | F20: 5.97 | G20: 8.73 | H20: 72.9 | I20: 82.7 | J20: ■ | K20: =VLOOKUP(J20,配点根拠!$G$3:$H$7,2,0) -> 50
A21: 18 | B21: 首都高5号池袋線 | C21: 高島平 | D21: 都営三田線 | E21: 西高島平 | F21: 5.77 | G21: 8.8 | H21: 80.5 | I21: 81.6 | J21: × | K21: =VLOOKUP(J21,配点根拠!$G$3:$H$7,2,0) -> 0
A22: 19 | B22: 東関東自動車道 | C22: 谷津船橋IC | D22: JR京葉線 | E22: 南船橋 | F22: 5.5 | G22: 9 | H22: 88.1 | I22: 80.5 | J22: ◎ | K22: =VLOOKUP(J22,配点根拠!$G$3:$H$7,2,0) -> 100
A23: 20 | B23: 首都高川口線 | C23: 足立入谷 | D23: 都営日暮里舎人ライナー | E23: 舎人 | F23: 6.19 | G23: 9.08 | H23: 66.4 | I23: 79.4 | J23: △ | K23: =VLOOKUP(J23,配点根拠!$G$3:$H$7,2,0) -> 20
A24: 21 | B24: 首都高川口線 | C24: 新郷 | D24: 埼玉高速鉄道 | E24: 鳩ヶ谷 | F24: 5.73 | G24: 9.12 | H24: 83.7 | I24: 78.3 | J24: ■ | K24: =VLOOKUP(J24,配点根拠!$G$3:$H$7,2,0) -> 50
A25: 22 | B25: 京葉道路 | C25: 幕張 | D25: JR総武線 | E25: 幕張本郷 | F25: 5.91 | G25: 9.24 | H25: 75 | I25: 77.2 | J25: △ | K25: =VLOOKUP(J25,配点根拠!$G$3:$H$7,2,0) -> 20
A26: 23 | B26: 首都高S新都心線 | C26: 新都心西 | D26: JR埼京線 | E26: 北与野 | F26: 6.31 | G26: 9.32 | H26: 64.2 | I26: 76.1 | J26: ◎ | K26: =VLOOKUP(J26,配点根拠!$G$3:$H$7,2,0) -> 100
A27: 24 | B27: 京葉道路 | C27: 花輪 | D27: 京成本線 | E27: 船橋競馬場 | F27: 5.81 | G27: 9.4 | H27: 79.4 | I27: 75 | J27: ◎ | K27: =VLOOKUP(J27,配点根拠!$G$3:$H$7,2,0) -> 100
A28: 25 | B28: 中央自動車道 | C28: 稲城 | D28: JR南武線 | E28: 稲城長沼 | F28: 5.07 | G28: 9.5 | H28: 93.5 | I28: 74 | J28: △ | K28: =VLOOKUP(J28,配点根拠!$G$3:$H$7,2,0) -> 20
A29: 26 | B29: 東名高速道路 | C29: 横浜町田 | D29: 東急田園都市線 | E29: 南町田 | F29: 6.41 | G29: 9.54 | H29: 59.8 | I29: 72.9 | J29: ◎ | K29: =VLOOKUP(J29,配点根拠!$G$3:$H$7,2,0) -> 100
A30: 27 | B30: 首都高湾岸線 | C30: 葛西 | D30: JR京葉線 | E30: 葛西臨海公園 | F30: 5.9 | G30: 10 | H30: 77.2 | I30: 71.8 | J30: △ | K30: =VLOOKUP(J30,配点根拠!$G$3:$H$7,2,0) -> 20
A31: 28 | B31: 東関東自動車道 | C31: 湾岸千葉IC | D31: JR京葉線 | E31: 海浜幕張 | F31: 6 | G31: 10 | H31: 71.8 | I31: 71.8 | J31: ◎ | K31: =VLOOKUP(J31,配点根拠!$G$3:$H$7,2,0) -> 100
A32: 29 | B32: 首都高K1号横羽線 | C32: 汐入 | D32: JR鶴見線 | E32: 弁天橋 | F32: 5.73 | G32: 10.1 | H32: 83.7 | I32: 69.6 | J32: × | K32: =VLOOKUP(J32,配点根拠!$G$3:$H$7,2,0) -> 0
A33: 30 | B33: 外環道 | C33: 三郷南 | D33: JR常磐線 | E33: 松戸 | F33: 6.23 | G33: 10.11 | H33: 65.3 | I33: 68.5 | J33: ○ | K33: =VLOOKUP(J33,配点根拠!$G$3:$H$7,2,0) -> 80
A34: 31 | B34: 首都高中央環状線 | C34: 扇大橋 | D34: 都営日暮里舎人ライナー | E34: 扇大橋 | F34: 6.65 | G34: 10.22 | H34: 49 | I34: 67.4 | J34: ■ | K34: =VLOOKUP(J34,配点根拠!$G$3:$H$7,2,0) -> 50
A35: 32 | B35: 外環道 | C35: 外環浦和 | D35: JR京浜東北線 | E35: 南浦和 | F35: 5.43 | G35: 10.24 | H35: 89.2 | I35: 66.4 | J35: ○ | K35: =VLOOKUP(J35,配点根拠!$G$3:$H$7,2,0) -> 80
A36: =A35+1 -> 33 | B36: 中央自動車道 | C36: 国立府中 | D36: JR南武線 | E36: 谷保 | F36: 5.76 | G36: 10.29 | H36: =100-_xlfn.PERCENTRANK.INC(F$4:F$96,F36)*100 -> 81.6 | I36: =100-_xlfn.PERCENTRANK.INC(G$4:G$96,G36)*100 -> 65.3 | J36: △ | K36: =VLOOKUP(J36,配点根拠!$G$3:$H$7,2,0) -> 20
A37: 34 | B37: 首都高湾岸線 | C37: 浦安 | D37: JR京葉線 | E37: 新浦安 | F37: 6.74 | G37: 10.36 | H37: 45.7 | I37: 64.2 | J37: ○ | K37: =VLOOKUP(J37,配点根拠!$G$3:$H$7,2,0) -> 80
A38: 35 | B38: 首都高K3号狩場線 | C38: 永田 | D38: JR横須賀線 | E38: 保土ヶ谷 | F38: 5.26 | G38: 10.6 | H38: 91.4 | I38: 63.1 | J38: △ | K38: =VLOOKUP(J38,配点根拠!$G$3:$H$7,2,0) -> 20
A39: 36 | B39: 首都高6号三郷線 | C39: 八潮 | D39: つくばエクスプレス | E39: 八潮 | F39: 6.79 | G39: 10.78 | H39: 42.4 | I39: 62 | J39: ◎ | K39: =VLOOKUP(J39,配点根拠!$G$3:$H$7,2,0) -> 100
A40: 37 | B40: 首都高K1号横羽線 | C40: 浜川崎 | D40: JR南武支線 | E40: 浜川崎 | F40: 6.52 | G40: 10.8 | H40: 54.4 | I40: 60.9 | J40: × | K40: =VLOOKUP(J40,配点根拠!$G$3:$H$7,2,0) -> 0
A41: 38 | B41: 首都高中央環状線 | C41: 小菅 | D41: 京成本線 | E41: 堀切菖蒲園 | F41: 6.35 | G41: 10.84 | H41: 62 | I41: 59.8 | J41: ■ | K41: =VLOOKUP(J41,配点根拠!$G$3:$H$7,2,0) -> 50
A42: 39 | B42: 首都高7号小松川線 | C42: 一之江 | D42: 都営新宿線 | E42: 一之江 | F42: 6.68 | G42: 11.01 | H42: 47.9 | I42: 58.7 | J42: △ | K42: =VLOOKUP(J42,配点根拠!$G$3:$H$7,2,0) -> 20
A43: 40 | B43: 京葉道路 | C43: 京葉市川 | D43: 都営新宿線 | E43: 本八幡 | F43: 6.62 | G43: 11.1 | H43: 52.2 | I43: 57.7 | J43: ○ | K43: =VLOOKUP(J43,配点根拠!$G$3:$H$7,2,0) -> 80
A44: 41 | B44: 首都高6号三郷線 | C44: 加平 | D44: メトロ千代田線 | E44: 北綾瀬 | F44: 6.31 | G44: 11.13 | H44: 64.2 | I44: 56.6 | J44: △ | K44: =VLOOKUP(J44,配点根拠!$G$3:$H$7,2,0) -> 20
A45: 42 | B45: 首都高K1号横羽線 | C45: 大師 | D45: 京急大師線 | E45: 大師橋 | F45: 6.03 | G45: 11.14 | H45: 70.7 | I45: 55.5 | J45: × | K45: =VLOOKUP(J45,配点根拠!$G$3:$H$7,2,0) -> 0
A46: 43 | B46: 中央自動車道 | C46: 調布 | D46: 京王線 | E46: 西調布 | F46: 5.61 | G46: 11.2 | H46: 85.9 | I46: 54.4 | J46: △ | K46: =VLOOKUP(J46,配点根拠!$G$3:$H$7,2,0) -> 20
A47: 44 | B47: 首都高K1号横羽線 | C47: 子安 | D47: JR京浜東北線 | E47: 新子安 | F47: 7.02 | G47: 11.22 | H47: 39.2 | I47: 53.3 | J47: ■ | K47: =VLOOKUP(J47,配点根拠!$G$3:$H$7,2,0) -> 50
A48: 45 | B48: 外環道 | C48: 市川南 | D48: メトロ東西線 | E48: 妙典 | F48: 6.38 | G48: 11.32 | H48: 60.9 | I48: 52.2 | J48: ○ | K48: =VLOOKUP(J48,配点根拠!$G$3:$H$7,2,0) -> 80
A49: 46 | B49: 東名高速道路 | C49: 横浜青葉 | D49: 東急田園都市線 | E49: 市が尾 | F49: 7.03 | G49: 11.34 | H49: 38.1 | I49: 51.1 | J49: ■ | K49: =VLOOKUP(J49,配点根拠!$G$3:$H$7,2,0) -> 50
A50: 47 | B50: 外環道 | C50: 川口西 | D50: JR京浜東北線 | E50: 蕨 | F50: 6.56 | G50: 11.45 | H50: 53.3 | I50: 50 | J50: ■ | K50: =VLOOKUP(J50,配点根拠!$G$3:$H$7,2,0) -> 50
A51: 48 | B51: 首都高K3号狩場線 | C51: 花之木 | D51: 京急本線 | E51: 南太田 | F51: 5.53 | G51: 11.5 | H51: 87 | I51: 49 | J51: △ | K51: =VLOOKUP(J51,配点根拠!$G$3:$H$7,2,0) -> 20
A52: 49 | B52: 首都高中央環状線 | C52: 清新町 | D52: メトロ東西線 | E52: 西葛西 | F52: 7.25 | G52: 11.61 | H52: 32.7 | I52: 47.9 | J52: ■ | K52: =VLOOKUP(J52,配点根拠!$G$3:$H$7,2,0) -> 50
A53: 50 | B53: 首都高7号小松川線 | C53: 篠崎 | D53: 都営新宿線 | E53: 篠崎 | F53: 6.44 | G53: 11.67 | H53: 57.7 | I53: 46.8 | J53: ■ | K53: =VLOOKUP(J53,配点根拠!$G$3:$H$7,2,0) -> 50
A54: 51 | B54: 京葉道路 | C54: 原木 | D54: メトロ東西線 | E54: 西船橋 | F54: 7.03 | G54: 11.75 | H54: 38.1 | I54: 45.7 | J54: ○ | K54: =VLOOKUP(J54,配点根拠!$G$3:$H$7,2,0) -> 80
A55: 52 | B55: 首都高K1号横羽線 | C55: 生麦 | D55: 京急本線 | E55: 生麦 | F55: 6.41 | G55: 11.79 | H55: 59.8 | I55: 44.6 | J55: △ | K55: =VLOOKUP(J55,配点根拠!$G$3:$H$7,2,0) -> 20
A56: 53 | B56: 外環道 | C56: 和光 | D56: メトロ有楽町線 | E56: 和光市 | F56: 6.46 | G56: 11.79 | H56: 56.6 | I56: 44.6 | J56: ○ | K56: =VLOOKUP(J56,配点根拠!$G$3:$H$7,2,0) -> 80
A57: 54 | B57: 東名高速道路 | C57: 東名川崎 | D57: 東急田園都市線 | E57: 宮前平 | F57: 7.33 | G57: 11.81 | H57: 28.3 | I57: 42.4 | J57: ■ | K57: =VLOOKUP(J57,配点根拠!$G$3:$H$7,2,0) -> 50
A58: 55 | B58: 首都高中央環状線 | C58: 四つ木 | D58: 京成押上線 | E58: 四ツ木 | F58: 6.68 | G58: 11.82 | H58: 47.9 | I58: 41.4 | J58: ■ | K58: =VLOOKUP(J58,配点根拠!$G$3:$H$7,2,0) -> 50
A59: 56 | B59: 首都高6号三郷線 | C59: 加平 | D59: つくばエクスプレス | E59: 六町 | F59: 7.58 | G59: 11.86 | H59: 25 | I59: 40.3 | J59: △ | K59: =VLOOKUP(J59,配点根拠!$G$3:$H$7,2,0) -> 20
A60: 57 | B60: 京葉道路 | C60: 船橋 | D60: JR総武線 | E60: 船橋 | F60: 6.62 | G60: 11.93 | H60: 52.2 | I60: 39.2 | J60: ◎ | K60: =VLOOKUP(J60,配点根拠!$G$3:$H$7,2,0) -> 100
A61: 58 | B61: 首都高K3号狩場線 | C61: 阪東橋 | D61: 横浜地下鉄ブルーライン | E61: 阪東橋 | F61: 6.76 | G61: 11.96 | H61: 44.6 | I61: 38.1 | J61: △ | K61: =VLOOKUP(J61,配点根拠!$G$3:$H$7,2,0) -> 20
A62: 59 | B62: 首都高5号池袋線 | C62: 中台 | D62: 都営三田線 | E62: 志村三丁目 | F62: 7.51 | G62: 12.08 | H62: 26.1 | I62: 37 | J62: ◎ | K62: =VLOOKUP(J62,配点根拠!$G$3:$H$7,2,0) -> 100
A63: 60 | B63: 常磐自動車道 | C63: 流山 | D63: つくばエクスプレス | E63: 流山おおたかの森 | F63: 7.47 | G63: 12.54 | H63: 27.2 | I63: 35.9 | J63: ◎ | K63: =VLOOKUP(J63,配点根拠!$G$3:$H$7,2,0) -> 100
A64: 61 | B64: 首都高中央環状線 | C64: 平井大橋 | D64: JR総武線 | E64: 平井 | F64: 7.19 | G64: 12.59 | H64: 34.8 | I64: 34.8 | J64: ■ | K64: =VLOOKUP(J64,配点根拠!$G$3:$H$7,2,0) -> 50
A65: 62 | B65: 首都高1号羽田線 | C65: 羽田 | D65: 京急空港線 | E65: 穴守稲荷 | F65: 9.09 | G65: 12.6 | H65: 13.1 | I65: 33.7 | J65: △ | K65: =VLOOKUP(J65,配点根拠!$G$3:$H$7,2,0) -> 20
A66: 63 | B66: 首都高中央環状線 | C66: 平井大橋 | D66: JR総武線 | E66: 新小岩 | F66: 7.21 | G66: 12.81 | H66: 33.7 | I66: 32.7 | J66: ■ | K66: =VLOOKUP(J66,配点根拠!$G$3:$H$7,2,0) -> 50
A67: 64 | B67: 首都高6号向島線 | C67: 堤通 | D67: 東武スカイツリーライン | E67: 鐘ヶ淵 | F67: 7.26 | G67: 13.05 | H67: 31.6 | I67: 31.6 | J67: △ | K67: =VLOOKUP(J67,配点根拠!$G$3:$H$7,2,0) -> 20
A68: =A67+1 -> 65 | B68: 首都高K1号横羽線 | C68: 東神奈川 | D68: JR京浜東北線 | E68: 東神奈川 | F68: 7.66 | G68: 13.2 | H68: =100-_xlfn.PERCENTRANK.INC(F$4:F$96,F68)*100 -> 24 | I68: =100-_xlfn.PERCENTRANK.INC(G$4:G$96,G68)*100 -> 30.5 | J68: ■ | K68: =VLOOKUP(J68,配点根拠!$G$3:$H$7,2,0) -> 50
A69: 66 | B69: 外環道 | C69: 市川中央 | D69: JR総武線 | E69: 市川 | F69: 6.85 | G69: 13.25 | H69: 41.4 | I69: 29.4 | J69: ○ | K69: =VLOOKUP(J69,配点根拠!$G$3:$H$7,2,0) -> 80
A70: 67 | B70: 首都高中央環状線 | C70: 千住新橋 | D70: JR常磐線 | E70: 北千住 | F70: 7.81 | G70: 13.4 | H70: 22.9 | I70: 28.3 | J70: ◎ | K70: =VLOOKUP(J70,配点根拠!$G$3:$H$7,2,0) -> 100
A71: 68 | B71: 首都高1号羽田線 | C71: 平和島 | D71: 京急本線 | E71: 平和島 | F71: 8.43 | G71: 13.5 | H71: 16.4 | I71: 27.2 | J71: △ | K71: =VLOOKUP(J71,配点根拠!$G$3:$H$7,2,0) -> 20
A72: 69 | B72: 首都高川口線 | C72: 鹿浜橋 | D72: 都営日暮里舎人ライナー | E72: 江北 | F72: 6.5 | G72: 13.75 | H72: 55.5 | I72: 26.1 | J72: △ | K72: =VLOOKUP(J72,配点根拠!$G$3:$H$7,2,0) -> 20
A73: 70 | B73: 首都高中央環状線 | C73: 船堀橋 | D73: 都営新宿線 | E73: 船堀 | F73: 7.14 | G73: 13.98 | H73: 35.9 | I73: 25 | J73: ■ | K73: =VLOOKUP(J73,配点根拠!$G$3:$H$7,2,0) -> 50
A74: 71 | B74: 首都高S新都心線 | C74: 新都心 | D74: JR上野東京ライン | E74: さいたま新都心 | F74: 6.76 | G74: 14.53 | H74: 44.6 | I74: 24 | J74: ◎ | K74: =VLOOKUP(J74,配点根拠!$G$3:$H$7,2,0) -> 100
A75: 72 | B75: 首都高中央環状線 | C75: 王子北 | D75: JR京浜東北線 | E75: 王子 | F75: 7.3 | G75: 15.15 | H75: 30.5 | I75: 22.9 | J75: ■ | K75: =VLOOKUP(J75,配点根拠!$G$3:$H$7,2,0) -> 50
A76: 73 | B76: 首都高7号小松川線 | C76: 錦糸町 | D76: 都営新宿線 | E76: 住吉 | F76: 10.78 | G76: 15.57 | H76: 3.3 | I76: 21.8 | J76: ■ | K76: =VLOOKUP(J76,配点根拠!$G$3:$H$7,2,0) -> 50
A77: 74 | B77: 首都高1号羽田線 | C77: 勝島 | D77: 京急本線 | E77: 立会川 | F77: 9.6 | G77: 15.71 | H77: 9.8 | I77: 20.7 | J77: △ | K77: =VLOOKUP(J77,配点根拠!$G$3:$H$7,2,0) -> 20
A78: 75 | B78: 首都高4号新宿線 | C78: 高井戸 | D78: 京王井の頭線 | E78: 高井戸 | F78: 8.06 | G78: 15.98 | H78: 20.7 | I78: 19.6 | J78: ■ | K78: =VLOOKUP(J78,配点根拠!$G$3:$H$7,2,0) -> 50
A79: 76 | B79: 首都高6号向島線 | C79: 駒形 | D79: 都営浅草線 | E79: 本所吾妻橋 | F79: 9.48 | G79: 16.06 | H79: 10.9 | I79: 18.5 | J79: ◎ | K79: =VLOOKUP(J79,配点根拠!$G$3:$H$7,2,0) -> 100
A80: 77 | B80: 首都高5号池袋線 | C80: 板橋本町 | D80: 都営三田線 | E80: 板橋本町 | F80: 7.92 | G80: 16.3 | H80: 21.8 | I80: 17.4 | J80: △ | K80: =VLOOKUP(J80,配点根拠!$G$3:$H$7,2,0) -> 20
A81: 78 | B81: 首都高6号向島線 | C81: 向島 | D81: 東武スカイツリーライン | E81: 曳舟 | F81: 8.13 | G81: 16.42 | H81: 18.5 | I81: 16.4 | J81: ■ | K81: =VLOOKUP(J81,配点根拠!$G$3:$H$7,2,0) -> 50
A82: 79 | B82: 常磐自動車道 | C82: 柏 | D82: つくばエクスプレス | E82: 柏の葉キャンパス | F82: 10.2 | G82: 17.21 | H82: 6.6 | I82: 15.3 | J82: ◎ | K82: =VLOOKUP(J82,配点根拠!$G$3:$H$7,2,0) -> 100
A83: 80 | B83: 首都高中央環状線 | C83: 船堀橋 | D83: 都営新宿線 | E83: 東大島 | F83: 6.64 | G83: 17.6 | H83: 50 | I83: 14.2 | J83: ■ | K83: =VLOOKUP(J83,配点根拠!$G$3:$H$7,2,0) -> 50
A84: 81 | B84: 首都高4号新宿線 | C84: 高井戸 | D84: 京王線 | E84: 八幡山 | F84: 7.3 | G84: 17.84 | H84: 30.5 | I84: 13.1 | J84: ■ | K84: =VLOOKUP(J84,配点根拠!$G$3:$H$7,2,0) -> 50
A85: 82 | B85: 首都高1号羽田線 | C85: 鈴ヶ森 | D85: 京急本線 | E85: 大森海岸 | F85: 9.62 | G85: 17.86 | H85: 8.7 | I85: 12 | J85: ○ | K85: =VLOOKUP(J85,配点根拠!$G$3:$H$7,2,0) -> 80
A86: 83 | B86: 首都高5号池袋線 | C86: 北池袋 | D86: メトロ有楽町線 | E86: 要町 | F86: 8.29 | G86: 17.9 | H86: 17.4 | I86: 10.9 | J86: △ | K86: =VLOOKUP(J86,配点根拠!$G$3:$H$7,2,0) -> 20
A87: 84 | B87: 首都高7号小松川線 | C87: 錦糸町 | D87: JR総武線 | E87: 錦糸町 | F87: 10.85 | G87: 18.05 | H87: 2.2 | I87: 9.8 | J87: ◎ | K87: =VLOOKUP(J87,配点根拠!$G$3:$H$7,2,0) -> 100
A88: 85 | B88: 首都高9号深川線 | C88: 木場 | D88: メトロ東西線 | E88: 木場 | F88: 10.4 | G88: 19.31 | H88: 5.5 | I88: 8.7 | J88: ○ | K88: =VLOOKUP(J88,配点根拠!$G$3:$H$7,2,0) -> 80
A89: 86 | B89: 首都高3号渋谷線 | C89: 用賀 | D89: 東急田園都市線 | E89: 用賀 | F89: 8.11 | G89: 19.67 | H89: 19.6 | I89: 7.7 | J89: ○ | K89: =VLOOKUP(J89,配点根拠!$G$3:$H$7,2,0) -> 80
A90: 87 | B90: 首都高2号目黒線 | C90: 戸越 | D90: 都営浅草線 | E90: 戸越 | F90: 10.19 | G90: 20.63 | H90: 7.7 | I90: 6.6 | J90: △ | K90: =VLOOKUP(J90,配点根拠!$G$3:$H$7,2,0) -> 20
A91: 88 | B91: 首都高中央環状線 | C91: 中野長者橋 | D91: メトロ丸ノ内線 | E91: 中野坂上 | F91: 9.19 | G91: 21.81 | H91: 12 | I91: 5.5 | J91: ○ | K91: =VLOOKUP(J91,配点根拠!$G$3:$H$7,2,0) -> 80
A92: 89 | B92: 首都高4号新宿線 | C92: 永福 | D92: 京王線 | E92: 下高井戸 | F92: 8.95 | G92: 21.84 | H92: 15.3 | I92: 4.4 | J92: ■ | K92: =VLOOKUP(J92,配点根拠!$G$3:$H$7,2,0) -> 50
A93: 90 | B93: 首都高9号深川線 | C93: 福住 | D93: メトロ東西線 | E93: 門前仲町 | F93: 10.98 | G93: 22.57 | H93: 1.1 | I93: 3.3 | J93: ■ | K93: =VLOOKUP(J93,配点根拠!$G$3:$H$7,2,0) -> 50
A94: 91 | B94: 首都高3号渋谷線 | C94: 三軒茶屋 | D94: 東急田園都市線 | E94: 三軒茶屋 | F94: 10.64 | G94: 22.9 | H94: 4.4 | I94: 2.2 | J94: ■ | K94: =VLOOKUP(J94,配点根拠!$G$3:$H$7,2,0) -> 50
A95: 92 | B95: 首都高4号新宿線 | C95: 幡ヶ谷 | D95: 京王新線 | E95: 幡ヶ谷 | F95: 8.99 | G95: 24.01 | H95: 14.2 | I95: 1.1 | J95: ○ | K95: =VLOOKUP(J95,配点根拠!$G$3:$H$7,2,0) -> 80
A96: 93 | B96: 首都高3号渋谷線 | C96: 池尻 | D96: 東急田園都市線 | E96: 池尻大橋 | F96: 11.12 | G96: 32.7 | H96: 0 | I96: 0 | J96: △ | K96: =VLOOKUP(J96,配点根拠!$G$3:$H$7,2,0) -> 20

Sheet 配点根拠
B2: 通勤の快適性点数 | D2: 目安 | G2: 商業施設点数 | I2: 目安 | AB2: 傾斜配点
B3: ◎ | C3: 0.5 | D3: 全ての列車が当駅始発等、着席が可能である | G3: ◎ | H3: 100 | I3: 大型商業施設が近隣に存在 | AB3: =AC3-1 -> 1 | AC3: 2
B4: 〇 | C4: 0.8 | D4: 一部列車が当駅始発等、着席の機会がある | G4: ○ | H4: 80 | I4: 有名スーパーマーケット等が複数存在 | AB4: =AC4-1 -> 0.9 | AC4: 1.9
B5: 他 | C5: 国交省発表の混雑率データ通り | D5: 各路線の最高混雑率データをそのまま適用 | G5: ■ | H5: 50 | I5: スーパー等小規模なものが存在 | AB5: 0.8 | AC5: 1.8
G6: △ | H6: 20 | I6: スーパー以外の施設が存在 | AB6: 0.7 | AC6: 1.7
G7: × | H7: 0 | I7: コンビニ等以外は商業施設が無い | AB7: 0.6 | AC7: 1.6
AB8: 0.5 | AC8: 1.5
C9: 点数算出方法 | AB9: 0.4 | AC9: 1.4
C10: 所要時間 | D10: 東京駅or新宿駅までの所要時間分数の平均値を基に、短い順に百分率順位を使用 | AB10: 0.3 | AC10: 1.3
C11: 通勤の快適性 | D11: 混雑率データ等を基に、混雑率が低い順に百分率順位を使用 | AB11: 0.2 | AC11: 1.2
C12: 家賃相場 | D12: 家賃相場データを基に、家賃が安い順に百分率順位を使用 | AB12: 0.1 | AC12: 1.1
AB13: ±0% | AC13: 1
C14: データ取得 | D14: いずれも取得日は2020年3月21日（電車は直近平日の値） | AB14: -0.1 | AC14: 0.9
C15: 所要時間 | D15: Yahoo!路線情報にて、各到着駅の到着時間を「8:00」「8:30」「9:00」と３パターン検索。原則は最安経路、ただし左記より 5分以上の短縮が見込まれる場合は当該短縮経路を使用。 出発駅発車時間を記録し、3つの時刻までの所要時間を 計算。（例えば8：20到着駅に到着する場合でも、8」30到着とみなす。これにより使用電車の柔軟性（＝本数の多さ）を同時に考慮するもの） | AB15: -0.2 | AC15: 0.8
C16: 家賃相場 | D16: 「HOMES」の家賃相場情報にて、「ワンルーム・1K・1DK」「2LDK・3K・3DK」の相場を利用。利用できない場合は「SUUMO」にて同様の相場を利用。いずれも不可の場合は、近似値。 | AB16: -0.3 | AC16: 0.7
AB17: -0.4 | AC17: 0.6
AB18: -0.5 | AC18: 0.5
AB19: -0.6 | AC19: 0.4
AB20: -0.7 | AC20: 0.3
AB21: -0.8 | AC21: 0.2
AB22: -0.9 | AC22: 0.1
AB23: -1 | AC23: 0

Sheet 全データ
E2: 東京駅周辺到着 | H2: 新宿駅周辺到着 | K2: 東京駅周辺到着所要時間 | N2: 新宿駅周辺到着所要時間 | Q2: 平均所要時間 | S2: 所要時間点数 | Z2: 家賃点数 | AC2: 点数
A3: 道路名 | B3: IC名 | C3: 鉄道路線 | D3: 駅名 | E3: 08:00:00 | F3: 08:30:00 | G3: 09:00:00 | H3: 08:00:00 | I3: 08:30:00 | J3: 09:00:00 | K3: 08:00:00 | L3: 08:30:00 | M3: 09:00:00 | N3: 08:00:00 | O3: 08:30:00 | P3: 09:00:00 | Q3: 東京 | R3: 新宿 | S3: 東京 | T3: 新宿 | U3: 混雑率 | V3: 始発あり | W3: 快適性点数 | X3: 1K | Y3: 2LDK | Z3: 1K | AA3: 2LDK | AB3: 商業施設 | AC3: 商業施設
A4: 東北自動車道 | B4: 岩槻 | C4: 東武野田線 | D4: 岩槻 | E4: 06:58:00 | F4: 07:31:00 | G4: 07:54:00 | H4: 06:58:00 | I4: 07:27:00 | J4: 07:59:00 | K4: =(K$3-E4)*24*60 -> 62 | L4: =(L$3-F4)*24*60 -> 59 | M4: =(M$3-G4)*24*60 -> 66 | N4: =(N$3-H4)*24*60 -> 62 | O4: =(O$3-I4)*24*60 -> 63 | P4: =(P$3-J4)*24*60 -> 61 | Q4: =AVERAGE(K4:M4) -> 62.33333333 | R4: =AVERAGE(N4:P4) -> 62 | S4: =100-_xlfn.PERCENTRANK.INC(Q$4:Q$96,Q4)*100 -> 2.2 | T4: =100-_xlfn.PERCENTRANK.INC(R$4:R$96,R4)*100 -> 15.3 | U4: 125 | V4: × | W4: =100-_xlfn.PERCENTRANK.INC(U$4:U$96,U4)*100 -> 79.4 | X4: 4.4 | Y4: 6.31 | Z4: =100-_xlfn.PERCENTRANK.INC(X$4:X$96,X4)*100 -> 100 | AA4: =100-_xlfn.PERCENTRANK.INC(Y$4:Y$96,Y4)*100 -> 99 | AB4: ○ | AC4: =VLOOKUP(AB4,配点根拠!$G$3:$H$7,2,0) -> 80
A5: 東京湾アクアライン | B5: 木更津金田 | C5: 高速バス | D5: 木更津金田BT | E5: 07:17:00 | F5: 07:47:00 | G5: 08:14:00 | H5: 06:55:00 | I5: 07:25:00 | J5: 07:55:00 | K5: =(K$3-E5)*24*60 -> 43 | L5: =(L$3-F5)*24*60 -> 43 | M5: =(M$3-G5)*24*60 -> 46 | N5: =(N$3-H5)*24*60 -> 65 | O5: =(O$3-I5)*24*60 -> 65 | P5: =(P$3-J5)*24*60 -> 65 | Q5: =AVERAGE(K5:M5) -> 44 | R5: =AVERAGE(N5:P5) -> 65 | S5: =100-_xlfn.PERCENTRANK.INC(Q$4:Q$96,Q5)*100 -> 32.7 | T5: =100-_xlfn.PERCENTRANK.INC(R$4:R$96,R5)*100 -> 6.6 | U5: 50 | V5: × | W5: =100-_xlfn.PERCENTRANK.INC(U$4:U$96,U5)*100 -> 100 | X5: 4.5 | Y5: 6.1 | Z5: =100-_xlfn.PERCENTRANK.INC(X$4:X$96,X5)*100 -> 99 | AA5: =100-_xlfn.PERCENTRANK.INC(Y$4:Y$96,Y5)*100 -> 100 | AB5: ◎ | AC5: =VLOOKUP(AB5,配点根拠!$G$3:$H$7,2,0) -> 100
A6: 外環道 | B6: 草加 | C6: 東武スカイツリーライン | D6: 獨協大学前 | E6: 07:13:00 | F6: 07:43:00 | G6: 08:16:00 | H6: 06:59:00 | I6: 07:33:00 | J6: 07:57:00 | K6: =(K$3-E6)*24*60 -> 47 | L6: =(L$3-F6)*24*60 -> 47 | M6: =(M$3-G6)*24*60 -> 44 | N6: =(N$3-H6)*24*60 -> 61 | O6: =(O$3-I6)*24*60 -> 57 | P6: =(P$3-J6)*24*60 -> 63 | Q6: =AVERAGE(K6:M6) -> 46 | R6: =AVERAGE(N6:P6) -> 60.33333333 | S6: =100-_xlfn.PERCENTRANK.INC(Q$4:Q$96,Q6)*100 -> 27.2 | T6: =100-_xlfn.PERCENTRANK.INC(R$4:R$96,R6)*100 -> 18.5 | U6: 150 | V6: × | W6: =100-_xlfn.PERCENTRANK.INC(U$4:U$96,U6)*100 -> 63.1 | X6: 4.82 | Y6: 8.36 | Z6: =100-_xlfn.PERCENTRANK.INC(X$4:X$96,X6)*100 -> 97.9 | AA6: =100-_xlfn.PERCENTRANK.INC(Y$4:Y$96,Y6)*100 -> 90.3 | AB6: ○ | AC6: =VLOOKUP(AB6,配点根拠!$G$3:$H$7,2,0) -> 80
A7: 外環道 | B7: 松戸 | C7: 北総線 | D7: 北国分 | E7: 07:19:00 | F7: 07:48:00 | G7: 08:18:00 | H7: 06:54:00 | I7: 07:28:00 | J7: 07:59:00 | K7: =(K$3-E7)*24*60 -> 41 | L7: =(L$3-F7)*24*60 -> 42 | M7: =(M$3-G7)*24*60 -> 42 | N7: =(N$3-H7)*24*60 -> 66 | O7: =(O$3-I7)*24*60 -> 62 | P7: =(P$3-J7)*24*60 -> 61 | Q7: =AVERAGE(K7:M7) -> 41.66666667 | R7: =AVERAGE(N7:P7) -> 63 | S7: =100-_xlfn.PERCENTRANK.INC(Q$4:Q$96,Q7)*100 -> 40.3 | T7: =100-_xlfn.PERCENTRANK.INC(R$4:R$96,R7)*100 -> 13.1 | U7: 91 | V7: × | W7: =100-_xlfn.PERCENTRANK.INC(U$4:U$96,U7)*100 -> 84.8 | X7: 4.86 | Y7: 8.55 | Z7: =100-_xlfn.PERCENTRANK.INC(X$4:X$96,X7)*100 -> 96.8 | AA7: =100-_xlfn.PERCENTRANK.INC(Y$4:Y$96,Y7)*100 -> 87 | AB7: ○ | AC7: =VLOOKUP(AB7,配点根拠!$G$3:$H$7,2,0) -> 80
A8: 首都高S大宮線 | B8: 浦和南 | C8: JR埼京線 | D8: 南与野 | E8: 07:09:00 | F8: 07:43:00 | G8: 08:07:00 | H8: 07:23:00 | I8: 07:51:00 | J8: 08:28:00 | K8: =(K$3-E8)*24*60 -> 51 | L8: =(L$3-F8)*24*60 -> 47 | M8: =(M$3-G8)*24*60 -> 53 | N8: =(N$3-H8)*24*60 -> 37 | O8: =(O$3-I8)*24*60 -> 39 | P8: =(P$3-J8)*24*60 -> 32 | Q8: =AVERAGE(K8:M8) -> 50.33333333 | R8: =AVERAGE(N8:P8) -> 36 | S8: =100-_xlfn.PERCENTRANK.INC(Q$4:Q$96,Q8)*100 -> 16.4 | T8: =100-_xlfn.PERCENTRANK.INC(R$4:R$96,R8)*100 -> 69.6 | U8: 183 | V8: × | W8: =100-_xlfn.PERCENTRANK.INC(U$4:U$96,U8)*100 -> 19.6 | X8: 4.96 | Y8: 8.6 | Z8: =100-_xlfn.PERCENTRANK.INC(X$4:X$96,X8)*100 -> 95.7 | AA8: =100-_xlfn.PERCENTRANK.INC(Y$4:Y$96,Y8)*100 -> 85.9 | AB8: ■ | AC8: =VLOOKUP(AB8,配点根拠!$G$3:$H$7,2,0) -> 50
A9: 外環道 | B9: 松戸 | C9: 北総線 | D9: 矢切 | E9: 07:21:00 | F9: 07:50:00 | G9: 08:20:00 | H9: 06:59:00 | I9: 07:30:00 | J9: 08:01:00 | K9: =(K$3-E9)*24*60 -> 39 | L9: =(L$3-F9)*24*60 -> 40 | M9: =(M$3-G9)*24*60 -> 40 | N9: =(N$3-H9)*24*60 -> 61 | O9: =(O$3-I9)*24*60 -> 60 | P9: =(P$3-J9)*24*60 -> 59 | Q9: =AVERAGE(K9:M9) -> 39.66666667 | R9: =AVERAGE(N9:P9) -> 60 | S9: =100-_xlfn.PERCENTRANK.INC(Q$4:Q$96,Q9)*100 -> 44.6 | T9: =100-_xlfn.PERCENTRANK.INC(R$4:R$96,R9)*100 -> 20.7 | U9: 91 | V9: × | W9: =100-_xlfn.PERCENTRANK.INC(U$4:U$96,U9)*100 -> 84.8 | X9: 5.05 | Y9: 7.6 | Z9: =100-_xlfn.PERCENTRANK.INC(X$4:X$96,X9)*100 -> 94.6 | AA9: =100-_xlfn.PERCENTRANK.INC(Y$4:Y$96,Y9)*100 -> 95.7 | AB9: ■ | AC9: =VLOOKUP(AB9,配点根拠!$G$3:$H$7,2,0) -> 50
A10: 中央自動車道 | B10: 稲城 | C10: JR南武線 | D10: 稲城長沼 | E10: 07:01:00 | F10: 07:31:00 | G10: 07:58:00 | H10: 07:18:00 | I10: 07:55:00 | J10: 08:16:00 | K10: =(K$3-E10)*24*60 -> 59 | L10: =(L$3-F10)*24*60 -> 59 | M10: =(M$3-G10)*24*60 -> 62 | N10: =(N$3-H10)*24*60 -> 42 | O10: =(O$3-I10)*24*60 -> 35 | P10: =(P$3-J10)*24*60 -> 44 | Q10: =AVERAGE(K10:M10) -> 60 | R10: =AVERAGE(N10:P10) -> 40.33333333 | S10: =100-_xlfn.PERCENTRANK.INC(Q$4:Q$96,Q10)*100 -> 5.5 | T10: =100-_xlfn.PERCENTRANK.INC(R$4:R$96,R10)*100 -> 60.9 | U10: 184 | V10: × | W10: =100-_xlfn.PERCENTRANK.INC(U$4:U$96,U10)*100 -> 15.3 | X10: 5.07 | Y10: 9.5 | Z10: =100-_xlfn.PERCENTRANK.INC(X$4:X$96,X10)*100 -> 93.5 | AA10: =100-_xlfn.PERCENTRANK.INC(Y$4:Y$96,Y10)*100 -> 74 | AB10: △ | AC10: =VLOOKUP(AB10,配点根拠!$G$3:$H$7,2,0) -> 20
A11: 首都高川口線 | B11: 新井宿 | C11: 埼玉高速鉄道 | D11: 新井宿 | E11: 07:10:00 | F11: 07:43:00 | G11: 08:07:00 | H11: 07:10:00 | I11: 07:43:00 | J11: 08:07:00 | K11: =(K$3-E11)*24*60 -> 50 | L11: =(L$3-F11)*24*60 -> 47 | M11: =(M$3-G11)*24*60 -> 53 | N11: =(N$3-H11)*24*60 -> 50 | O11: =(O$3-I11)*24*60 -> 47 | P11: =(P$3-J11)*24*60 -> 53 | Q11: =AVERAGE(K11:M11) -> 50 | R11: =AVERAGE(N11:P11) -> 50 | S11: =100-_xlfn.PERCENTRANK.INC(Q$4:Q$96,Q11)*100 -> 17.4 | T11: =100-_xlfn.PERCENTRANK.INC(R$4:R$96,R11)*100 -> 37 | U11: 128 | V11: × | W11: =100-_xlfn.PERCENTRANK.INC(U$4:U$96,U11)*100 -> 78.3 | X11: 5.2 | Y11: 6.88 | Z11: =100-_xlfn.PERCENTRANK.INC(X$4:X$96,X11)*100 -> 92.4 | AA11: =100-_xlfn.PERCENTRANK.INC(Y$4:Y$96,Y11)*100 -> 96.8 | AB11: ■ | AC11: =VLOOKUP(AB11,配点根拠!$G$3:$H$7,2,0) -> 50
A12: 首都高K3号狩場線 | B12: 永田 | C12: JR横須賀線 | D12: 保土ヶ谷 | E12: 07:23:00 | F12: 07:53:00 | G12: 08:16:00 | H12: 07:20:00 | I12: 07:49:00 | J12: 08:16:00 | K12: =(K$3-E12)*24*60 -> 37 | L12: =(L$3-F12)*24*60 -> 37 | M12: =(M$3-G12)*24*60 -> 44 | N12: =(N$3-H12)*24*60 -> 40 | O12: =(O$3-I12)*24*60 -> 41 | P12: =(P$3-J12)*24*60 -> 44 | Q12: =AVERAGE(K12:M12) -> 39.33333333 | R12: =AVERAGE(N12:P12) -> 41.66666667 | S12: =100-_xlfn.PERCENTRANK.INC(Q$4:Q$96,Q12)*100 -> 49 | T12: =100-_xlfn.PERCENTRANK.INC(R$4:R$96,R12)*100 -> 56.6 | U12: 197 | V12: × | W12: =100-_xlfn.PERCENTRANK.INC(U$4:U$96,U12)*100 -> 4.4 | X12: 5.26 | Y12: 10.6 | Z12: =100-_xlfn.PERCENTRANK.INC(X$4:X$96,X12)*100 -> 91.4 | AA12: =100-_xlfn.PERCENTRANK.INC(Y$4:Y$96,Y12)*100 -> 63.1 | AB12: △ | AC12: =VLOOKUP(AB12,配点根拠!$G$3:$H$7,2,0) -> 20
A13: 東京湾アクアライン | B13: 袖ケ浦 | C13: 高速バス | D13: 袖ケ浦BT | E13: 07:00:00 | F13: 07:30:00 | G13: 08:05:00 | H13: 07:02:00 | I13: 07:17:00 | J13: 07:47:00 | K13: =(K$3-E13)*24*60 -> 60 | L13: =(L$3-F13)*24*60 -> 60 | M13: =(M$3-G13)*24*60 -> 55 | N13: =(N$3-H13)*24*60 -> 58 | O13: =(O$3-I13)*24*60 -> 73 | P13: =(P$3-J13)*24*60 -> 73 | Q13: =AVERAGE(K13:M13) -> 58.33333333 | R13: =AVERAGE(N13:P13) -> 68 | S13: =100-_xlfn.PERCENTRANK.INC(Q$4:Q$96,Q13)*100 -> 9.8 | T13: =100-_xlfn.PERCENTRANK.INC(R$4:R$96,R13)*100 -> 2.2 | U13: 50 | V13: △ | W13: =100-_xlfn.PERCENTRANK.INC(U$4:U$96,U13)*100 -> 100 | X13: 5.28 | Y13: 6.31 | Z13: =100-_xlfn.PERCENTRANK.INC(X$4:X$96,X13)*100 -> 90.3 | AA13: =100-_xlfn.PERCENTRANK.INC(Y$4:Y$96,Y13)*100 -> 99 | AB13: ■ | AC13: =VLOOKUP(AB13,配点根拠!$G$3:$H$7,2,0) -> 50
A14: 外環道 | B14: 外環浦和 | C14: JR京浜東北線 | D14: 南浦和 | E14: 07:22:00 | F14: 07:52:00 | G14: 08:18:00 | H14: 07:24:00 | I14: 07:52:00 | J14: 08:23:00 | K14: =(K$3-E14)*24*60 -> 38 | L14: =(L$3-F14)*24*60 -> 38 | M14: =(M$3-G14)*24*60 -> 42 | N14: =(N$3-H14)*24*60 -> 36 | O14: =(O$3-I14)*24*60 -> 38 | P14: =(P$3-J14)*24*60 -> 37 | Q14: =AVERAGE(K14:M14) -> 39.33333333 | R14: =AVERAGE(N14:P14) -> 37 | S14: =100-_xlfn.PERCENTRANK.INC(Q$4:Q$96,Q14)*100 -> 46.8 | T14: =100-_xlfn.PERCENTRANK.INC(R$4:R$96,R14)*100 -> 68.5 | U14: 80 | V14: ○ | W14: =100-_xlfn.PERCENTRANK.INC(U$4:U$96,U14)*100 -> 92.4 | X14: 5.43 | Y14: 10.24 | Z14: =100-_xlfn.PERCENTRANK.INC(X$4:X$96,X14)*100 -> 89.2 | AA14: =100-_xlfn.PERCENTRANK.INC(Y$4:Y$96,Y14)*100 -> 66.4 | AB14: ○ | AC14: =VLOOKUP(AB14,配点根拠!$G$3:$H$7,2,0) -> 80
A15: 東関東自動車道 | B15: 谷津船橋IC | C15: JR京葉線 | D15: 南船橋 | E15: 07:26:00 | F15: 07:52:00 | G15: 08:22:00 | H15: 07:00:00 | I15: 07:26:00 | J15: 07:52:00 | K15: =(K$3-E15)*24*60 -> 34 | L15: =(L$3-F15)*24*60 -> 38 | M15: =(M$3-G15)*24*60 -> 38 | N15: =(N$3-H15)*24*60 -> 60 | O15: =(O$3-I15)*24*60 -> 64 | P15: =(P$3-J15)*24*60 -> 68 | Q15: =AVERAGE(K15:M15) -> 36.66666667 | R15: =AVERAGE(N15:P15) -> 64 | S15: =100-_xlfn.PERCENTRANK.INC(Q$4:Q$96,Q15)*100 -> 55.5 | T15: =100-_xlfn.PERCENTRANK.INC(R$4:R$96,R15)*100 -> 9.8 | U15: 166 | V15: △ | W15: =100-_xlfn.PERCENTRANK.INC(U$4:U$96,U15)*100 -> 42.4 | X15: 5.5 | Y15: 9 | Z15: =100-_xlfn.PERCENTRANK.INC(X$4:X$96,X15)*100 -> 88.1 | AA15: =100-_xlfn.PERCENTRANK.INC(Y$4:Y$96,Y15)*100 -> 80.5 | AB15: ◎ | AC15: =VLOOKUP(AB15,配点根拠!$G$3:$H$7,2,0) -> 100
A16: 首都高K3号狩場線 | B16: 花之木 | C16: 京急本線 | D16: 南太田 | E16: 07:14:00 | F16: 07:40:00 | G16: 08:13:00 | H16: 07:09:00 | I16: 07:35:00 | J16: 08:01:00 | K16: =(K$3-E16)*24*60 -> 46 | L16: =(L$3-F16)*24*60 -> 50 | M16: =(M$3-G16)*24*60 -> 47 | N16: =(N$3-H16)*24*60 -> 51 | O16: =(O$3-I16)*24*60 -> 55 | P16: =(P$3-J16)*24*60 -> 59 | Q16: =AVERAGE(K16:M16) -> 47.66666667 | R16: =AVERAGE(N16:P16) -> 55 | S16: =100-_xlfn.PERCENTRANK.INC(Q$4:Q$96,Q16)*100 -> 20.7 | T16: =100-_xlfn.PERCENTRANK.INC(R$4:R$96,R16)*100 -> 27.2 | U16: 143 | V16: × | W16: =100-_xlfn.PERCENTRANK.INC(U$4:U$96,U16)*100 -> 70.7 | X16: 5.53 | Y16: 11.5 | Z16: =100-_xlfn.PERCENTRANK.INC(X$4:X$96,X16)*100 -> 87 | AA16: =100-_xlfn.PERCENTRANK.INC(Y$4:Y$96,Y16)*100 -> 49 | AB16: △ | AC16: =VLOOKUP(AB16,配点根拠!$G$3:$H$7,2,0) -> 20
A17: 中央自動車道 | B17: 調布 | C17: 京王線 | D17: 西調布 | E17: 07:04:00 | F17: 07:29:00 | G17: 07:57:00 | H17: 07:17:00 | I17: 07:49:00 | J17: 08:19:00 | K17: =(K$3-E17)*24*60 -> 56 | L17: =(L$3-F17)*24*60 -> 61 | M17: =(M$3-G17)*24*60 -> 63 | N17: =(N$3-H17)*24*60 -> 43 | O17: =(O$3-I17)*24*60 -> 41 | P17: =(P$3-J17)*24*60 -> 41 | Q17: =AVERAGE(K17:M17) -> 60 | R17: =AVERAGE(N17:P17) -> 41.66666667 | S17: =100-_xlfn.PERCENTRANK.INC(Q$4:Q$96,Q17)*100 -> 5.5 | T17: =100-_xlfn.PERCENTRANK.INC(R$4:R$96,R17)*100 -> 55.5 | U17: 165 | V17: × | W17: =100-_xlfn.PERCENTRANK.INC(U$4:U$96,U17)*100 -> 49 | X17: 5.61 | Y17: 11.2 | Z17: =100-_xlfn.PERCENTRANK.INC(X$4:X$96,X17)*100 -> 85.9 | AA17: =100-_xlfn.PERCENTRANK.INC(Y$4:Y$96,Y17)*100 -> 54.4 | AB17: △ | AC17: =VLOOKUP(AB17,配点根拠!$G$3:$H$7,2,0) -> 20
A18: 首都高5号池袋線 | B18: 戸田南 | C18: JR埼京線 | D18: 戸田 | E18: 07:18:00 | F18: 07:47:00 | G18: 08:15:00 | H18: 07:29:00 | I18: 08:01:00 | J18: 08:31:00 | K18: =(K$3-E18)*24*60 -> 42 | L18: =(L$3-F18)*24*60 -> 43 | M18: =(M$3-G18)*24*60 -> 45 | N18: =(N$3-H18)*24*60 -> 31 | O18: =(O$3-I18)*24*60 -> 29 | P18: =(P$3-J18)*24*60 -> 29 | Q18: =AVERAGE(K18:M18) -> 43.33333333 | R18: =AVERAGE(N18:P18) -> 29.66666667 | S18: =100-_xlfn.PERCENTRANK.INC(Q$4:Q$96,Q18)*100 -> 33.7 | T18: =100-_xlfn.PERCENTRANK.INC(R$4:R$96,R18)*100 -> 84.8 | U18: 183 | V18: × | W18: =100-_xlfn.PERCENTRANK.INC(U$4:U$96,U18)*100 -> 19.6 | X18: 5.69 | Y18: 8.68 | Z18: =100-_xlfn.PERCENTRANK.INC(X$4:X$96,X18)*100 -> 84.8 | AA18: =100-_xlfn.PERCENTRANK.INC(Y$4:Y$96,Y18)*100 -> 84.8 | AB18: ○ | AC18: =VLOOKUP(AB18,配点根拠!$G$3:$H$7,2,0) -> 80
A19: 首都高K1号横羽線 | B19: 汐入 | C19: JR鶴見線 | D19: 弁天橋 | E19: 07:20:00 | F19: 07:45:00 | G19: 08:15:00 | H19: 07:03:00 | I19: 07:39:00 | J19: 08:02:00 | K19: =(K$3-E19)*24*60 -> 40 | L19: =(L$3-F19)*24*60 -> 45 | M19: =(M$3-G19)*24*60 -> 45 | N19: =(N$3-H19)*24*60 -> 57 | O19: =(O$3-I19)*24*60 -> 51 | P19: =(P$3-J19)*24*60 -> 58 | Q19: =AVERAGE(K19:M19) -> 43.33333333 | R19: =AVERAGE(N19:P19) -> 55.33333333 | S19: =100-_xlfn.PERCENTRANK.INC(Q$4:Q$96,Q19)*100 -> 34.8 | T19: =100-_xlfn.PERCENTRANK.INC(R$4:R$96,R19)*100 -> 26.1 | U19: 110 | V19: × | W19: =100-_xlfn.PERCENTRANK.INC(U$4:U$96,U19)*100 -> 82.7 | X19: 5.73 | Y19: 10.1 | Z19: =100-_xlfn.PERCENTRANK.INC(X$4:X$96,X19)*100 -> 83.7 | AA19: =100-_xlfn.PERCENTRANK.INC(Y$4:Y$96,Y19)*100 -> 69.6 | AB19: × | AC19: =VLOOKUP(AB19,配点根拠!$G$3:$H$7,2,0) -> 0
A20: 首都高川口線 | B20: 新郷 | C20: 埼玉高速鉄道 | D20: 鳩ヶ谷 | E20: 07:13:00 | F20: 07:46:00 | G20: 08:09:00 | H20: 07:13:00 | I20: 07:46:00 | J20: 08:09:00 | K20: =(K$3-E20)*24*60 -> 47 | L20: =(L$3-F20)*24*60 -> 44 | M20: =(M$3-G20)*24*60 -> 51 | N20: =(N$3-H20)*24*60 -> 47 | O20: =(O$3-I20)*24*60 -> 44 | P20: =(P$3-J20)*24*60 -> 51 | Q20: =AVERAGE(K20:M20) -> 47.33333333 | R20: =AVERAGE(N20:P20) -> 47.33333333 | S20: =100-_xlfn.PERCENTRANK.INC(Q$4:Q$96,Q20)*100 -> 24 | T20: =100-_xlfn.PERCENTRANK.INC(R$4:R$96,R20)*100 -> 46.8 | U20: 80 | V20: ○ | W20: =100-_xlfn.PERCENTRANK.INC(U$4:U$96,U20)*100 -> 92.4 | X20: 5.73 | Y20: 9.12 | Z20: =100-_xlfn.PERCENTRANK.INC(X$4:X$96,X20)*100 -> 83.7 | AA20: =100-_xlfn.PERCENTRANK.INC(Y$4:Y$96,Y20)*100 -> 78.3 | AB20: ■ | AC20: =VLOOKUP(AB20,配点根拠!$G$3:$H$7,2,0) -> 50
A21: 中央自動車道 | B21: 国立府中 | C21: JR南武線 | D21: 谷保 | E21: 06:47:00 | F21: 07:17:00 | G21: 07:47:00 | H21: 07:05:00 | I21: 07:43:00 | J21: 08:12:00 | K21: =(K$3-E21)*24*60 -> 73 | L21: =(L$3-F21)*24*60 -> 73 | M21: =(M$3-G21)*24*60 -> 73 | N21: =(N$3-H21)*24*60 -> 55 | O21: =(O$3-I21)*24*60 -> 47 | P21: =(P$3-J21)*24*60 -> 48 | Q21: =AVERAGE(K21:M21) -> 73 | R21: =AVERAGE(N21:P21) -> 50 | S21: =100-_xlfn.PERCENTRANK.INC(Q$4:Q$96,Q21)*100 -> 0 | T21: =100-_xlfn.PERCENTRANK.INC(R$4:R$96,R21)*100 -> 35.9 | U21: 184 | V21: × | W21: =100-_xlfn.PERCENTRANK.INC(U$4:U$96,U21)*100 -> 15.3 | X21: 5.76 | Y21: 10.29 | Z21: =100-_xlfn.PERCENTRANK.INC(X$4:X$96,X21)*100 -> 81.6 | AA21: =100-_xlfn.PERCENTRANK.INC(Y$4:Y$96,Y21)*100 -> 65.3 | AB21: △ | AC21: =VLOOKUP(AB21,配点根拠!$G$3:$H$7,2,0) -> 20
A22: 首都高5号池袋線 | B22: 高島平 | C22: 都営三田線 | D22: 西高島平 | E22: 07:22:00 | F22: 07:53:00 | G22: 08:22:00 | H22: 07:22:00 | I22: 07:43:00 | J22: 08:14:00 | K22: =(K$3-E22)*24*60 -> 38 | L22: =(L$3-F22)*24*60 -> 37 | M22: =(M$3-G22)*24*60 -> 38 | N22: =(N$3-H22)*24*60 -> 38 | O22: =(O$3-I22)*24*60 -> 47 | P22: =(P$3-J22)*24*60 -> 46 | Q22: =AVERAGE(K22:M22) -> 37.66666667 | R22: =AVERAGE(N22:P22) -> 43.66666667 | S22: =100-_xlfn.PERCENTRANK.INC(Q$4:Q$96,Q22)*100 -> 54.4 | T22: =100-_xlfn.PERCENTRANK.INC(R$4:R$96,R22)*100 -> 51.1 | U22: 50 | V22: ◎ | W22: =100-_xlfn.PERCENTRANK.INC(U$4:U$96,U22)*100 -> 100 | X22: 5.77 | Y22: 8.8 | Z22: =100-_xlfn.PERCENTRANK.INC(X$4:X$96,X22)*100 -> 80.5 | AA22: =100-_xlfn.PERCENTRANK.INC(Y$4:Y$96,Y22)*100 -> 81.6 | AB22: × | AC22: =VLOOKUP(AB22,配点根拠!$G$3:$H$7,2,0) -> 0
A23: 京葉道路 | B23: 花輪 | C23: 京成本線 | D23: 船橋競馬場 | E23: 07:15:00 | F23: 07:48:00 | G23: 08:09:00 | H23: 06:55:00 | I23: 07:28:00 | J23: 07:55:00 | K23: =(K$3-E23)*24*60 -> 45 | L23: =(L$3-F23)*24*60 -> 42 | M23: =(M$3-G23)*24*60 -> 51 | N23: =(N$3-H23)*24*60 -> 65 | O23: =(O$3-I23)*24*60 -> 62 | P23: =(P$3-J23)*24*60 -> 65 | Q23: =AVERAGE(K23:M23) -> 46 | R23: =AVERAGE(N23:P23) -> 64 | S23: =100-_xlfn.PERCENTRANK.INC(Q$4:Q$96,Q23)*100 -> 26.1 | T23: =100-_xlfn.PERCENTRANK.INC(R$4:R$96,R23)*100 -> 9.8 | U23: 130 | V23: × | W23: =100-_xlfn.PERCENTRANK.INC(U$4:U$96,U23)*100 -> 76.1 | X23: 5.81 | Y23: 9.4 | Z23: =100-_xlfn.PERCENTRANK.INC(X$4:X$96,X23)*100 -> 79.4 | AA23: =100-_xlfn.PERCENTRANK.INC(Y$4:Y$96,Y23)*100 -> 75 | AB23: ◎ | AC23: =VLOOKUP(AB23,配点根拠!$G$3:$H$7,2,0) -> 100
A24: 外環道 | B24: 川口東 | C24: 埼玉高速鉄道 | D24: 戸塚安行 | E24: 07:07:00 | F24: 07:40:00 | G24: 08:04:00 | H24: 07:07:00 | I24: 07:40:00 | J24: 08:04:00 | K24: =(K$3-E24)*24*60 -> 53 | L24: =(L$3-F24)*24*60 -> 50 | M24: =(M$3-G24)*24*60 -> 56 | N24: =(N$3-H24)*24*60 -> 53 | O24: =(O$3-I24)*24*60 -> 50 | P24: =(P$3-J24)*24*60 -> 56 | Q24: =AVERAGE(K24:M24) -> 53 | R24: =AVERAGE(N24:P24) -> 53 | S24: =100-_xlfn.PERCENTRANK.INC(Q$4:Q$96,Q24)*100 -> 12 | T24: =100-_xlfn.PERCENTRANK.INC(R$4:R$96,R24)*100 -> 29.4 | U24: 128 | V24: × | W24: =100-_xlfn.PERCENTRANK.INC(U$4:U$96,U24)*100 -> 78.3 | X24: 5.88 | Y24: 8.02 | Z24: =100-_xlfn.PERCENTRANK.INC(X$4:X$96,X24)*100 -> 78.3 | AA24: =100-_xlfn.PERCENTRANK.INC(Y$4:Y$96,Y24)*100 -> 93.5 | AB24: △ | AC24: =VLOOKUP(AB24,配点根拠!$G$3:$H$7,2,0) -> 20
A25: 外環道 | B25: 外環三郷西 | C25: JR武蔵野線 | D25: 新三郷 | E25: 07:02:00 | F25: 07:34:00 | G25: 07:59:00 | H25: 06:54:00 | I25: 07:25:00 | J25: 07:57:00 | K25: =(K$3-E25)*24*60 -> 58 | L25: =(L$3-F25)*24*60 -> 56 | M25: =(M$3-G25)*24*60 -> 61 | N25: =(N$3-H25)*24*60 -> 66 | O25: =(O$3-I25)*24*60 -> 65 | P25: =(P$3-J25)*24*60 -> 63 | Q25: =AVERAGE(K25:M25) -> 58.33333333 | R25: =AVERAGE(N25:P25) -> 64.66666667 | S25: =100-_xlfn.PERCENTRANK.INC(Q$4:Q$96,Q25)*100 -> 8.7 | T25: =100-_xlfn.PERCENTRANK.INC(R$4:R$96,R25)*100 -> 7.7 | U25: 173 | V25: × | W25: =100-_xlfn.PERCENTRANK.INC(U$4:U$96,U25)*100 -> 31.6 | X25: 5.9 | Y25: 8.4 | Z25: =100-_xlfn.PERCENTRANK.INC(X$4:X$96,X25)*100 -> 77.2 | AA25: =100-_xlfn.PERCENTRANK.INC(Y$4:Y$96,Y25)*100 -> 89.2 | AB25: ◎ | AC25: =VLOOKUP(AB25,配点根拠!$G$3:$H$7,2,0) -> 100
A26: 首都高湾岸線 | B26: 葛西 | C26: JR京葉線 | D26: 葛西臨海公園 | E26: 07:43:00 | F26: 08:09:00 | G26: 08:42:00 | H26: 07:09:00 | I26: 07:43:00 | J26: 08:09:00 | K26: =(K$3-E26)*24*60 -> 17 | L26: =(L$3-F26)*24*60 -> 21 | M26: =(M$3-G26)*24*60 -> 18 | N26: =(N$3-H26)*24*60 -> 51 | O26: =(O$3-I26)*24*60 -> 47 | P26: =(P$3-J26)*24*60 -> 51 | Q26: =AVERAGE(K26:M26) -> 18.66666667 | R26: =AVERAGE(N26:P26) -> 49.66666667 | S26: =100-_xlfn.PERCENTRANK.INC(Q$4:Q$96,Q26)*100 -> 93.5 | T26: =100-_xlfn.PERCENTRANK.INC(R$4:R$96,R26)*100 -> 38.1 | U26: 166 | V26: × | W26: =100-_xlfn.PERCENTRANK.INC(U$4:U$96,U26)*100 -> 42.4 | X26: 5.9 | Y26: 10 | Z26: =100-_xlfn.PERCENTRANK.INC(X$4:X$96,X26)*100 -> 77.2 | AA26: =100-_xlfn.PERCENTRANK.INC(Y$4:Y$96,Y26)*100 -> 71.8 | AB26: △ | AC26: =VLOOKUP(AB26,配点根拠!$G$3:$H$7,2,0) -> 20
A27: 京葉道路 | B27: 幕張 | C27: JR総武線 | D27: 幕張本郷 | E27: 07:16:00 | F27: 07:46:00 | G27: 08:14:00 | H27: 07:00:00 | I27: 07:31:00 | J27: 07:58:00 | K27: =(K$3-E27)*24*60 -> 44 | L27: =(L$3-F27)*24*60 -> 44 | M27: =(M$3-G27)*24*60 -> 46 | N27: =(N$3-H27)*24*60 -> 60 | O27: =(O$3-I27)*24*60 -> 59 | P27: =(P$3-J27)*24*60 -> 62 | Q27: =AVERAGE(K27:M27) -> 44.66666667 | R27: =AVERAGE(N27:P27) -> 60.33333333 | S27: =100-_xlfn.PERCENTRANK.INC(Q$4:Q$96,Q27)*100 -> 31.6 | T27: =100-_xlfn.PERCENTRANK.INC(R$4:R$96,R27)*100 -> 18.5 | U27: 196 | V27: × | W27: =100-_xlfn.PERCENTRANK.INC(U$4:U$96,U27)*100 -> 7.7 | X27: 5.91 | Y27: 9.24 | Z27: =100-_xlfn.PERCENTRANK.INC(X$4:X$96,X27)*100 -> 75 | AA27: =100-_xlfn.PERCENTRANK.INC(Y$4:Y$96,Y27)*100 -> 77.2 | AB27: △ | AC27: =VLOOKUP(AB27,配点根拠!$G$3:$H$7,2,0) -> 20
A28: 常磐自動車道 | B28: 谷和原 | C28: つくばエクスプレス | D28: 守谷 | E28: 07:00:00 | F28: 07:30:00 | G28: 08:03:00 | H28: 06:49:00 | I28: 07:19:00 | J28: 07:45:00 | K28: =(K$3-E28)*24*60 -> 60 | L28: =(L$3-F28)*24*60 -> 60 | M28: =(M$3-G28)*24*60 -> 57 | N28: =(N$3-H28)*24*60 -> 71 | O28: =(O$3-I28)*24*60 -> 71 | P28: =(P$3-J28)*24*60 -> 75 | Q28: =AVERAGE(K28:M28) -> 59 | R28: =AVERAGE(N28:P28) -> 72.33333333 | S28: =100-_xlfn.PERCENTRANK.INC(Q$4:Q$96,Q28)*100 -> 7.7 | T28: =100-_xlfn.PERCENTRANK.INC(R$4:R$96,R28)*100 -> 0 | U28: 80 | V28: ○ | W28: =100-_xlfn.PERCENTRANK.INC(U$4:U$96,U28)*100 -> 92.4 | X28: 5.93 | Y28: 8.09 | Z28: =100-_xlfn.PERCENTRANK.INC(X$4:X$96,X28)*100 -> 74 | AA28: =100-_xlfn.PERCENTRANK.INC(Y$4:Y$96,Y28)*100 -> 92.4 | AB28: ◎ | AC28: =VLOOKUP(AB28,配点根拠!$G$3:$H$7,2,0) -> 100
A29: 外環道 | B29: 戸田東 | C29: JR埼京線 | D29: 北戸田 | E29: 07:16:00 | F29: 07:44:00 | G29: 08:13:00 | H29: 07:27:00 | I29: 07:59:00 | J29: 08:29:00 | K29: =(K$3-E29)*24*60 -> 44 | L29: =(L$3-F29)*24*60 -> 46 | M29: =(M$3-G29)*24*60 -> 47 | N29: =(N$3-H29)*24*60 -> 33 | O29: =(O$3-I29)*24*60 -> 31 | P29: =(P$3-J29)*24*60 -> 31 | Q29: =AVERAGE(K29:M29) -> 45.66666667 | R29: =AVERAGE(N29:P29) -> 31.66666667 | S29: =100-_xlfn.PERCENTRANK.INC(Q$4:Q$96,Q29)*100 -> 29.4 | T29: =100-_xlfn.PERCENTRANK.INC(R$4:R$96,R29)*100 -> 80.5 | U29: 183 | V29: × | W29: =100-_xlfn.PERCENTRANK.INC(U$4:U$96,U29)*100 -> 19.6 | X29: 5.97 | Y29: 8.73 | Z29: =100-_xlfn.PERCENTRANK.INC(X$4:X$96,X29)*100 -> 72.9 | AA29: =100-_xlfn.PERCENTRANK.INC(Y$4:Y$96,Y29)*100 -> 82.7 | AB29: ■ | AC29: =VLOOKUP(AB29,配点根拠!$G$3:$H$7,2,0) -> 50
A30: 東関東自動車道 | B30: 湾岸千葉IC | C30: JR京葉線 | D30: 海浜幕張 | E30: 07:19:00 | F30: 07:45:00 | G30: 08:16:00 | H30: 06:55:00 | I30: 07:19:00 | J30: 07:45:00 | K30: =(K$3-E30)*24*60 -> 41 | L30: =(L$3-F30)*24*60 -> 45 | M30: =(M$3-G30)*24*60 -> 44 | N30: =(N$3-H30)*24*60 -> 65 | O30: =(O$3-I30)*24*60 -> 71 | P30: =(P$3-J30)*24*60 -> 75 | Q30: =AVERAGE(K30:M30) -> 43.33333333 | R30: =AVERAGE(N30:P30) -> 70.33333333 | S30: =100-_xlfn.PERCENTRANK.INC(Q$4:Q$96,Q30)*100 -> 37 | T30: =100-_xlfn.PERCENTRANK.INC(R$4:R$96,R30)*100 -> 1.1 | U30: 80 | V30: ○ | W30: =100-_xlfn.PERCENTRANK.INC(U$4:U$96,U30)*100 -> 92.4 | X30: 6 | Y30: 10 | Z30: =100-_xlfn.PERCENTRANK.INC(X$4:X$96,X30)*100 -> 71.8 | AA30: =100-_xlfn.PERCENTRANK.INC(Y$4:Y$96,Y30)*100 -> 71.8 | AB30: ◎ | AC30: =VLOOKUP(AB30,配点根拠!$G$3:$H$7,2,0) -> 100
A31: 首都高K1号横羽線 | B31: 大師 | C31: 京急大師線 | D31: 大師橋 | E31: 07:16:00 | F31: 07:41:00 | G31: 08:11:00 | H31: 07:01:00 | I31: 07:31:00 | J31: 08:01:00 | K31: =(K$3-E31)*24*60 -> 44 | L31: =(L$3-F31)*24*60 -> 49 | M31: =(M$3-G31)*24*60 -> 49 | N31: =(N$3-H31)*24*60 -> 59 | O31: =(O$3-I31)*24*60 -> 59 | P31: =(P$3-J31)*24*60 -> 59 | Q31: =AVERAGE(K31:M31) -> 47.33333333 | R31: =AVERAGE(N31:P31) -> 59 | S31: =100-_xlfn.PERCENTRANK.INC(Q$4:Q$96,Q31)*100 -> 24 | T31: =100-_xlfn.PERCENTRANK.INC(R$4:R$96,R31)*100 -> 22.9 | U31: 110 | V31: × | W31: =100-_xlfn.PERCENTRANK.INC(U$4:U$96,U31)*100 -> 82.7 | X31: 6.03 | Y31: 11.14 | Z31: =100-_xlfn.PERCENTRANK.INC(X$4:X$96,X31)*100 -> 70.7 | AA31: =100-_xlfn.PERCENTRANK.INC(Y$4:Y$96,Y31)*100 -> 55.5 | AB31: × | AC31: =VLOOKUP(AB31,配点根拠!$G$3:$H$7,2,0) -> 0
A32: 京葉道路 | B32: 武石 | C32: JR総武線 | D32: 幕張 | E32: 07:13:00 | F32: 07:43:00 | G32: 08:11:00 | H32: 06:58:00 | I32: 07:28:00 | J32: 07:55:00 | K32: =(K$3-E32)*24*60 -> 47 | L32: =(L$3-F32)*24*60 -> 47 | M32: =(M$3-G32)*24*60 -> 49 | N32: =(N$3-H32)*24*60 -> 62 | O32: =(O$3-I32)*24*60 -> 62 | P32: =(P$3-J32)*24*60 -> 65 | Q32: =AVERAGE(K32:M32) -> 47.66666667 | R32: =AVERAGE(N32:P32) -> 63 | S32: =100-_xlfn.PERCENTRANK.INC(Q$4:Q$96,Q32)*100 -> 20.7 | T32: =100-_xlfn.PERCENTRANK.INC(R$4:R$96,R32)*100 -> 12 | U32: 196 | V32: × | W32: =100-_xlfn.PERCENTRANK.INC(U$4:U$96,U32)*100 -> 7.7 | X32: 6.04 | Y32: 7.97 | Z32: =100-_xlfn.PERCENTRANK.INC(X$4:X$96,X32)*100 -> 69.6 | AA32: =100-_xlfn.PERCENTRANK.INC(Y$4:Y$96,Y32)*100 -> 94.6 | AB32: ■ | AC32: =VLOOKUP(AB32,配点根拠!$G$3:$H$7,2,0) -> 50
A33: 東関東自動車道 | B33: 湾岸習志野IC | C33: JR京葉線 | D33: 新習志野 | E33: 07:23:00 | F33: 07:49:00 | G33: 08:19:00 | H33: 06:54:00 | I33: 07:23:00 | J33: 07:49:00 | K33: =(K$3-E33)*24*60 -> 37 | L33: =(L$3-F33)*24*60 -> 41 | M33: =(M$3-G33)*24*60 -> 41 | N33: =(N$3-H33)*24*60 -> 66 | O33: =(O$3-I33)*24*60 -> 67 | P33: =(P$3-J33)*24*60 -> 71 | Q33: =AVERAGE(K33:M33) -> 39.66666667 | R33: =AVERAGE(N33:P33) -> 68 | S33: =100-_xlfn.PERCENTRANK.INC(Q$4:Q$96,Q33)*100 -> 42.4 | T33: =100-_xlfn.PERCENTRANK.INC(R$4:R$96,R33)*100 -> 3.3 | U33: 166 | V33: △ | W33: =100-_xlfn.PERCENTRANK.INC(U$4:U$96,U33)*100 -> 42.4 | X33: 6.1 | Y33: 8.7 | Z33: =100-_xlfn.PERCENTRANK.INC(X$4:X$96,X33)*100 -> 68.5 | AA33: =100-_xlfn.PERCENTRANK.INC(Y$4:Y$96,Y33)*100 -> 83.7 | AB33: ○ | AC33: =VLOOKUP(AB33,配点根拠!$G$3:$H$7,2,0) -> 80
A34: 東北自動車道 | B34: 浦和 | C34: 埼玉高速鉄道 | D34: 浦和美園 | E34: 07:01:00 | F34: 07:34:00 | G34: 07:58:00 | H34: 07:01:00 | I34: 07:34:00 | J34: 07:58:00 | K34: =(K$3-E34)*24*60 -> 59 | L34: =(L$3-F34)*24*60 -> 56 | M34: =(M$3-G34)*24*60 -> 62 | N34: =(N$3-H34)*24*60 -> 59 | O34: =(O$3-I34)*24*60 -> 56 | P34: =(P$3-J34)*24*60 -> 62 | Q34: =AVERAGE(K34:M34) -> 59 | R34: =AVERAGE(N34:P34) -> 59 | S34: =100-_xlfn.PERCENTRANK.INC(Q$4:Q$96,Q34)*100 -> 6.6 | T34: =100-_xlfn.PERCENTRANK.INC(R$4:R$96,R34)*100 -> 21.8 | U34: 50 | V34: ◎ | W34: =100-_xlfn.PERCENTRANK.INC(U$4:U$96,U34)*100 -> 100 | X34: 6.13 | Y34: 8.3 | Z34: =100-_xlfn.PERCENTRANK.INC(X$4:X$96,X34)*100 -> 67.4 | AA34: =100-_xlfn.PERCENTRANK.INC(Y$4:Y$96,Y34)*100 -> 91.4 | AB34: ◎ | AC34: =VLOOKUP(AB34,配点根拠!$G$3:$H$7,2,0) -> 100
A35: 首都高川口線 | B35: 足立入谷 | C35: 都営日暮里舎人ライナー | D35: 舎人 | E35: 07:21:00 | F35: 07:51:00 | G35: 08:21:00 | H35: 07:11:00 | I35: 07:41:00 | J35: 08:11:00 | K35: =(K$3-E35)*24*60 -> 39 | L35: =(L$3-F35)*24*60 -> 39 | M35: =(M$3-G35)*24*60 -> 39 | N35: =(N$3-H35)*24*60 -> 49 | O35: =(O$3-I35)*24*60 -> 49 | P35: =(P$3-J35)*24*60 -> 49 | Q35: =AVERAGE(K35:M35) -> 39 | R35: =AVERAGE(N35:P35) -> 49 | S35: =100-_xlfn.PERCENTRANK.INC(Q$4:Q$96,Q35)*100 -> 51.1 | T35: =100-_xlfn.PERCENTRANK.INC(R$4:R$96,R35)*100 -> 43.5 | U35: 189 | V35: × | W35: =100-_xlfn.PERCENTRANK.INC(U$4:U$96,U35)*100 -> 10.9 | X35: 6.19 | Y35: 9.08 | Z35: =100-_xlfn.PERCENTRANK.INC(X$4:X$96,X35)*100 -> 66.4 | AA35: =100-_xlfn.PERCENTRANK.INC(Y$4:Y$96,Y35)*100 -> 79.4 | AB35: △ | AC35: =VLOOKUP(AB35,配点根拠!$G$3:$H$7,2,0) -> 20
A36: 外環道 | B36: 三郷南 | C36: JR常磐線 | D36: 松戸 | E36: 07:29:00 | F36: 07:58:00 | G36: 08:26:00 | H36: 07:15:00 | I36: 07:47:00 | J36: 08:12:00 | K36: =(K$3-E36)*24*60 -> 31 | L36: =(L$3-F36)*24*60 -> 32 | M36: =(M$3-G36)*24*60 -> 34 | N36: =(N$3-H36)*24*60 -> 45 | O36: =(O$3-I36)*24*60 -> 43 | P36: =(P$3-J36)*24*60 -> 48 | Q36: =AVERAGE(K36:M36) -> 32.33333333 | R36: =AVERAGE(N36:P36) -> 45.33333333 | S36: =100-_xlfn.PERCENTRANK.INC(Q$4:Q$96,Q36)*100 -> 64.2 | T36: =100-_xlfn.PERCENTRANK.INC(R$4:R$96,R36)*100 -> 49 | U36: 152 | V36: × | W36: =100-_xlfn.PERCENTRANK.INC(U$4:U$96,U36)*100 -> 59.8 | X36: 6.23 | Y36: 10.11 | Z36: =100-_xlfn.PERCENTRANK.INC(X$4:X$96,X36)*100 -> 65.3 | AA36: =100-_xlfn.PERCENTRANK.INC(Y$4:Y$96,Y36)*100 -> 68.5 | AB36: ○ | AC36: =VLOOKUP(AB36,配点根拠!$G$3:$H$7,2,0) -> 80
A37: 首都高S新都心線 | B37: 新都心西 | C37: JR埼京線 | D37: 北与野 | E37: 07:12:00 | F37: 07:39:00 | G37: 08:08:00 | H37: 07:19:00 | I37: 07:47:00 | J37: 08:23:00 | K37: =(K$3-E37)*24*60 -> 48 | L37: =(L$3-F37)*24*60 -> 51 | M37: =(M$3-G37)*24*60 -> 52 | N37: =(N$3-H37)*24*60 -> 41 | O37: =(O$3-I37)*24*60 -> 43 | P37: =(P$3-J37)*24*60 -> 37 | Q37: =AVERAGE(K37:M37) -> 50.33333333 | R37: =AVERAGE(N37:P37) -> 40.33333333 | S37: =100-_xlfn.PERCENTRANK.INC(Q$4:Q$96,Q37)*100 -> 15.3 | T37: =100-_xlfn.PERCENTRANK.INC(R$4:R$96,R37)*100 -> 59.8 | U37: 183 | V37: × | W37: =100-_xlfn.PERCENTRANK.INC(U$4:U$96,U37)*100 -> 19.6 | X37: 6.31 | Y37: 9.32 | Z37: =100-_xlfn.PERCENTRANK.INC(X$4:X$96,X37)*100 -> 64.2 | AA37: =100-_xlfn.PERCENTRANK.INC(Y$4:Y$96,Y37)*100 -> 76.1 | AB37: ◎ | AC37: =VLOOKUP(AB37,配点根拠!$G$3:$H$7,2,0) -> 100
A38: 首都高6号三郷線 | B38: 加平 | C38: メトロ千代田線 | D38: 北綾瀬 | E38: 07:28:00 | F38: 07:58:00 | G38: 08:28:00 | H38: 07:15:00 | I38: 07:38:00 | J38: 08:06:00 | K38: =(K$3-E38)*24*60 -> 32 | L38: =(L$3-F38)*24*60 -> 32 | M38: =(M$3-G38)*24*60 -> 32 | N38: =(N$3-H38)*24*60 -> 45 | O38: =(O$3-I38)*24*60 -> 52 | P38: =(P$3-J38)*24*60 -> 54 | Q38: =AVERAGE(K38:M38) -> 32 | R38: =AVERAGE(N38:P38) -> 50.33333333 | S38: =100-_xlfn.PERCENTRANK.INC(Q$4:Q$96,Q38)*100 -> 66.4 | T38: =100-_xlfn.PERCENTRANK.INC(R$4:R$96,R38)*100 -> 33.7 | U38: 50 | V38: ◎ | W38: =100-_xlfn.PERCENTRANK.INC(U$4:U$96,U38)*100 -> 100 | X38: 6.31 | Y38: 11.13 | Z38: =100-_xlfn.PERCENTRANK.INC(X$4:X$96,X38)*100 -> 64.2 | AA38: =100-_xlfn.PERCENTRANK.INC(Y$4:Y$96,Y38)*100 -> 56.6 | AB38: △ | AC38: =VLOOKUP(AB38,配点根拠!$G$3:$H$7,2,0) -> 20
A39: 首都高中央環状線 | B39: 小菅 | C39: 京成本線 | D39: 堀切菖蒲園 | E39: 07:32:00 | F39: 07:59:00 | G39: 08:28:00 | H39: 07:12:00 | I39: 07:42:00 | J39: 08:12:00 | K39: =(K$3-E39)*24*60 -> 28 | L39: =(L$3-F39)*24*60 -> 31 | M39: =(M$3-G39)*24*60 -> 32 | N39: =(N$3-H39)*24*60 -> 48 | O39: =(O$3-I39)*24*60 -> 48 | P39: =(P$3-J39)*24*60 -> 48 | Q39: =AVERAGE(K39:M39) -> 30.33333333 | R39: =AVERAGE(N39:P39) -> 48 | S39: =100-_xlfn.PERCENTRANK.INC(Q$4:Q$96,Q39)*100 -> 69.6 | T39: =100-_xlfn.PERCENTRANK.INC(R$4:R$96,R39)*100 -> 44.6 | U39: 130 | V39: × | W39: =100-_xlfn.PERCENTRANK.INC(U$4:U$96,U39)*100 -> 76.1 | X39: 6.35 | Y39: 10.84 | Z39: =100-_xlfn.PERCENTRANK.INC(X$4:X$96,X39)*100 -> 62 | AA39: =100-_xlfn.PERCENTRANK.INC(Y$4:Y$96,Y39)*100 -> 59.8 | AB39: ■ | AC39: =VLOOKUP(AB39,配点根拠!$G$3:$H$7,2,0) -> 50
A40: 外環道 | B40: 市川南 | C40: メトロ東西線 | D40: 妙典 | E40: 07:27:00 | F40: 07:58:00 | G40: 08:26:00 | H40: 07:09:00 | I40: 07:35:00 | J40: 08:08:00 | K40: =(K$3-E40)*24*60 -> 33 | L40: =(L$3-F40)*24*60 -> 32 | M40: =(M$3-G40)*24*60 -> 34 | N40: =(N$3-H40)*24*60 -> 51 | O40: =(O$3-I40)*24*60 -> 55 | P40: =(P$3-J40)*24*60 -> 52 | Q40: =AVERAGE(K40:M40) -> 33 | R40: =AVERAGE(N40:P40) -> 52.66666667 | S40: =100-_xlfn.PERCENTRANK.INC(Q$4:Q$96,Q40)*100 -> 63.1 | T40: =100-_xlfn.PERCENTRANK.INC(R$4:R$96,R40)*100 -> 30.5 | U40: 199 | V40: × | W40: =100-_xlfn.PERCENTRANK.INC(U$4:U$96,U40)*100 -> 3.3 | X40: 6.38 | Y40: 11.32 | Z40: =100-_xlfn.PERCENTRANK.INC(X$4:X$96,X40)*100 -> 60.9 | AA40: =100-_xlfn.PERCENTRANK.INC(Y$4:Y$96,Y40)*100 -> 52.2 | AB40: ○ | AC40: =VLOOKUP(AB40,配点根拠!$G$3:$H$7,2,0) -> 80
A41: 東名高速道路 | B41: 横浜町田 | C41: 東急田園都市線 | D41: 南町田 | E41: 06:53:00 | F41: 07:24:00 | G41: 07:50:00 | H41: 06:53:00 | I41: 07:24:00 | J41: 07:55:00 | K41: =(K$3-E41)*24*60 -> 67 | L41: =(L$3-F41)*24*60 -> 66 | M41: =(M$3-G41)*24*60 -> 70 | N41: =(N$3-H41)*24*60 -> 67 | O41: =(O$3-I41)*24*60 -> 66 | P41: =(P$3-J41)*24*60 -> 65 | Q41: =AVERAGE(K41:M41) -> 67.66666667 | R41: =AVERAGE(N41:P41) -> 66 | S41: =100-_xlfn.PERCENTRANK.INC(Q$4:Q$96,Q41)*100 -> 1.1 | T41: =100-_xlfn.PERCENTRANK.INC(R$4:R$96,R41)*100 -> 5.5 | U41: 182 | V41: × | W41: =100-_xlfn.PERCENTRANK.INC(U$4:U$96,U41)*100 -> 26.1 | X41: 6.41 | Y41: 9.54 | Z41: =100-_xlfn.PERCENTRANK.INC(X$4:X$96,X41)*100 -> 59.8 | AA41: =100-_xlfn.PERCENTRANK.INC(Y$4:Y$96,Y41)*100 -> 72.9 | AB41: ◎ | AC41: =VLOOKUP(AB41,配点根拠!$G$3:$H$7,2,0) -> 100
A42: 首都高K1号横羽線 | B42: 生麦 | C42: 京急本線 | D42: 生麦 | E42: 07:14:00 | F42: 07:44:00 | G42: 08:10:00 | H42: 07:00:00 | I42: 07:30:00 | J42: 08:00:00 | K42: =(K$3-E42)*24*60 -> 46 | L42: =(L$3-F42)*24*60 -> 46 | M42: =(M$3-G42)*24*60 -> 50 | N42: =(N$3-H42)*24*60 -> 60 | O42: =(O$3-I42)*24*60 -> 60 | P42: =(P$3-J42)*24*60 -> 60 | Q42: =AVERAGE(K42:M42) -> 47.33333333 | R42: =AVERAGE(N42:P42) -> 60 | S42: =100-_xlfn.PERCENTRANK.INC(Q$4:Q$96,Q42)*100 -> 21.8 | T42: =100-_xlfn.PERCENTRANK.INC(R$4:R$96,R42)*100 -> 19.6 | U42: 143 | V42: × | W42: =100-_xlfn.PERCENTRANK.INC(U$4:U$96,U42)*100 -> 70.7 | X42: 6.41 | Y42: 11.79 | Z42: =100-_xlfn.PERCENTRANK.INC(X$4:X$96,X42)*100 -> 59.8 | AA42: =100-_xlfn.PERCENTRANK.INC(Y$4:Y$96,Y42)*100 -> 44.6 | AB42: △ | AC42: =VLOOKUP(AB42,配点根拠!$G$3:$H$7,2,0) -> 20
A43: 首都高7号小松川線 | B43: 篠崎 | C43: 都営新宿線 | D43: 篠崎 | E43: 07:18:00 | F43: 07:52:00 | G43: 08:24:00 | H43: 07:18:00 | I43: 07:49:00 | J43: 08:20:00 | K43: =(K$3-E43)*24*60 -> 42 | L43: =(L$3-F43)*24*60 -> 38 | M43: =(M$3-G43)*24*60 -> 36 | N43: =(N$3-H43)*24*60 -> 42 | O43: =(O$3-I43)*24*60 -> 41 | P43: =(P$3-J43)*24*60 -> 40 | Q43: =AVERAGE(K43:M43) -> 38.66666667 | R43: =AVERAGE(N43:P43) -> 41 | S43: =100-_xlfn.PERCENTRANK.INC(Q$4:Q$96,Q43)*100 -> 52.2 | T43: =100-_xlfn.PERCENTRANK.INC(R$4:R$96,R43)*100 -> 57.7 | U43: 156 | V43: × | W43: =100-_xlfn.PERCENTRANK.INC(U$4:U$96,U43)*100 -> 57.7 | X43: 6.44 | Y43: 11.67 | Z43: =100-_xlfn.PERCENTRANK.INC(X$4:X$96,X43)*100 -> 57.7 | AA43: =100-_xlfn.PERCENTRANK.INC(Y$4:Y$96,Y43)*100 -> 46.8 | AB43: ■ | AC43: =VLOOKUP(AB43,配点根拠!$G$3:$H$7,2,0) -> 50
A44: 外環道 | B44: 和光 | C44: メトロ有楽町線 | D44: 和光市 | E44: 07:16:00 | F44: 07:48:00 | G44: 08:16:00 | H44: 07:29:00 | I44: 07:59:00 | J44: 08:28:00 | K44: =(K$3-E44)*24*60 -> 44 | L44: =(L$3-F44)*24*60 -> 42 | M44: =(M$3-G44)*24*60 -> 44 | N44: =(N$3-H44)*24*60 -> 31 | O44: =(O$3-I44)*24*60 -> 31 | P44: =(P$3-J44)*24*60 -> 32 | Q44: =AVERAGE(K44:M44) -> 43.33333333 | R44: =AVERAGE(N44:P44) -> 31.33333333 | S44: =100-_xlfn.PERCENTRANK.INC(Q$4:Q$96,Q44)*100 -> 37 | T44: =100-_xlfn.PERCENTRANK.INC(R$4:R$96,R44)*100 -> 81.6 | U44: 80 | V44: ○ | W44: =100-_xlfn.PERCENTRANK.INC(U$4:U$96,U44)*100 -> 92.4 | X44: 6.46 | Y44: 11.79 | Z44: =100-_xlfn.PERCENTRANK.INC(X$4:X$96,X44)*100 -> 56.6 | AA44: =100-_xlfn.PERCENTRANK.INC(Y$4:Y$96,Y44)*100 -> 44.6 | AB44: ○ | AC44: =VLOOKUP(AB44,配点根拠!$G$3:$H$7,2,0) -> 80
A45: 首都高川口線 | B45: 鹿浜橋 | C45: 都営日暮里舎人ライナー | D45: 江北 | E45: 07:28:00 | F45: 07:58:00 | G45: 08:28:00 | H45: 07:18:00 | I45: 07:48:00 | J45: 08:18:00 | K45: =(K$3-E45)*24*60 -> 32 | L45: =(L$3-F45)*24*60 -> 32 | M45: =(M$3-G45)*24*60 -> 32 | N45: =(N$3-H45)*24*60 -> 42 | O45: =(O$3-I45)*24*60 -> 42 | P45: =(P$3-J45)*24*60 -> 42 | Q45: =AVERAGE(K45:M45) -> 32 | R45: =AVERAGE(N45:P45) -> 42 | S45: =100-_xlfn.PERCENTRANK.INC(Q$4:Q$96,Q45)*100 -> 66.4 | T45: =100-_xlfn.PERCENTRANK.INC(R$4:R$96,R45)*100 -> 54.4 | U45: 189 | V45: × | W45: =100-_xlfn.PERCENTRANK.INC(U$4:U$96,U45)*100 -> 10.9 | X45: 6.5 | Y45: 13.75 | Z45: =100-_xlfn.PERCENTRANK.INC(X$4:X$96,X45)*100 -> 55.5 | AA45: =100-_xlfn.PERCENTRANK.INC(Y$4:Y$96,Y45)*100 -> 26.1 | AB45: △ | AC45: =VLOOKUP(AB45,配点根拠!$G$3:$H$7,2,0) -> 20
A46: 首都高K1号横羽線 | B46: 浜川崎 | C46: JR南武支線 | D46: 浜川崎 | E46: 07:14:00 | F46: 07:40:00 | G46: 08:17:00 | H46: 07:02:00 | I46: 07:27:00 | J46: 07:54:00 | K46: =(K$3-E46)*24*60 -> 46 | L46: =(L$3-F46)*24*60 -> 50 | M46: =(M$3-G46)*24*60 -> 43 | N46: =(N$3-H46)*24*60 -> 58 | O46: =(O$3-I46)*24*60 -> 63 | P46: =(P$3-J46)*24*60 -> 66 | Q46: =AVERAGE(K46:M46) -> 46.33333333 | R46: =AVERAGE(N46:P46) -> 62.33333333 | S46: =100-_xlfn.PERCENTRANK.INC(Q$4:Q$96,Q46)*100 -> 25 | T46: =100-_xlfn.PERCENTRANK.INC(R$4:R$96,R46)*100 -> 14.2 | U46: 50 | V46: ◎ | W46: =100-_xlfn.PERCENTRANK.INC(U$4:U$96,U46)*100 -> 100 | X46: 6.52 | Y46: 10.8 | Z46: =100-_xlfn.PERCENTRANK.INC(X$4:X$96,X46)*100 -> 54.4 | AA46: =100-_xlfn.PERCENTRANK.INC(Y$4:Y$96,Y46)*100 -> 60.9 | AB46: × | AC46: =VLOOKUP(AB46,配点根拠!$G$3:$H$7,2,0) -> 0
A47: 外環道 | B47: 川口西 | C47: JR京浜東北線 | D47: 蕨 | E47: 07:26:00 | F47: 07:56:00 | G47: 08:22:00 | H47: 07:28:00 | I47: 07:56:00 | J47: 08:27:00 | K47: =(K$3-E47)*24*60 -> 34 | L47: =(L$3-F47)*24*60 -> 34 | M47: =(M$3-G47)*24*60 -> 38 | N47: =(N$3-H47)*24*60 -> 32 | O47: =(O$3-I47)*24*60 -> 34 | P47: =(P$3-J47)*24*60 -> 33 | Q47: =AVERAGE(K47:M47) -> 35.33333333 | R47: =AVERAGE(N47:P47) -> 33 | S47: =100-_xlfn.PERCENTRANK.INC(Q$4:Q$96,Q47)*100 -> 58.7 | T47: =100-_xlfn.PERCENTRANK.INC(R$4:R$96,R47)*100 -> 77.2 | U47: 171 | V47: × | W47: =100-_xlfn.PERCENTRANK.INC(U$4:U$96,U47)*100 -> 33.7 | X47: 6.56 | Y47: 11.45 | Z47: =100-_xlfn.PERCENTRANK.INC(X$4:X$96,X47)*100 -> 53.3 | AA47: =100-_xlfn.PERCENTRANK.INC(Y$4:Y$96,Y47)*100 -> 50 | AB47: ■ | AC47: =VLOOKUP(AB47,配点根拠!$G$3:$H$7,2,0) -> 50
A48: 京葉道路 | B48: 船橋 | C48: JR総武線 | D48: 船橋 | E48: 07:31:00 | F48: 08:02:00 | G48: 08:29:00 | H48: 07:14:00 | I48: 07:45:00 | J48: 08:12:00 | K48: =(K$3-E48)*24*60 -> 29 | L48: =(L$3-F48)*24*60 -> 28 | M48: =(M$3-G48)*24*60 -> 31 | N48: =(N$3-H48)*24*60 -> 46 | O48: =(O$3-I48)*24*60 -> 45 | P48: =(P$3-J48)*24*60 -> 48 | Q48: =AVERAGE(K48:M48) -> 29.33333333 | R48: =AVERAGE(N48:P48) -> 46.33333333 | S48: =100-_xlfn.PERCENTRANK.INC(Q$4:Q$96,Q48)*100 -> 70.7 | T48: =100-_xlfn.PERCENTRANK.INC(R$4:R$96,R48)*100 -> 47.9 | U48: 181 | V48: △ | W48: =100-_xlfn.PERCENTRANK.INC(U$4:U$96,U48)*100 -> 30.5 | X48: 6.62 | Y48: 11.93 | Z48: =100-_xlfn.PERCENTRANK.INC(X$4:X$96,X48)*100 -> 52.2 | AA48: =100-_xlfn.PERCENTRANK.INC(Y$4:Y$96,Y48)*100 -> 39.2 | AB48: ◎ | AC48: =VLOOKUP(AB48,配点根拠!$G$3:$H$7,2,0) -> 100
A49: 京葉道路 | B49: 京葉市川 | C49: 都営新宿線 | D49: 本八幡 | E49: 07:15:00 | F49: 07:49:00 | G49: 08:20:00 | H49: 07:15:00 | I49: 07:45:00 | J49: 08:16:00 | K49: =(K$3-E49)*24*60 -> 45 | L49: =(L$3-F49)*24*60 -> 41 | M49: =(M$3-G49)*24*60 -> 40 | N49: =(N$3-H49)*24*60 -> 45 | O49: =(O$3-I49)*24*60 -> 45 | P49: =(P$3-J49)*24*60 -> 44 | Q49: =AVERAGE(K49:M49) -> 42 | R49: =AVERAGE(N49:P49) -> 44.66666667 | S49: =100-_xlfn.PERCENTRANK.INC(Q$4:Q$96,Q49)*100 -> 39.2 | T49: =100-_xlfn.PERCENTRANK.INC(R$4:R$96,R49)*100 -> 50 | U49: 50 | V49: ◎ | W49: =100-_xlfn.PERCENTRANK.INC(U$4:U$96,U49)*100 -> 100 | X49: 6.62 | Y49: 11.1 | Z49: =100-_xlfn.PERCENTRANK.INC(X$4:X$96,X49)*100 -> 52.2 | AA49: =100-_xlfn.PERCENTRANK.INC(Y$4:Y$96,Y49)*100 -> 57.7 | AB49: ○ | AC49: =VLOOKUP(AB49,配点根拠!$G$3:$H$7,2,0) -> 80
A50: 首都高中央環状線 | B50: 船堀橋 | C50: 都営新宿線 | D50: 東大島 | E50: 07:28:00 | F50: 08:03:00 | G50: 08:34:00 | H50: 07:28:00 | I50: 07:59:00 | J50: 08:30:00 | K50: =(K$3-E50)*24*60 -> 32 | L50: =(L$3-F50)*24*60 -> 27 | M50: =(M$3-G50)*24*60 -> 26 | N50: =(N$3-H50)*24*60 -> 32 | O50: =(O$3-I50)*24*60 -> 31 | P50: =(P$3-J50)*24*60 -> 30 | Q50: =AVERAGE(K50:M50) -> 28.33333333 | R50: =AVERAGE(N50:P50) -> 31 | S50: =100-_xlfn.PERCENTRANK.INC(Q$4:Q$96,Q50)*100 -> 75 | T50: =100-_xlfn.PERCENTRANK.INC(R$4:R$96,R50)*100 -> 82.7 | U50: 156 | V50: × | W50: =100-_xlfn.PERCENTRANK.INC(U$4:U$96,U50)*100 -> 57.7 | X50: 6.64 | Y50: 17.6 | Z50: =100-_xlfn.PERCENTRANK.INC(X$4:X$96,X50)*100 -> 50 | AA50: =100-_xlfn.PERCENTRANK.INC(Y$4:Y$96,Y50)*100 -> 14.2 | AB50: ■ | AC50: =VLOOKUP(AB50,配点根拠!$G$3:$H$7,2,0) -> 50
A51: 首都高中央環状線 | B51: 扇大橋 | C51: 都営日暮里舎人ライナー | D51: 扇大橋 | E51: 07:32:00 | F51: 08:02:00 | G51: 08:32:00 | H51: 07:22:00 | I51: 07:52:00 | J51: 08:22:00 | K51: =(K$3-E51)*24*60 -> 28 | L51: =(L$3-F51)*24*60 -> 28 | M51: =(M$3-G51)*24*60 -> 28 | N51: =(N$3-H51)*24*60 -> 38 | O51: =(O$3-I51)*24*60 -> 38 | P51: =(P$3-J51)*24*60 -> 38 | Q51: =AVERAGE(K51:M51) -> 28 | R51: =AVERAGE(N51:P51) -> 38 | S51: =100-_xlfn.PERCENTRANK.INC(Q$4:Q$96,Q51)*100 -> 76.1 | T51: =100-_xlfn.PERCENTRANK.INC(R$4:R$96,R51)*100 -> 64.2 | U51: 189 | V51: × | W51: =100-_xlfn.PERCENTRANK.INC(U$4:U$96,U51)*100 -> 10.9 | X51: 6.65 | Y51: 10.22 | Z51: =100-_xlfn.PERCENTRANK.INC(X$4:X$96,X51)*100 -> 49 | AA51: =100-_xlfn.PERCENTRANK.INC(Y$4:Y$96,Y51)*100 -> 67.4 | AB51: ■ | AC51: =VLOOKUP(AB51,配点根拠!$G$3:$H$7,2,0) -> 50
A52: 首都高7号小松川線 | B52: 一之江 | C52: 都営新宿線 | D52: 一之江 | E52: 07:24:00 | F52: 07:57:00 | G52: 08:29:00 | H52: 07:24:00 | I52: 07:54:00 | J52: 08:25:00 | K52: =(K$3-E52)*24*60 -> 36 | L52: =(L$3-F52)*24*60 -> 33 | M52: =(M$3-G52)*24*60 -> 31 | N52: =(N$3-H52)*24*60 -> 36 | O52: =(O$3-I52)*24*60 -> 36 | P52: =(P$3-J52)*24*60 -> 35 | Q52: =AVERAGE(K52:M52) -> 33.33333333 | R52: =AVERAGE(N52:P52) -> 35.66666667 | S52: =100-_xlfn.PERCENTRANK.INC(Q$4:Q$96,Q52)*100 -> 62 | T52: =100-_xlfn.PERCENTRANK.INC(R$4:R$96,R52)*100 -> 70.7 | U52: 156 | V52: × | W52: =100-_xlfn.PERCENTRANK.INC(U$4:U$96,U52)*100 -> 57.7 | X52: 6.68 | Y52: 11.01 | Z52: =100-_xlfn.PERCENTRANK.INC(X$4:X$96,X52)*100 -> 47.9 | AA52: =100-_xlfn.PERCENTRANK.INC(Y$4:Y$96,Y52)*100 -> 58.7 | AB52: △ | AC52: =VLOOKUP(AB52,配点根拠!$G$3:$H$7,2,0) -> 20
A53: 首都高中央環状線 | B53: 四つ木 | C53: 京成押上線 | D53: 四ツ木 | E53: 07:38:00 | F53: 08:09:00 | G53: 08:39:00 | H53: 07:15:00 | I53: 07:49:00 | J53: 08:15:00 | K53: =(K$3-E53)*24*60 -> 22 | L53: =(L$3-F53)*24*60 -> 21 | M53: =(M$3-G53)*24*60 -> 21 | N53: =(N$3-H53)*24*60 -> 45 | O53: =(O$3-I53)*24*60 -> 41 | P53: =(P$3-J53)*24*60 -> 45 | Q53: =AVERAGE(K53:M53) -> 21.33333333 | R53: =AVERAGE(N53:P53) -> 43.66666667 | S53: =100-_xlfn.PERCENTRANK.INC(Q$4:Q$96,Q53)*100 -> 90.3 | T53: =100-_xlfn.PERCENTRANK.INC(R$4:R$96,R53)*100 -> 52.2 | U53: 149 | V53: × | W53: =100-_xlfn.PERCENTRANK.INC(U$4:U$96,U53)*100 -> 65.3 | X53: 6.68 | Y53: 11.82 | Z53: =100-_xlfn.PERCENTRANK.INC(X$4:X$96,X53)*100 -> 47.9 | AA53: =100-_xlfn.PERCENTRANK.INC(Y$4:Y$96,Y53)*100 -> 41.4 | AB53: ■ | AC53: =VLOOKUP(AB53,配点根拠!$G$3:$H$7,2,0) -> 50
A54: 首都高湾岸線 | B54: 浦安 | C54: JR京葉線 | D54: 新浦安 | E54: 07:36:00 | F54: 08:03:00 | G54: 08:35:00 | H54: 07:09:00 | I54: 07:36:00 | J54: 08:03:00 | K54: =(K$3-E54)*24*60 -> 24 | L54: =(L$3-F54)*24*60 -> 27 | M54: =(M$3-G54)*24*60 -> 25 | N54: =(N$3-H54)*24*60 -> 51 | O54: =(O$3-I54)*24*60 -> 54 | P54: =(P$3-J54)*24*60 -> 57 | Q54: =AVERAGE(K54:M54) -> 25.33333333 | R54: =AVERAGE(N54:P54) -> 54 | S54: =100-_xlfn.PERCENTRANK.INC(Q$4:Q$96,Q54)*100 -> 80.5 | T54: =100-_xlfn.PERCENTRANK.INC(R$4:R$96,R54)*100 -> 28.3 | U54: 166 | V54: × | W54: =100-_xlfn.PERCENTRANK.INC(U$4:U$96,U54)*100 -> 42.4 | X54: 6.74 | Y54: 10.36 | Z54: =100-_xlfn.PERCENTRANK.INC(X$4:X$96,X54)*100 -> 45.7 | AA54: =100-_xlfn.PERCENTRANK.INC(Y$4:Y$96,Y54)*100 -> 64.2 | AB54: ○ | AC54: =VLOOKUP(AB54,配点根拠!$G$3:$H$7,2,0) -> 80
A55: 首都高S新都心線 | B55: 新都心 | C55: JR上野東京ライン | D55: さいたま新都心 | E55: 07:26:00 | F55: 07:56:00 | G55: 08:23:00 | H55: 07:26:00 | I55: 07:50:00 | J55: 08:23:00 | K55: =(K$3-E55)*24*60 -> 34 | L55: =(L$3-F55)*24*60 -> 34 | M55: =(M$3-G55)*24*60 -> 37 | N55: =(N$3-H55)*24*60 -> 34 | O55: =(O$3-I55)*24*60 -> 40 | P55: =(P$3-J55)*24*60 -> 37 | Q55: =AVERAGE(K55:M55) -> 35 | R55: =AVERAGE(N55:P55) -> 37 | S55: =100-_xlfn.PERCENTRANK.INC(Q$4:Q$96,Q55)*100 -> 59.8 | T55: =100-_xlfn.PERCENTRANK.INC(R$4:R$96,R55)*100 -> 68.5 | U55: 164 | V55: × | W55: =100-_xlfn.PERCENTRANK.INC(U$4:U$96,U55)*100 -> 50 | X55: 6.76 | Y55: 14.53 | Z55: =100-_xlfn.PERCENTRANK.INC(X$4:X$96,X55)*100 -> 44.6 | AA55: =100-_xlfn.PERCENTRANK.INC(Y$4:Y$96,Y55)*100 -> 24 | AB55: ◎ | AC55: =VLOOKUP(AB55,配点根拠!$G$3:$H$7,2,0) -> 100
A56: 首都高K3号狩場線 | B56: 阪東橋 | C56: 横浜地下鉄ブルーライン | D56: 阪東橋 | E56: 07:12:00 | F56: 07:38:00 | G56: 08:09:00 | H56: 07:04:00 | I56: 07:33:00 | J56: 08:01:00 | K56: =(K$3-E56)*24*60 -> 48 | L56: =(L$3-F56)*24*60 -> 52 | M56: =(M$3-G56)*24*60 -> 51 | N56: =(N$3-H56)*24*60 -> 56 | O56: =(O$3-I56)*24*60 -> 57 | P56: =(P$3-J56)*24*60 -> 59 | Q56: =AVERAGE(K56:M56) -> 50.33333333 | R56: =AVERAGE(N56:P56) -> 57.33333333 | S56: =100-_xlfn.PERCENTRANK.INC(Q$4:Q$96,Q56)*100 -> 15.3 | T56: =100-_xlfn.PERCENTRANK.INC(R$4:R$96,R56)*100 -> 24 | U56: 140 | V56: × | W56: =100-_xlfn.PERCENTRANK.INC(U$4:U$96,U56)*100 -> 71.8 | X56: 6.76 | Y56: 11.96 | Z56: =100-_xlfn.PERCENTRANK.INC(X$4:X$96,X56)*100 -> 44.6 | AA56: =100-_xlfn.PERCENTRANK.INC(Y$4:Y$96,Y56)*100 -> 38.1 | AB56: △ | AC56: =VLOOKUP(AB56,配点根拠!$G$3:$H$7,2,0) -> 20
A57: 首都高6号三郷線 | B57: 八潮 | C57: つくばエクスプレス | D57: 八潮 | E57: 07:20:00 | F57: 07:52:00 | G57: 08:23:00 | H57: 07:09:00 | I57: 07:38:00 | J57: 08:05:00 | K57: =(K$3-E57)*24*60 -> 40 | L57: =(L$3-F57)*24*60 -> 38 | M57: =(M$3-G57)*24*60 -> 37 | N57: =(N$3-H57)*24*60 -> 51 | O57: =(O$3-I57)*24*60 -> 52 | P57: =(P$3-J57)*24*60 -> 55 | Q57: =AVERAGE(K57:M57) -> 38.33333333 | R57: =AVERAGE(N57:P57) -> 52.66666667 | S57: =100-_xlfn.PERCENTRANK.INC(Q$4:Q$96,Q57)*100 -> 53.3 | T57: =100-_xlfn.PERCENTRANK.INC(R$4:R$96,R57)*100 -> 31.6 | U57: 80 | V57: ○ | W57: =100-_xlfn.PERCENTRANK.INC(U$4:U$96,U57)*100 -> 92.4 | X57: 6.79 | Y57: 10.78 | Z57: =100-_xlfn.PERCENTRANK.INC(X$4:X$96,X57)*100 -> 42.4 | AA57: =100-_xlfn.PERCENTRANK.INC(Y$4:Y$96,Y57)*100 -> 62 | AB57: ◎ | AC57: =VLOOKUP(AB57,配点根拠!$G$3:$H$7,2,0) -> 100
A58: 外環道 | B58: 市川中央 | C58: JR総武線 | D58: 市川 | E58: 07:37:00 | F58: 08:08:00 | G58: 08:35:00 | H58: 07:20:00 | I58: 07:51:00 | J58: 08:19:00 | K58: =(K$3-E58)*24*60 -> 23 | L58: =(L$3-F58)*24*60 -> 22 | M58: =(M$3-G58)*24*60 -> 25 | N58: =(N$3-H58)*24*60 -> 40 | O58: =(O$3-I58)*24*60 -> 39 | P58: =(P$3-J58)*24*60 -> 41 | Q58: =AVERAGE(K58:M58) -> 23.33333333 | R58: =AVERAGE(N58:P58) -> 40 | S58: =100-_xlfn.PERCENTRANK.INC(Q$4:Q$96,Q58)*100 -> 84.8 | T58: =100-_xlfn.PERCENTRANK.INC(R$4:R$96,R58)*100 -> 62 | U58: 181 | V58: × | W58: =100-_xlfn.PERCENTRANK.INC(U$4:U$96,U58)*100 -> 30.5 | X58: 6.85 | Y58: 13.25 | Z58: =100-_xlfn.PERCENTRANK.INC(X$4:X$96,X58)*100 -> 41.4 | AA58: =100-_xlfn.PERCENTRANK.INC(Y$4:Y$96,Y58)*100 -> 29.4 | AB58: ○ | AC58: =VLOOKUP(AB58,配点根拠!$G$3:$H$7,2,0) -> 80
A59: 首都高6号三郷線 | B59: 三郷 | C59: つくばエクスプレス | D59: 三郷中央 | E59: 07:16:00 | F59: 07:48:00 | G59: 08:19:00 | H59: 07:05:00 | I59: 07:35:00 | J59: 08:01:00 | K59: =(K$3-E59)*24*60 -> 44 | L59: =(L$3-F59)*24*60 -> 42 | M59: =(M$3-G59)*24*60 -> 41 | N59: =(N$3-H59)*24*60 -> 55 | O59: =(O$3-I59)*24*60 -> 55 | P59: =(P$3-J59)*24*60 -> 59 | Q59: =AVERAGE(K59:M59) -> 42.33333333 | R59: =AVERAGE(N59:P59) -> 56.33333333 | S59: =100-_xlfn.PERCENTRANK.INC(Q$4:Q$96,Q59)*100 -> 38.1 | T59: =100-_xlfn.PERCENTRANK.INC(R$4:R$96,R59)*100 -> 25 | U59: 169 | V59: × | W59: =100-_xlfn.PERCENTRANK.INC(U$4:U$96,U59)*100 -> 38.1 | X59: 6.88 | Y59: 8.5 | Z59: =100-_xlfn.PERCENTRANK.INC(X$4:X$96,X59)*100 -> 40.3 | AA59: =100-_xlfn.PERCENTRANK.INC(Y$4:Y$96,Y59)*100 -> 88.1 | AB59: ○ | AC59: =VLOOKUP(AB59,配点根拠!$G$3:$H$7,2,0) -> 80
A60: 首都高K1号横羽線 | B60: 子安 | C60: JR京浜東北線 | D60: 新子安 | E60: 07:26:00 | F60: 07:53:00 | G60: 08:22:00 | H60: 07:11:00 | I60: 07:39:00 | J60: 08:09:00 | K60: =(K$3-E60)*24*60 -> 34 | L60: =(L$3-F60)*24*60 -> 37 | M60: =(M$3-G60)*24*60 -> 38 | N60: =(N$3-H60)*24*60 -> 49 | O60: =(O$3-I60)*24*60 -> 51 | P60: =(P$3-J60)*24*60 -> 51 | Q60: =AVERAGE(K60:M60) -> 36.33333333 | R60: =AVERAGE(N60:P60) -> 50.33333333 | S60: =100-_xlfn.PERCENTRANK.INC(Q$4:Q$96,Q60)*100 -> 57.7 | T60: =100-_xlfn.PERCENTRANK.INC(R$4:R$96,R60)*100 -> 34.8 | U60: 185 | V60: × | W60: =100-_xlfn.PERCENTRANK.INC(U$4:U$96,U60)*100 -> 13.1 | X60: 7.02 | Y60: 11.22 | Z60: =100-_xlfn.PERCENTRANK.INC(X$4:X$96,X60)*100 -> 39.2 | AA60: =100-_xlfn.PERCENTRANK.INC(Y$4:Y$96,Y60)*100 -> 53.3 | AB60: ■ | AC60: =VLOOKUP(AB60,配点根拠!$G$3:$H$7,2,0) -> 50
A61: 東名高速道路 | B61: 横浜青葉 | C61: 東急田園都市線 | D61: 市が尾 | E61: 06:59:00 | F61: 07:30:00 | G61: 07:56:00 | H61: 06:59:00 | I61: 07:30:00 | J61: 07:56:00 | K61: =(K$3-E61)*24*60 -> 61 | L61: =(L$3-F61)*24*60 -> 60 | M61: =(M$3-G61)*24*60 -> 64 | N61: =(N$3-H61)*24*60 -> 61 | O61: =(O$3-I61)*24*60 -> 60 | P61: =(P$3-J61)*24*60 -> 64 | Q61: =AVERAGE(K61:M61) -> 61.66666667 | R61: =AVERAGE(N61:P61) -> 61.66666667 | S61: =100-_xlfn.PERCENTRANK.INC(Q$4:Q$96,Q61)*100 -> 3.3 | T61: =100-_xlfn.PERCENTRANK.INC(R$4:R$96,R61)*100 -> 16.4 | U61: 182 | V61: × | W61: =100-_xlfn.PERCENTRANK.INC(U$4:U$96,U61)*100 -> 26.1 | X61: 7.03 | Y61: 11.34 | Z61: =100-_xlfn.PERCENTRANK.INC(X$4:X$96,X61)*100 -> 38.1 | AA61: =100-_xlfn.PERCENTRANK.INC(Y$4:Y$96,Y61)*100 -> 51.1 | AB61: ■ | AC61: =VLOOKUP(AB61,配点根拠!$G$3:$H$7,2,0) -> 50
A62: 京葉道路 | B62: 原木 | C62: メトロ東西線 | D62: 西船橋 | E62: 07:19:00 | F62: 07:49:00 | G62: 08:24:00 | H62: 07:11:00 | I62: 07:44:00 | J62: 08:11:00 | K62: =(K$3-E62)*24*60 -> 41 | L62: =(L$3-F62)*24*60 -> 41 | M62: =(M$3-G62)*24*60 -> 36 | N62: =(N$3-H62)*24*60 -> 49 | O62: =(O$3-I62)*24*60 -> 46 | P62: =(P$3-J62)*24*60 -> 49 | Q62: =AVERAGE(K62:M62) -> 39.33333333 | R62: =AVERAGE(N62:P62) -> 48 | S62: =100-_xlfn.PERCENTRANK.INC(Q$4:Q$96,Q62)*100 -> 47.9 | T62: =100-_xlfn.PERCENTRANK.INC(R$4:R$96,R62)*100 -> 45.7 | U62: 80 | V62: ○ | W62: =100-_xlfn.PERCENTRANK.INC(U$4:U$96,U62)*100 -> 92.4 | X62: 7.03 | Y62: 11.75 | Z62: =100-_xlfn.PERCENTRANK.INC(X$4:X$96,X62)*100 -> 38.1 | AA62: =100-_xlfn.PERCENTRANK.INC(Y$4:Y$96,Y62)*100 -> 45.7 | AB62: ○ | AC62: =VLOOKUP(AB62,配点根拠!$G$3:$H$7,2,0) -> 80
A63: 首都高中央環状線 | B63: 船堀橋 | C63: 都営新宿線 | D63: 船堀 | E63: 07:26:00 | F63: 08:00:00 | G63: 08:31:00 | H63: 07:26:00 | I63: 07:56:00 | J63: 08:27:00 | K63: =(K$3-E63)*24*60 -> 34 | L63: =(L$3-F63)*24*60 -> 30 | M63: =(M$3-G63)*24*60 -> 29 | N63: =(N$3-H63)*24*60 -> 34 | O63: =(O$3-I63)*24*60 -> 34 | P63: =(P$3-J63)*24*60 -> 33 | Q63: =AVERAGE(K63:M63) -> 31 | R63: =AVERAGE(N63:P63) -> 33.66666667 | S63: =100-_xlfn.PERCENTRANK.INC(Q$4:Q$96,Q63)*100 -> 68.5 | T63: =100-_xlfn.PERCENTRANK.INC(R$4:R$96,R63)*100 -> 75 | U63: 156 | V63: × | W63: =100-_xlfn.PERCENTRANK.INC(U$4:U$96,U63)*100 -> 57.7 | X63: 7.14 | Y63: 13.98 | Z63: =100-_xlfn.PERCENTRANK.INC(X$4:X$96,X63)*100 -> 35.9 | AA63: =100-_xlfn.PERCENTRANK.INC(Y$4:Y$96,Y63)*100 -> 25 | AB63: ■ | AC63: =VLOOKUP(AB63,配点根拠!$G$3:$H$7,2,0) -> 50
A64: 首都高中央環状線 | B64: 平井大橋 | C64: JR総武線 | D64: 平井 | E64: 07:38:00 | F64: 08:09:00 | G64: 08:35:00 | H64: 07:30:00 | I64: 08:02:00 | J64: 08:29:00 | K64: =(K$3-E64)*24*60 -> 22 | L64: =(L$3-F64)*24*60 -> 21 | M64: =(M$3-G64)*24*60 -> 25 | N64: =(N$3-H64)*24*60 -> 30 | O64: =(O$3-I64)*24*60 -> 28 | P64: =(P$3-J64)*24*60 -> 31 | Q64: =AVERAGE(K64:M64) -> 22.66666667 | R64: =AVERAGE(N64:P64) -> 29.66666667 | S64: =100-_xlfn.PERCENTRANK.INC(Q$4:Q$96,Q64)*100 -> 89.2 | T64: =100-_xlfn.PERCENTRANK.INC(R$4:R$96,R64)*100 -> 83.7 | U64: 196 | V64: × | W64: =100-_xlfn.PERCENTRANK.INC(U$4:U$96,U64)*100 -> 7.7 | X64: 7.19 | Y64: 12.59 | Z64: =100-_xlfn.PERCENTRANK.INC(X$4:X$96,X64)*100 -> 34.8 | AA64: =100-_xlfn.PERCENTRANK.INC(Y$4:Y$96,Y64)*100 -> 34.8 | AB64: ■ | AC64: =VLOOKUP(AB64,配点根拠!$G$3:$H$7,2,0) -> 50
A65: 首都高中央環状線 | B65: 平井大橋 | C65: JR総武線 | D65: 新小岩 | E65: 07:43:00 | F65: 08:14:00 | G65: 08:41:00 | H65: 07:27:00 | I65: 07:59:00 | J65: 08:26:00 | K65: =(K$3-E65)*24*60 -> 17 | L65: =(L$3-F65)*24*60 -> 16 | M65: =(M$3-G65)*24*60 -> 19 | N65: =(N$3-H65)*24*60 -> 33 | O65: =(O$3-I65)*24*60 -> 31 | P65: =(P$3-J65)*24*60 -> 34 | Q65: =AVERAGE(K65:M65) -> 17.33333333 | R65: =AVERAGE(N65:P65) -> 32.66666667 | S65: =100-_xlfn.PERCENTRANK.INC(Q$4:Q$96,Q65)*100 -> 94.6 | T65: =100-_xlfn.PERCENTRANK.INC(R$4:R$96,R65)*100 -> 78.3 | U65: 181 | V65: × | W65: =100-_xlfn.PERCENTRANK.INC(U$4:U$96,U65)*100 -> 30.5 | X65: 7.21 | Y65: 12.81 | Z65: =100-_xlfn.PERCENTRANK.INC(X$4:X$96,X65)*100 -> 33.7 | AA65: =100-_xlfn.PERCENTRANK.INC(Y$4:Y$96,Y65)*100 -> 32.7 | AB65: ■ | AC65: =VLOOKUP(AB65,配点根拠!$G$3:$H$7,2,0) -> 50
A66: 首都高中央環状線 | B66: 清新町 | C66: メトロ東西線 | D66: 西葛西 | E66: 07:40:00 | F66: 08:10:00 | G66: 08:41:00 | H66: 07:21:00 | I66: 07:49:00 | J66: 08:20:00 | K66: =(K$3-E66)*24*60 -> 20 | L66: =(L$3-F66)*24*60 -> 20 | M66: =(M$3-G66)*24*60 -> 19 | N66: =(N$3-H66)*24*60 -> 39 | O66: =(O$3-I66)*24*60 -> 41 | P66: =(P$3-J66)*24*60 -> 40 | Q66: =AVERAGE(K66:M66) -> 19.66666667 | R66: =AVERAGE(N66:P66) -> 40 | S66: =100-_xlfn.PERCENTRANK.INC(Q$4:Q$96,Q66)*100 -> 91.4 | T66: =100-_xlfn.PERCENTRANK.INC(R$4:R$96,R66)*100 -> 63.1 | U66: 199 | V66: × | W66: =100-_xlfn.PERCENTRANK.INC(U$4:U$96,U66)*100 -> 3.3 | X66: 7.25 | Y66: 11.61 | Z66: =100-_xlfn.PERCENTRANK.INC(X$4:X$96,X66)*100 -> 32.7 | AA66: =100-_xlfn.PERCENTRANK.INC(Y$4:Y$96,Y66)*100 -> 47.9 | AB66: ■ | AC66: =VLOOKUP(AB66,配点根拠!$G$3:$H$7,2,0) -> 50
A67: 首都高6号向島線 | B67: 堤通 | C67: 東武スカイツリーライン | D67: 鐘ヶ淵 | E67: 07:33:00 | F67: 07:59:00 | G67: 08:25:00 | H67: 07:13:00 | I67: 07:45:00 | J67: 08:04:00 | K67: =(K$3-E67)*24*60 -> 27 | L67: =(L$3-F67)*24*60 -> 31 | M67: =(M$3-G67)*24*60 -> 35 | N67: =(N$3-H67)*24*60 -> 47 | O67: =(O$3-I67)*24*60 -> 45 | P67: =(P$3-J67)*24*60 -> 56 | Q67: =AVERAGE(K67:M67) -> 31 | R67: =AVERAGE(N67:P67) -> 49.33333333 | S67: =100-_xlfn.PERCENTRANK.INC(Q$4:Q$96,Q67)*100 -> 67.4 | T67: =100-_xlfn.PERCENTRANK.INC(R$4:R$96,R67)*100 -> 39.2 | U67: 150 | V67: × | W67: =100-_xlfn.PERCENTRANK.INC(U$4:U$96,U67)*100 -> 63.1 | X67: 7.26 | Y67: 13.05 | Z67: =100-_xlfn.PERCENTRANK.INC(X$4:X$96,X67)*100 -> 31.6 | AA67: =100-_xlfn.PERCENTRANK.INC(Y$4:Y$96,Y67)*100 -> 31.6 | AB67: △ | AC67: =VLOOKUP(AB67,配点根拠!$G$3:$H$7,2,0) -> 20
A68: 首都高中央環状線 | B68: 王子北 | C68: JR京浜東北線 | D68: 王子 | E68: 07:36:00 | F68: 08:09:00 | G68: 08:37:00 | H68: 07:33:00 | I68: 08:04:00 | J68: 08:34:00 | K68: =(K$3-E68)*24*60 -> 24 | L68: =(L$3-F68)*24*60 -> 21 | M68: =(M$3-G68)*24*60 -> 23 | N68: =(N$3-H68)*24*60 -> 27 | O68: =(O$3-I68)*24*60 -> 26 | P68: =(P$3-J68)*24*60 -> 26 | Q68: =AVERAGE(K68:M68) -> 22.66666667 | R68: =AVERAGE(N68:P68) -> 26.33333333 | S68: =100-_xlfn.PERCENTRANK.INC(Q$4:Q$96,Q68)*100 -> 89.2 | T68: =100-_xlfn.PERCENTRANK.INC(R$4:R$96,R68)*100 -> 88.1 | U68: 171 | V68: × | W68: =100-_xlfn.PERCENTRANK.INC(U$4:U$96,U68)*100 -> 33.7 | X68: 7.3 | Y68: 15.15 | Z68: =100-_xlfn.PERCENTRANK.INC(X$4:X$96,X68)*100 -> 30.5 | AA68: =100-_xlfn.PERCENTRANK.INC(Y$4:Y$96,Y68)*100 -> 22.9 | AB68: ■ | AC68: =VLOOKUP(AB68,配点根拠!$G$3:$H$7,2,0) -> 50
A69: 首都高4号新宿線 | B69: 高井戸 | C69: 京王線 | D69: 八幡山 | E69: 07:15:00 | F69: 07:46:00 | G69: 08:12:00 | H69: 07:40:00 | I69: 08:05:00 | J69: 08:39:00 | K69: =(K$3-E69)*24*60 -> 45 | L69: =(L$3-F69)*24*60 -> 44 | M69: =(M$3-G69)*24*60 -> 48 | N69: =(N$3-H69)*24*60 -> 20 | O69: =(O$3-I69)*24*60 -> 25 | P69: =(P$3-J69)*24*60 -> 21 | Q69: =AVERAGE(K69:M69) -> 45.66666667 | R69: =AVERAGE(N69:P69) -> 22 | S69: =100-_xlfn.PERCENTRANK.INC(Q$4:Q$96,Q69)*100 -> 28.3 | T69: =100-_xlfn.PERCENTRANK.INC(R$4:R$96,R69)*100 -> 94.6 | U69: 165 | V69: × | W69: =100-_xlfn.PERCENTRANK.INC(U$4:U$96,U69)*100 -> 49 | X69: 7.3 | Y69: 17.84 | Z69: =100-_xlfn.PERCENTRANK.INC(X$4:X$96,X69)*100 -> 30.5 | AA69: =100-_xlfn.PERCENTRANK.INC(Y$4:Y$96,Y69)*100 -> 13.1 | AB69: ■ | AC69: =VLOOKUP(AB69,配点根拠!$G$3:$H$7,2,0) -> 50
A70: 東名高速道路 | B70: 東名川崎 | C70: 東急田園都市線 | D70: 宮前平 | E70: 07:13:00 | F70: 07:39:00 | G70: 08:05:00 | H70: 07:13:00 | I70: 07:39:00 | J70: 08:05:00 | K70: =(K$3-E70)*24*60 -> 47 | L70: =(L$3-F70)*24*60 -> 51 | M70: =(M$3-G70)*24*60 -> 55 | N70: =(N$3-H70)*24*60 -> 47 | O70: =(O$3-I70)*24*60 -> 51 | P70: =(P$3-J70)*24*60 -> 55 | Q70: =AVERAGE(K70:M70) -> 51 | R70: =AVERAGE(N70:P70) -> 51 | S70: =100-_xlfn.PERCENTRANK.INC(Q$4:Q$96,Q70)*100 -> 13.1 | T70: =100-_xlfn.PERCENTRANK.INC(R$4:R$96,R70)*100 -> 32.7 | U70: 182 | V70: × | W70: =100-_xlfn.PERCENTRANK.INC(U$4:U$96,U70)*100 -> 26.1 | X70: 7.33 | Y70: 11.81 | Z70: =100-_xlfn.PERCENTRANK.INC(X$4:X$96,X70)*100 -> 28.3 | AA70: =100-_xlfn.PERCENTRANK.INC(Y$4:Y$96,Y70)*100 -> 42.4 | AB70: ■ | AC70: =VLOOKUP(AB70,配点根拠!$G$3:$H$7,2,0) -> 50
A71: 常磐自動車道 | B71: 流山 | C71: つくばエクスプレス | D71: 流山おおたかの森 | E71: 07:09:00 | F71: 07:40:00 | G71: 08:12:00 | H71: 06:57:00 | I71: 07:28:00 | J71: 07:54:00 | K71: =(K$3-E71)*24*60 -> 51 | L71: =(L$3-F71)*24*60 -> 50 | M71: =(M$3-G71)*24*60 -> 48 | N71: =(N$3-H71)*24*60 -> 63 | O71: =(O$3-I71)*24*60 -> 62 | P71: =(P$3-J71)*24*60 -> 66 | Q71: =AVERAGE(K71:M71) -> 49.66666667 | R71: =AVERAGE(N71:P71) -> 63.66666667 | S71: =100-_xlfn.PERCENTRANK.INC(Q$4:Q$96,Q71)*100 -> 18.5 | T71: =100-_xlfn.PERCENTRANK.INC(R$4:R$96,R71)*100 -> 10.9 | U71: 169 | V71: × | W71: =100-_xlfn.PERCENTRANK.INC(U$4:U$96,U71)*100 -> 38.1 | X71: 7.47 | Y71: 12.54 | Z71: =100-_xlfn.PERCENTRANK.INC(X$4:X$96,X71)*100 -> 27.2 | AA71: =100-_xlfn.PERCENTRANK.INC(Y$4:Y$96,Y71)*100 -> 35.9 | AB71: ◎ | AC71: =VLOOKUP(AB71,配点根拠!$G$3:$H$7,2,0) -> 100
A72: 首都高5号池袋線 | B72: 中台 | C72: 都営三田線 | D72: 志村三丁目 | E72: 07:31:00 | F72: 08:02:00 | G72: 08:32:00 | H72: 07:31:00 | I72: 07:53:00 | J72: 08:24:00 | K72: =(K$3-E72)*24*60 -> 29 | L72: =(L$3-F72)*24*60 -> 28 | M72: =(M$3-G72)*24*60 -> 28 | N72: =(N$3-H72)*24*60 -> 29 | O72: =(O$3-I72)*24*60 -> 37 | P72: =(P$3-J72)*24*60 -> 36 | Q72: =AVERAGE(K72:M72) -> 28.33333333 | R72: =AVERAGE(N72:P72) -> 34 | S72: =100-_xlfn.PERCENTRANK.INC(Q$4:Q$96,Q72)*100 -> 74 | T72: =100-_xlfn.PERCENTRANK.INC(R$4:R$96,R72)*100 -> 74 | U72: 158 | V72: × | W72: =100-_xlfn.PERCENTRANK.INC(U$4:U$96,U72)*100 -> 52.2 | X72: 7.51 | Y72: 12.08 | Z72: =100-_xlfn.PERCENTRANK.INC(X$4:X$96,X72)*100 -> 26.1 | AA72: =100-_xlfn.PERCENTRANK.INC(Y$4:Y$96,Y72)*100 -> 37 | AB72: ◎ | AC72: =VLOOKUP(AB72,配点根拠!$G$3:$H$7,2,0) -> 100
A73: 首都高6号三郷線 | B73: 加平 | C73: つくばエクスプレス | D73: 六町 | E73: 07:24:00 | F73: 07:56:00 | G73: 08:27:00 | H73: 07:12:00 | I73: 07:42:00 | J73: 08:09:00 | K73: =(K$3-E73)*24*60 -> 36 | L73: =(L$3-F73)*24*60 -> 34 | M73: =(M$3-G73)*24*60 -> 33 | N73: =(N$3-H73)*24*60 -> 48 | O73: =(O$3-I73)*24*60 -> 48 | P73: =(P$3-J73)*24*60 -> 51 | Q73: =AVERAGE(K73:M73) -> 34.33333333 | R73: =AVERAGE(N73:P73) -> 49 | S73: =100-_xlfn.PERCENTRANK.INC(Q$4:Q$96,Q73)*100 -> 60.9 | T73: =100-_xlfn.PERCENTRANK.INC(R$4:R$96,R73)*100 -> 43.5 | U73: 169 | V73: × | W73: =100-_xlfn.PERCENTRANK.INC(U$4:U$96,U73)*100 -> 38.1 | X73: 7.58 | Y73: 11.86 | Z73: =100-_xlfn.PERCENTRANK.INC(X$4:X$96,X73)*100 -> 25 | AA73: =100-_xlfn.PERCENTRANK.INC(Y$4:Y$96,Y73)*100 -> 40.3 | AB73: △ | AC73: =VLOOKUP(AB73,配点根拠!$G$3:$H$7,2,0) -> 20
A74: 首都高K1号横羽線 | B74: 東神奈川 | C74: JR京浜東北線 | D74: 東神奈川 | E74: 07:23:00 | F74: 07:50:00 | G74: 08:19:00 | H74: 07:14:00 | I74: 07:42:00 | J74: 08:06:00 | K74: =(K$3-E74)*24*60 -> 37 | L74: =(L$3-F74)*24*60 -> 40 | M74: =(M$3-G74)*24*60 -> 41 | N74: =(N$3-H74)*24*60 -> 46 | O74: =(O$3-I74)*24*60 -> 48 | P74: =(P$3-J74)*24*60 -> 54 | Q74: =AVERAGE(K74:M74) -> 39.33333333 | R74: =AVERAGE(N74:P74) -> 49.33333333 | S74: =100-_xlfn.PERCENTRANK.INC(Q$4:Q$96,Q74)*100 -> 46.8 | T74: =100-_xlfn.PERCENTRANK.INC(R$4:R$96,R74)*100 -> 41.4 | U74: 185 | V74: △ | W74: =100-_xlfn.PERCENTRANK.INC(U$4:U$96,U74)*100 -> 13.1 | X74: 7.66 | Y74: 13.2 | Z74: =100-_xlfn.PERCENTRANK.INC(X$4:X$96,X74)*100 -> 24 | AA74: =100-_xlfn.PERCENTRANK.INC(Y$4:Y$96,Y74)*100 -> 30.5 | AB74: ■ | AC74: =VLOOKUP(AB74,配点根拠!$G$3:$H$7,2,0) -> 50
A75: 首都高中央環状線 | B75: 千住新橋 | C75: JR常磐線 | D75: 北千住 | E75: 07:36:00 | F75: 08:09:00 | G75: 08:34:00 | H75: 07:27:00 | I75: 07:57:00 | J75: 08:22:00 | K75: =(K$3-E75)*24*60 -> 24 | L75: =(L$3-F75)*24*60 -> 21 | M75: =(M$3-G75)*24*60 -> 26 | N75: =(N$3-H75)*24*60 -> 33 | O75: =(O$3-I75)*24*60 -> 33 | P75: =(P$3-J75)*24*60 -> 38 | Q75: =AVERAGE(K75:M75) -> 23.66666667 | R75: =AVERAGE(N75:P75) -> 34.66666667 | S75: =100-_xlfn.PERCENTRANK.INC(Q$4:Q$96,Q75)*100 -> 82.7 | T75: =100-_xlfn.PERCENTRANK.INC(R$4:R$96,R75)*100 -> 71.8 | U75: 154 | V75: △ | W75: =100-_xlfn.PERCENTRANK.INC(U$4:U$96,U75)*100 -> 58.7 | X75: 7.81 | Y75: 13.4 | Z75: =100-_xlfn.PERCENTRANK.INC(X$4:X$96,X75)*100 -> 22.9 | AA75: =100-_xlfn.PERCENTRANK.INC(Y$4:Y$96,Y75)*100 -> 28.3 | AB75: ◎ | AC75: =VLOOKUP(AB75,配点根拠!$G$3:$H$7,2,0) -> 100
A76: 首都高5号池袋線 | B76: 板橋本町 | C76: 都営三田線 | D76: 板橋本町 | E76: 07:37:00 | F76: 08:08:00 | G76: 08:37:00 | H76: 07:37:00 | I76: 07:58:00 | J76: 08:30:00 | K76: =(K$3-E76)*24*60 -> 23 | L76: =(L$3-F76)*24*60 -> 22 | M76: =(M$3-G76)*24*60 -> 23 | N76: =(N$3-H76)*24*60 -> 23 | O76: =(O$3-I76)*24*60 -> 32 | P76: =(P$3-J76)*24*60 -> 30 | Q76: =AVERAGE(K76:M76) -> 22.66666667 | R76: =AVERAGE(N76:P76) -> 28.33333333 | S76: =100-_xlfn.PERCENTRANK.INC(Q$4:Q$96,Q76)*100 -> 89.2 | T76: =100-_xlfn.PERCENTRANK.INC(R$4:R$96,R76)*100 -> 87 | U76: 158 | V76: × | W76: =100-_xlfn.PERCENTRANK.INC(U$4:U$96,U76)*100 -> 52.2 | X76: 7.92 | Y76: 16.3 | Z76: =100-_xlfn.PERCENTRANK.INC(X$4:X$96,X76)*100 -> 21.8 | AA76: =100-_xlfn.PERCENTRANK.INC(Y$4:Y$96,Y76)*100 -> 17.4 | AB76: △ | AC76: =VLOOKUP(AB76,配点根拠!$G$3:$H$7,2,0) -> 20
A77: 首都高4号新宿線 | B77: 高井戸 | C77: 京王井の頭線 | D77: 高井戸 | E77: 07:16:00 | F77: 07:45:00 | G77: 08:13:00 | H77: 07:36:00 | I77: 08:06:00 | J77: 08:36:00 | K77: =(K$3-E77)*24*60 -> 44 | L77: =(L$3-F77)*24*60 -> 45 | M77: =(M$3-G77)*24*60 -> 47 | N77: =(N$3-H77)*24*60 -> 24 | O77: =(O$3-I77)*24*60 -> 24 | P77: =(P$3-J77)*24*60 -> 24 | Q77: =AVERAGE(K77:M77) -> 45.33333333 | R77: =AVERAGE(N77:P77) -> 24 | S77: =100-_xlfn.PERCENTRANK.INC(Q$4:Q$96,Q77)*100 -> 30.5 | T77: =100-_xlfn.PERCENTRANK.INC(R$4:R$96,R77)*100 -> 92.4 | U77: 149 | V77: × | W77: =100-_xlfn.PERCENTRANK.INC(U$4:U$96,U77)*100 -> 65.3 | X77: 8.06 | Y77: 15.98 | Z77: =100-_xlfn.PERCENTRANK.INC(X$4:X$96,X77)*100 -> 20.7 | AA77: =100-_xlfn.PERCENTRANK.INC(Y$4:Y$96,Y77)*100 -> 19.6 | AB77: ■ | AC77: =VLOOKUP(AB77,配点根拠!$G$3:$H$7,2,0) -> 50
A78: 首都高3号渋谷線 | B78: 用賀 | C78: 東急田園都市線 | D78: 用賀 | E78: 07:21:00 | F78: 07:57:00 | G78: 08:23:00 | H78: 07:30:00 | I78: 07:57:00 | J78: 08:23:00 | K78: =(K$3-E78)*24*60 -> 39 | L78: =(L$3-F78)*24*60 -> 33 | M78: =(M$3-G78)*24*60 -> 37 | N78: =(N$3-H78)*24*60 -> 30 | O78: =(O$3-I78)*24*60 -> 33 | P78: =(P$3-J78)*24*60 -> 37 | Q78: =AVERAGE(K78:M78) -> 36.33333333 | R78: =AVERAGE(N78:P78) -> 33.33333333 | S78: =100-_xlfn.PERCENTRANK.INC(Q$4:Q$96,Q78)*100 -> 56.6 | T78: =100-_xlfn.PERCENTRANK.INC(R$4:R$96,R78)*100 -> 76.1 | U78: 182 | V78: × | W78: =100-_xlfn.PERCENTRANK.INC(U$4:U$96,U78)*100 -> 26.1 | X78: 8.11 | Y78: 19.67 | Z78: =100-_xlfn.PERCENTRANK.INC(X$4:X$96,X78)*100 -> 19.6 | AA78: =100-_xlfn.PERCENTRANK.INC(Y$4:Y$96,Y78)*100 -> 7.7 | AB78: ○ | AC78: =VLOOKUP(AB78,配点根拠!$G$3:$H$7,2,0) -> 80
A79: 首都高6号向島線 | B79: 向島 | C79: 東武スカイツリーライン | D79: 曳舟 | E79: 07:40:00 | F79: 08:13:00 | G79: 08:39:00 | H79: 07:19:00 | I79: 07:52:00 | J79: 08:17:00 | K79: =(K$3-E79)*24*60 -> 20 | L79: =(L$3-F79)*24*60 -> 17 | M79: =(M$3-G79)*24*60 -> 21 | N79: =(N$3-H79)*24*60 -> 41 | O79: =(O$3-I79)*24*60 -> 38 | P79: =(P$3-J79)*24*60 -> 43 | Q79: =AVERAGE(K79:M79) -> 19.33333333 | R79: =AVERAGE(N79:P79) -> 40.66666667 | S79: =100-_xlfn.PERCENTRANK.INC(Q$4:Q$96,Q79)*100 -> 92.4 | T79: =100-_xlfn.PERCENTRANK.INC(R$4:R$96,R79)*100 -> 58.7 | U79: 150 | V79: △ | W79: =100-_xlfn.PERCENTRANK.INC(U$4:U$96,U79)*100 -> 63.1 | X79: 8.13 | Y79: 16.42 | Z79: =100-_xlfn.PERCENTRANK.INC(X$4:X$96,X79)*100 -> 18.5 | AA79: =100-_xlfn.PERCENTRANK.INC(Y$4:Y$96,Y79)*100 -> 16.4 | AB79: ■ | AC79: =VLOOKUP(AB79,配点根拠!$G$3:$H$7,2,0) -> 50
A80: 首都高5号池袋線 | B80: 北池袋 | C80: メトロ有楽町線 | D80: 要町 | E80: 07:32:00 | F80: 08:06:00 | G80: 08:33:00 | H80: 07:45:00 | I80: 08:13:00 | J80: 08:42:00 | K80: =(K$3-E80)*24*60 -> 28 | L80: =(L$3-F80)*24*60 -> 24 | M80: =(M$3-G80)*24*60 -> 27 | N80: =(N$3-H80)*24*60 -> 15 | O80: =(O$3-I80)*24*60 -> 17 | P80: =(P$3-J80)*24*60 -> 18 | Q80: =AVERAGE(K80:M80) -> 26.33333333 | R80: =AVERAGE(N80:P80) -> 16.66666667 | S80: =100-_xlfn.PERCENTRANK.INC(Q$4:Q$96,Q80)*100 -> 79.4 | T80: =100-_xlfn.PERCENTRANK.INC(R$4:R$96,R80)*100 -> 96.8 | U80: 165 | V80: × | W80: =100-_xlfn.PERCENTRANK.INC(U$4:U$96,U80)*100 -> 49 | X80: 8.29 | Y80: 17.9 | Z80: =100-_xlfn.PERCENTRANK.INC(X$4:X$96,X80)*100 -> 17.4 | AA80: =100-_xlfn.PERCENTRANK.INC(Y$4:Y$96,Y80)*100 -> 10.9 | AB80: △ | AC80: =VLOOKUP(AB80,配点根拠!$G$3:$H$7,2,0) -> 20
A81: 首都高1号羽田線 | B81: 平和島 | C81: 京急本線 | D81: 平和島 | E81: 07:34:00 | F81: 08:02:00 | G81: 08:29:00 | H81: 07:24:00 | I81: 07:53:00 | J81: 08:19:00 | K81: =(K$3-E81)*24*60 -> 26 | L81: =(L$3-F81)*24*60 -> 28 | M81: =(M$3-G81)*24*60 -> 31 | N81: =(N$3-H81)*24*60 -> 36 | O81: =(O$3-I81)*24*60 -> 37 | P81: =(P$3-J81)*24*60 -> 41 | Q81: =AVERAGE(K81:M81) -> 28.33333333 | R81: =AVERAGE(N81:P81) -> 38 | S81: =100-_xlfn.PERCENTRANK.INC(Q$4:Q$96,Q81)*100 -> 71.8 | T81: =100-_xlfn.PERCENTRANK.INC(R$4:R$96,R81)*100 -> 65.3 | U81: 143 | V81: × | W81: =100-_xlfn.PERCENTRANK.INC(U$4:U$96,U81)*100 -> 70.7 | X81: 8.43 | Y81: 13.5 | Z81: =100-_xlfn.PERCENTRANK.INC(X$4:X$96,X81)*100 -> 16.4 | AA81: =100-_xlfn.PERCENTRANK.INC(Y$4:Y$96,Y81)*100 -> 27.2 | AB81: △ | AC81: =VLOOKUP(AB81,配点根拠!$G$3:$H$7,2,0) -> 20
A82: 首都高4号新宿線 | B82: 永福 | C82: 京王線 | D82: 下高井戸 | E82: 07:20:00 | F82: 07:53:00 | G82: 08:18:00 | H82: 07:46:00 | I82: 08:11:00 | J82: 08:47:00 | K82: =(K$3-E82)*24*60 -> 40 | L82: =(L$3-F82)*24*60 -> 37 | M82: =(M$3-G82)*24*60 -> 42 | N82: =(N$3-H82)*24*60 -> 14 | O82: =(O$3-I82)*24*60 -> 19 | P82: =(P$3-J82)*24*60 -> 13 | Q82: =AVERAGE(K82:M82) -> 39.66666667 | R82: =AVERAGE(N82:P82) -> 15.33333333 | S82: =100-_xlfn.PERCENTRANK.INC(Q$4:Q$96,Q82)*100 -> 44.6 | T82: =100-_xlfn.PERCENTRANK.INC(R$4:R$96,R82)*100 -> 97.9 | U82: 165 | V82: △ | W82: =100-_xlfn.PERCENTRANK.INC(U$4:U$96,U82)*100 -> 49 | X82: 8.95 | Y82: 21.84 | Z82: =100-_xlfn.PERCENTRANK.INC(X$4:X$96,X82)*100 -> 15.3 | AA82: =100-_xlfn.PERCENTRANK.INC(Y$4:Y$96,Y82)*100 -> 4.4 | AB82: ■ | AC82: =VLOOKUP(AB82,配点根拠!$G$3:$H$7,2,0) -> 50
A83: 首都高4号新宿線 | B83: 幡ヶ谷 | C83: 京王新線 | D83: 幡ヶ谷 | E83: 07:31:00 | F83: 08:05:00 | G83: 08:34:00 | H83: 07:53:00 | I83: 08:23:00 | J83: 08:55:00 | K83: =(K$3-E83)*24*60 -> 29 | L83: =(L$3-F83)*24*60 -> 25 | M83: =(M$3-G83)*24*60 -> 26 | N83: =(N$3-H83)*24*60 -> 7 | O83: =(O$3-I83)*24*60 -> 7 | P83: =(P$3-J83)*24*60 -> 5 | Q83: =AVERAGE(K83:M83) -> 26.66666667 | R83: =AVERAGE(N83:P83) -> 6.333333333 | S83: =100-_xlfn.PERCENTRANK.INC(Q$4:Q$96,Q83)*100 -> 77.2 | T83: =100-_xlfn.PERCENTRANK.INC(R$4:R$96,R83)*100 -> 99 | U83: 165 | V83: × | W83: =100-_xlfn.PERCENTRANK.INC(U$4:U$96,U83)*100 -> 49 | X83: 8.99 | Y83: 24.01 | Z83: =100-_xlfn.PERCENTRANK.INC(X$4:X$96,X83)*100 -> 14.2 | AA83: =100-_xlfn.PERCENTRANK.INC(Y$4:Y$96,Y83)*100 -> 1.1 | AB83: ○ | AC83: =VLOOKUP(AB83,配点根拠!$G$3:$H$7,2,0) -> 80
A84: 首都高1号羽田線 | B84: 羽田 | C84: 京急空港線 | D84: 穴守稲荷 | E84: 07:21:00 | F84: 07:51:00 | G84: 08:15:00 | H84: 07:12:00 | I84: 07:42:00 | J84: 08:08:00 | K84: =(K$3-E84)*24*60 -> 39 | L84: =(L$3-F84)*24*60 -> 39 | M84: =(M$3-G84)*24*60 -> 45 | N84: =(N$3-H84)*24*60 -> 48 | O84: =(O$3-I84)*24*60 -> 48 | P84: =(P$3-J84)*24*60 -> 52 | Q84: =AVERAGE(K84:M84) -> 41 | R84: =AVERAGE(N84:P84) -> 49.33333333 | S84: =100-_xlfn.PERCENTRANK.INC(Q$4:Q$96,Q84)*100 -> 41.4 | T84: =100-_xlfn.PERCENTRANK.INC(R$4:R$96,R84)*100 -> 41.4 | U84: 110 | V84: × | W84: =100-_xlfn.PERCENTRANK.INC(U$4:U$96,U84)*100 -> 82.7 | X84: 9.09 | Y84: 12.6 | Z84: =100-_xlfn.PERCENTRANK.INC(X$4:X$96,X84)*100 -> 13.1 | AA84: =100-_xlfn.PERCENTRANK.INC(Y$4:Y$96,Y84)*100 -> 33.7 | AB84: △ | AC84: =VLOOKUP(AB84,配点根拠!$G$3:$H$7,2,0) -> 20
A85: 首都高中央環状線 | B85: 中野長者橋 | C85: メトロ丸ノ内線 | D85: 中野坂上 | E85: 07:37:00 | F85: 08:07:00 | G85: 08:35:00 | H85: 07:56:00 | I85: 08:26:00 | J85: 08:55:00 | K85: =(K$3-E85)*24*60 -> 23 | L85: =(L$3-F85)*24*60 -> 23 | M85: =(M$3-G85)*24*60 -> 25 | N85: =(N$3-H85)*24*60 -> 4 | O85: =(O$3-I85)*24*60 -> 4 | P85: =(P$3-J85)*24*60 -> 5 | Q85: =AVERAGE(K85:M85) -> 23.66666667 | R85: =AVERAGE(N85:P85) -> 4.333333333 | S85: =100-_xlfn.PERCENTRANK.INC(Q$4:Q$96,Q85)*100 -> 83.7 | T85: =100-_xlfn.PERCENTRANK.INC(R$4:R$96,R85)*100 -> 100 | U85: 165 | V85: × | W85: =100-_xlfn.PERCENTRANK.INC(U$4:U$96,U85)*100 -> 49 | X85: 9.19 | Y85: 21.81 | Z85: =100-_xlfn.PERCENTRANK.INC(X$4:X$96,X85)*100 -> 12 | AA85: =100-_xlfn.PERCENTRANK.INC(Y$4:Y$96,Y85)*100 -> 5.5 | AB85: ○ | AC85: =VLOOKUP(AB85,配点根拠!$G$3:$H$7,2,0) -> 80
A86: 首都高6号向島線 | B86: 駒形 | C86: 都営浅草線 | D86: 本所吾妻橋 | E86: 07:49:00 | F86: 08:19:00 | G86: 08:50:00 | H86: 07:24:00 | I86: 07:57:00 | J86: 08:27:00 | K86: =(K$3-E86)*24*60 -> 11 | L86: =(L$3-F86)*24*60 -> 11 | M86: =(M$3-G86)*24*60 -> 10 | N86: =(N$3-H86)*24*60 -> 36 | O86: =(O$3-I86)*24*60 -> 33 | P86: =(P$3-J86)*24*60 -> 33 | Q86: =AVERAGE(K86:M86) -> 10.66666667 | R86: =AVERAGE(N86:P86) -> 34 | S86: =100-_xlfn.PERCENTRANK.INC(Q$4:Q$96,Q86)*100 -> 96.8 | T86: =100-_xlfn.PERCENTRANK.INC(R$4:R$96,R86)*100 -> 72.9 | U86: 133 | V86: × | W86: =100-_xlfn.PERCENTRANK.INC(U$4:U$96,U86)*100 -> 74 | X86: 9.48 | Y86: 16.06 | Z86: =100-_xlfn.PERCENTRANK.INC(X$4:X$96,X86)*100 -> 10.9 | AA86: =100-_xlfn.PERCENTRANK.INC(Y$4:Y$96,Y86)*100 -> 18.5 | AB86: ◎ | AC86: =VLOOKUP(AB86,配点根拠!$G$3:$H$7,2,0) -> 100
A87: 首都高1号羽田線 | B87: 勝島 | C87: 京急本線 | D87: 立会川 | E87: 07:33:00 | F87: 08:04:00 | G87: 08:28:00 | H87: 07:25:00 | I87: 07:55:00 | J87: 08:19:00 | K87: =(K$3-E87)*24*60 -> 27 | L87: =(L$3-F87)*24*60 -> 26 | M87: =(M$3-G87)*24*60 -> 32 | N87: =(N$3-H87)*24*60 -> 35 | O87: =(O$3-I87)*24*60 -> 35 | P87: =(P$3-J87)*24*60 -> 41 | Q87: =AVERAGE(K87:M87) -> 28.33333333 | R87: =AVERAGE(N87:P87) -> 37 | S87: =100-_xlfn.PERCENTRANK.INC(Q$4:Q$96,Q87)*100 -> 74 | T87: =100-_xlfn.PERCENTRANK.INC(R$4:R$96,R87)*100 -> 66.4 | U87: 143 | V87: × | W87: =100-_xlfn.PERCENTRANK.INC(U$4:U$96,U87)*100 -> 70.7 | X87: 9.6 | Y87: 15.71 | Z87: =100-_xlfn.PERCENTRANK.INC(X$4:X$96,X87)*100 -> 9.8 | AA87: =100-_xlfn.PERCENTRANK.INC(Y$4:Y$96,Y87)*100 -> 20.7 | AB87: △ | AC87: =VLOOKUP(AB87,配点根拠!$G$3:$H$7,2,0) -> 20
A88: 首都高1号羽田線 | B88: 鈴ヶ森 | C88: 京急本線 | D88: 大森海岸 | E88: 07:21:00 | F88: 07:55:00 | G88: 08:17:00 | H88: 07:21:00 | I88: 07:46:00 | J88: 08:17:00 | K88: =(K$3-E88)*24*60 -> 39 | L88: =(L$3-F88)*24*60 -> 35 | M88: =(M$3-G88)*24*60 -> 43 | N88: =(N$3-H88)*24*60 -> 39 | O88: =(O$3-I88)*24*60 -> 44 | P88: =(P$3-J88)*24*60 -> 43 | Q88: =AVERAGE(K88:M88) -> 39 | R88: =AVERAGE(N88:P88) -> 42 | S88: =100-_xlfn.PERCENTRANK.INC(Q$4:Q$96,Q88)*100 -> 51.1 | T88: =100-_xlfn.PERCENTRANK.INC(R$4:R$96,R88)*100 -> 53.3 | U88: 143 | V88: × | W88: =100-_xlfn.PERCENTRANK.INC(U$4:U$96,U88)*100 -> 70.7 | X88: 9.62 | Y88: 17.86 | Z88: =100-_xlfn.PERCENTRANK.INC(X$4:X$96,X88)*100 -> 8.7 | AA88: =100-_xlfn.PERCENTRANK.INC(Y$4:Y$96,Y88)*100 -> 12 | AB88: ○ | AC88: =VLOOKUP(AB88,配点根拠!$G$3:$H$7,2,0) -> 80
A89: 首都高2号目黒線 | B89: 戸越 | C89: 都営浅草線 | D89: 戸越 | E89: 07:36:00 | F89: 08:06:00 | G89: 08:39:00 | H89: 07:36:00 | I89: 08:06:00 | J89: 08:33:00 | K89: =(K$3-E89)*24*60 -> 24 | L89: =(L$3-F89)*24*60 -> 24 | M89: =(M$3-G89)*24*60 -> 21 | N89: =(N$3-H89)*24*60 -> 24 | O89: =(O$3-I89)*24*60 -> 24 | P89: =(P$3-J89)*24*60 -> 27 | Q89: =AVERAGE(K89:M89) -> 23 | R89: =AVERAGE(N89:P89) -> 25 | S89: =100-_xlfn.PERCENTRANK.INC(Q$4:Q$96,Q89)*100 -> 85.9 | T89: =100-_xlfn.PERCENTRANK.INC(R$4:R$96,R89)*100 -> 89.2 | U89: 133 | V89: × | W89: =100-_xlfn.PERCENTRANK.INC(U$4:U$96,U89)*100 -> 74 | X89: 10.19 | Y89: 20.63 | Z89: =100-_xlfn.PERCENTRANK.INC(X$4:X$96,X89)*100 -> 7.7 | AA89: =100-_xlfn.PERCENTRANK.INC(Y$4:Y$96,Y89)*100 -> 6.6 | AB89: △ | AC89: =VLOOKUP(AB89,配点根拠!$G$3:$H$7,2,0) -> 20
A90: 常磐自動車道 | B90: 柏 | C90: つくばエクスプレス | D90: 柏の葉キャンパス | E90: 07:06:00 | F90: 07:37:00 | G90: 08:08:00 | H90: 06:54:00 | I90: 07:24:00 | J90: 07:50:00 | K90: =(K$3-E90)*24*60 -> 54 | L90: =(L$3-F90)*24*60 -> 53 | M90: =(M$3-G90)*24*60 -> 52 | N90: =(N$3-H90)*24*60 -> 66 | O90: =(O$3-I90)*24*60 -> 66 | P90: =(P$3-J90)*24*60 -> 70 | Q90: =AVERAGE(K90:M90) -> 53 | R90: =AVERAGE(N90:P90) -> 67.33333333 | S90: =100-_xlfn.PERCENTRANK.INC(Q$4:Q$96,Q90)*100 -> 12 | T90: =100-_xlfn.PERCENTRANK.INC(R$4:R$96,R90)*100 -> 4.4 | U90: 169 | V90: × | W90: =100-_xlfn.PERCENTRANK.INC(U$4:U$96,U90)*100 -> 38.1 | X90: 10.2 | Y90: 17.21 | Z90: =100-_xlfn.PERCENTRANK.INC(X$4:X$96,X90)*100 -> 6.6 | AA90: =100-_xlfn.PERCENTRANK.INC(Y$4:Y$96,Y90)*100 -> 15.3 | AB90: ◎ | AC90: =VLOOKUP(AB90,配点根拠!$G$3:$H$7,2,0) -> 100
A91: 首都高9号深川線 | B91: 木場 | C91: メトロ東西線 | D91: 木場 | E91: 07:50:00 | F91: 08:20:00 | G91: 08:48:00 | H91: 07:29:00 | I91: 07:57:00 | J91: 08:29:00 | K91: =(K$3-E91)*24*60 -> 10 | L91: =(L$3-F91)*24*60 -> 10 | M91: =(M$3-G91)*24*60 -> 12 | N91: =(N$3-H91)*24*60 -> 31 | O91: =(O$3-I91)*24*60 -> 33 | P91: =(P$3-J91)*24*60 -> 31 | Q91: =AVERAGE(K91:M91) -> 10.66666667 | R91: =AVERAGE(N91:P91) -> 31.66666667 | S91: =100-_xlfn.PERCENTRANK.INC(Q$4:Q$96,Q91)*100 -> 97.9 | T91: =100-_xlfn.PERCENTRANK.INC(R$4:R$96,R91)*100 -> 80.5 | U91: 199 | V91: × | W91: =100-_xlfn.PERCENTRANK.INC(U$4:U$96,U91)*100 -> 3.3 | X91: 10.4 | Y91: 19.31 | Z91: =100-_xlfn.PERCENTRANK.INC(X$4:X$96,X91)*100 -> 5.5 | AA91: =100-_xlfn.PERCENTRANK.INC(Y$4:Y$96,Y91)*100 -> 8.7 | AB91: ○ | AC91: =VLOOKUP(AB91,配点根拠!$G$3:$H$7,2,0) -> 80
A92: 首都高3号渋谷線 | B92: 三軒茶屋 | C92: 東急田園都市線 | D92: 三軒茶屋 | E92: 07:32:00 | F92: 08:06:00 | G92: 08:33:00 | H92: 07:39:00 | I92: 08:06:00 | J92: 08:33:00 | K92: =(K$3-E92)*24*60 -> 28 | L92: =(L$3-F92)*24*60 -> 24 | M92: =(M$3-G92)*24*60 -> 27 | N92: =(N$3-H92)*24*60 -> 21 | O92: =(O$3-I92)*24*60 -> 24 | P92: =(P$3-J92)*24*60 -> 27 | Q92: =AVERAGE(K92:M92) -> 26.33333333 | R92: =AVERAGE(N92:P92) -> 24 | S92: =100-_xlfn.PERCENTRANK.INC(Q$4:Q$96,Q92)*100 -> 79.4 | T92: =100-_xlfn.PERCENTRANK.INC(R$4:R$96,R92)*100 -> 93.5 | U92: 182 | V92: × | W92: =100-_xlfn.PERCENTRANK.INC(U$4:U$96,U92)*100 -> 26.1 | X92: 10.64 | Y92: 22.9 | Z92: =100-_xlfn.PERCENTRANK.INC(X$4:X$96,X92)*100 -> 4.4 | AA92: =100-_xlfn.PERCENTRANK.INC(Y$4:Y$96,Y92)*100 -> 2.2 | AB92: ■ | AC92: =VLOOKUP(AB92,配点根拠!$G$3:$H$7,2,0) -> 50
A93: 首都高7号小松川線 | B93: 錦糸町 | C93: 都営新宿線 | D93: 住吉 | E93: 07:51:00 | F93: 08:21:00 | G93: 08:50:00 | H93: 07:35:00 | I93: 08:05:00 | J93: 08:36:00 | K93: =(K$3-E93)*24*60 -> 9 | L93: =(L$3-F93)*24*60 -> 9 | M93: =(M$3-G93)*24*60 -> 10 | N93: =(N$3-H93)*24*60 -> 25 | O93: =(O$3-I93)*24*60 -> 25 | P93: =(P$3-J93)*24*60 -> 24 | Q93: =AVERAGE(K93:M93) -> 9.333333333 | R93: =AVERAGE(N93:P93) -> 24.66666667 | S93: =100-_xlfn.PERCENTRANK.INC(Q$4:Q$96,Q93)*100 -> 99 | T93: =100-_xlfn.PERCENTRANK.INC(R$4:R$96,R93)*100 -> 90.3 | U93: 156 | V93: × | W93: =100-_xlfn.PERCENTRANK.INC(U$4:U$96,U93)*100 -> 57.7 | X93: 10.78 | Y93: 15.57 | Z93: =100-_xlfn.PERCENTRANK.INC(X$4:X$96,X93)*100 -> 3.3 | AA93: =100-_xlfn.PERCENTRANK.INC(Y$4:Y$96,Y93)*100 -> 21.8 | AB93: ■ | AC93: =VLOOKUP(AB93,配点根拠!$G$3:$H$7,2,0) -> 50
A94: 首都高7号小松川線 | B94: 錦糸町 | C94: JR総武線 | D94: 錦糸町 | E94: 07:48:00 | F94: 08:20:00 | G94: 08:46:00 | H94: 07:36:00 | I94: 08:08:00 | J94: 08:34:00 | K94: =(K$3-E94)*24*60 -> 12 | L94: =(L$3-F94)*24*60 -> 10 | M94: =(M$3-G94)*24*60 -> 14 | N94: =(N$3-H94)*24*60 -> 24 | O94: =(O$3-I94)*24*60 -> 22 | P94: =(P$3-J94)*24*60 -> 26 | Q94: =AVERAGE(K94:M94) -> 12 | R94: =AVERAGE(N94:P94) -> 24 | S94: =100-_xlfn.PERCENTRANK.INC(Q$4:Q$96,Q94)*100 -> 95.7 | T94: =100-_xlfn.PERCENTRANK.INC(R$4:R$96,R94)*100 -> 92.4 | U94: 181 | V94: × | W94: =100-_xlfn.PERCENTRANK.INC(U$4:U$96,U94)*100 -> 30.5 | X94: 10.85 | Y94: 18.05 | Z94: =100-_xlfn.PERCENTRANK.INC(X$4:X$96,X94)*100 -> 2.2 | AA94: =100-_xlfn.PERCENTRANK.INC(Y$4:Y$96,Y94)*100 -> 9.8 | AB94: ◎ | AC94: =VLOOKUP(AB94,配点根拠!$G$3:$H$7,2,0) -> 100
A95: 首都高9号深川線 | B95: 福住 | C95: メトロ東西線 | D95: 門前仲町 | E95: 07:52:00 | F95: 08:23:00 | G95: 08:51:00 | H95: 07:32:00 | I95: 07:59:00 | J95: 08:32:00 | K95: =(K$3-E95)*24*60 -> 8 | L95: =(L$3-F95)*24*60 -> 7 | M95: =(M$3-G95)*24*60 -> 9 | N95: =(N$3-H95)*24*60 -> 28 | O95: =(O$3-I95)*24*60 -> 31 | P95: =(P$3-J95)*24*60 -> 28 | Q95: =AVERAGE(K95:M95) -> 8 | R95: =AVERAGE(N95:P95) -> 29 | S95: =100-_xlfn.PERCENTRANK.INC(Q$4:Q$96,Q95)*100 -> 100 | T95: =100-_xlfn.PERCENTRANK.INC(R$4:R$96,R95)*100 -> 85.9 | U95: 199 | V95: × | W95: =100-_xlfn.PERCENTRANK.INC(U$4:U$96,U95)*100 -> 3.3 | X95: 10.98 | Y95: 22.57 | Z95: =100-_xlfn.PERCENTRANK.INC(X$4:X$96,X95)*100 -> 1.1 | AA95: =100-_xlfn.PERCENTRANK.INC(Y$4:Y$96,Y95)*100 -> 3.3 | AB95: ■ | AC95: =VLOOKUP(AB95,配点根拠!$G$3:$H$7,2,0) -> 50
A96: 首都高3号渋谷線 | B96: 池尻 | C96: 東急田園都市線 | D96: 池尻大橋 | E96: 07:34:00 | F96: 08:08:00 | G96: 08:36:00 | H96: 07:41:00 | I96: 08:08:00 | J96: 08:36:00 | K96: =(K$3-E96)*24*60 -> 26 | L96: =(L$3-F96)*24*60 -> 22 | M96: =(M$3-G96)*24*60 -> 24 | N96: =(N$3-H96)*24*60 -> 19 | O96: =(O$3-I96)*24*60 -> 22 | P96: =(P$3-J96)*24*60 -> 24 | Q96: =AVERAGE(K96:M96) -> 24 | R96: =AVERAGE(N96:P96) -> 21.66666667 | S96: =100-_xlfn.PERCENTRANK.INC(Q$4:Q$96,Q96)*100 -> 81.6 | T96: =100-_xlfn.PERCENTRANK.INC(R$4:R$96,R96)*100 -> 95.7 | U96: 182 | V96: × | W96: =100-_xlfn.PERCENTRANK.INC(U$4:U$96,U96)*100 -> 26.1 | X96: 11.12 | Y96: 32.7 | Z96: =100-_xlfn.PERCENTRANK.INC(X$4:X$96,X96)*100 -> 0 | AA96: =100-_xlfn.PERCENTRANK.INC(Y$4:Y$96,Y96)*100 -> 0 | AB96: △ | AC96: =VLOOKUP(AB96,配点根拠!$G$3:$H$7,2,0) -> 20

Sheet 点数 (hidden)
E2: 所要時間点数 | H2: 家賃点数 | J2: 点数
A3: 道路名 | B3: IC名 | C3: 鉄道路線 | D3: 駅名 | E3: 東京 | F3: 新宿 | G3: 快適性点数 | H3: 1K | I3: 2LDK | J3: 商業施設 | K3: 東京1K | L3: 東京2LDK | M3: 新宿1K | N3: 東京1K
A4: 東北自動車道 | B4: 岩槻 | C4: 東武野田線 | D4: 岩槻 | E4: 2.2 | F4: 15.3 | G4: 79.4 | H4: 100 | I4: 99 | J4: 80 | K4: =E4+$G4+H4+$J4 -> 261.6 | L4: =E4+$G4+I4+$J4 -> 260.6 | M4: =F4+$G4+H4+$J4 -> 274.7 | N4: =F4+$G4+I4+$J4 -> 273.7
A5: 東京湾アクアライン | B5: 木更津金田 | C5: 高速バス | D5: 木更津金田BT | E5: 32.7 | F5: 6.6 | G5: 100 | H5: 99 | I5: 100 | J5: 100 | K5: =E5+$G5+H5+$J5 -> 331.7 | L5: =E5+$G5+I5+$J5 -> 332.7 | M5: =F5+$G5+H5+$J5 -> 305.6 | N5: =F5+$G5+I5+$J5 -> 306.6
A6: 外環道 | B6: 草加 | C6: 東武スカイツリーライン | D6: 獨協大学前 | E6: 27.2 | F6: 18.5 | G6: 63.1 | H6: 97.9 | I6: 90.3 | J6: 80 | K6: 268.2 | L6: 260.6 | M6: 259.5 | N6: 251.9
A7: 外環道 | B7: 松戸 | C7: 北総線 | D7: 北国分 | E7: 40.3 | F7: 13.1 | G7: 84.8 | H7: 96.8 | I7: 87 | J7: 80 | K7: 301.9 | L7: 292.1 | M7: 274.7 | N7: 264.9
A8: 首都高S大宮線 | B8: 浦和南 | C8: JR埼京線 | D8: 南与野 | E8: 16.4 | F8: 69.6 | G8: 19.6 | H8: 95.7 | I8: 85.9 | J8: 50 | K8: 181.7 | L8: 171.9 | M8: 234.9 | N8: 225.1
A9: 外環道 | B9: 松戸 | C9: 北総線 | D9: 矢切 | E9: 44.6 | F9: 20.7 | G9: 84.8 | H9: 94.6 | I9: 95.7 | J9: 50 | K9: 274 | L9: 275.1 | M9: 250.1 | N9: 251.2
A10: 中央自動車道 | B10: 稲城 | C10: JR南武線 | D10: 稲城長沼 | E10: 5.5 | F10: 60.9 | G10: 15.3 | H10: 93.5 | I10: 74 | J10: 20 | K10: 134.3 | L10: 114.8 | M10: 189.7 | N10: 170.2
A11: 首都高川口線 | B11: 新井宿 | C11: 埼玉高速鉄道 | D11: 新井宿 | E11: 17.4 | F11: 37 | G11: 78.3 | H11: 92.4 | I11: 96.8 | J11: 50 | K11: 238.1 | L11: 242.5 | M11: 257.7 | N11: 262.1
A12: 首都高K3号狩場線 | B12: 永田 | C12: JR横須賀線 | D12: 保土ヶ谷 | E12: 49 | F12: 56.6 | G12: 4.4 | H12: 91.4 | I12: 63.1 | J12: 20 | K12: 164.8 | L12: 136.5 | M12: 172.4 | N12: 144.1
A13: 東京湾アクアライン | B13: 袖ケ浦 | C13: 高速バス | D13: 袖ケ浦BT | E13: 9.8 | F13: 2.2 | G13: 100 | H13: 90.3 | I13: 99 | J13: 50 | K13: 250.1 | L13: 258.8 | M13: 242.5 | N13: 251.2
A14: 外環道 | B14: 外環浦和 | C14: JR京浜東北線 | D14: 南浦和 | E14: 46.8 | F14: 68.5 | G14: 92.4 | H14: 89.2 | I14: 66.4 | J14: 80 | K14: 308.4 | L14: 285.6 | M14: 330.1 | N14: 307.3
A15: 東関東自動車道 | B15: 谷津船橋IC | C15: JR京葉線 | D15: 南船橋 | E15: 55.5 | F15: 9.8 | G15: 42.4 | H15: 88.1 | I15: 80.5 | J15: 100 | K15: 286 | L15: 278.4 | M15: 240.3 | N15: 232.7
A16: 首都高K3号狩場線 | B16: 花之木 | C16: 京急本線 | D16: 南太田 | E16: 20.7 | F16: 27.2 | G16: 70.7 | H16: 87 | I16: 49 | J16: 20 | K16: 198.4 | L16: 160.4 | M16: 204.9 | N16: 166.9
A17: 中央自動車道 | B17: 調布 | C17: 京王線 | D17: 西調布 | E17: 5.5 | F17: 55.5 | G17: 49 | H17: 85.9 | I17: 54.4 | J17: 20 | K17: 160.4 | L17: 128.9 | M17: 210.4 | N17: 178.9
A18: 首都高5号池袋線 | B18: 戸田南 | C18: JR埼京線 | D18: 戸田 | E18: 33.7 | F18: 84.8 | G18: 19.6 | H18: 84.8 | I18: 84.8 | J18: 80 | K18: 218.1 | L18: 218.1 | M18: 269.2 | N18: 269.2
A19: 首都高K1号横羽線 | B19: 汐入 | C19: JR鶴見線 | D19: 弁天橋 | E19: 34.8 | F19: 26.1 | G19: 82.7 | H19: 83.7 | I19: 69.6 | J19: 0 | K19: 201.2 | L19: 187.1 | M19: 192.5 | N19: 178.4
A20: 首都高川口線 | B20: 新郷 | C20: 埼玉高速鉄道 | D20: 鳩ヶ谷 | E20: 24 | F20: 46.8 | G20: 92.4 | H20: 83.7 | I20: 78.3 | J20: 50 | K20: 250.1 | L20: 244.7 | M20: 272.9 | N20: 267.5
A21: 中央自動車道 | B21: 国立府中 | C21: JR南武線 | D21: 谷保 | E21: 0 | F21: 35.9 | G21: 15.3 | H21: 81.6 | I21: 65.3 | J21: 20 | K21: 116.9 | L21: 100.6 | M21: 152.8 | N21: 136.5
A22: 首都高5号池袋線 | B22: 高島平 | C22: 都営三田線 | D22: 西高島平 | E22: 54.4 | F22: 51.1 | G22: 100 | H22: 80.5 | I22: 81.6 | J22: 0 | K22: 234.9 | L22: 236 | M22: 231.6 | N22: 232.7
A23: 京葉道路 | B23: 花輪 | C23: 京成本線 | D23: 船橋競馬場 | E23: 26.1 | F23: 9.8 | G23: 76.1 | H23: 79.4 | I23: 75 | J23: 100 | K23: 281.6 | L23: 277.2 | M23: 265.3 | N23: 260.9
A24: 外環道 | B24: 川口東 | C24: 埼玉高速鉄道 | D24: 戸塚安行 | E24: 12 | F24: 29.4 | G24: 78.3 | H24: 78.3 | I24: 93.5 | J24: 20 | K24: 188.6 | L24: 203.8 | M24: 206 | N24: 221.2
A25: 外環道 | B25: 外環三郷西 | C25: JR武蔵野線 | D25: 新三郷 | E25: 8.7 | F25: 7.7 | G25: 31.6 | H25: 77.2 | I25: 89.2 | J25: 100 | K25: 217.5 | L25: 229.5 | M25: 216.5 | N25: 228.5
A26: 首都高湾岸線 | B26: 葛西 | C26: JR京葉線 | D26: 葛西臨海公園 | E26: 93.5 | F26: 38.1 | G26: 42.4 | H26: 77.2 | I26: 71.8 | J26: 20 | K26: 233.1 | L26: 227.7 | M26: 177.7 | N26: 172.3
A27: 京葉道路 | B27: 幕張 | C27: JR総武線 | D27: 幕張本郷 | E27: 31.6 | F27: 18.5 | G27: 7.7 | H27: 75 | I27: 77.2 | J27: 20 | K27: 134.3 | L27: 136.5 | M27: 121.2 | N27: 123.4
A28: 常磐自動車道 | B28: 谷和原 | C28: つくばエクスプレス | D28: 守谷 | E28: 7.7 | F28: 0 | G28: 92.4 | H28: 74 | I28: 92.4 | J28: 100 | K28: 274.1 | L28: 292.5 | M28: 266.4 | N28: 284.8
A29: 外環道 | B29: 戸田東 | C29: JR埼京線 | D29: 北戸田 | E29: 29.4 | F29: 80.5 | G29: 19.6 | H29: 72.9 | I29: 82.7 | J29: 50 | K29: 171.9 | L29: 181.7 | M29: 223 | N29: 232.8
A30: 東関東自動車道 | B30: 湾岸千葉IC | C30: JR京葉線 | D30: 海浜幕張 | E30: 37 | F30: 1.1 | G30: 92.4 | H30: 71.8 | I30: 71.8 | J30: 100 | K30: 301.2 | L30: 301.2 | M30: 265.3 | N30: 265.3
A31: 首都高K1号横羽線 | B31: 大師 | C31: 京急大師線 | D31: 大師橋 | E31: 24 | F31: 22.9 | G31: 82.7 | H31: 70.7 | I31: 55.5 | J31: 0 | K31: 177.4 | L31: 162.2 | M31: 176.3 | N31: 161.1
A32: 京葉道路 | B32: 武石 | C32: JR総武線 | D32: 幕張 | E32: 20.7 | F32: 12 | G32: 7.7 | H32: 69.6 | I32: 94.6 | J32: 50 | K32: 148 | L32: 173 | M32: 139.3 | N32: 164.3
A33: 東関東自動車道 | B33: 湾岸習志野IC | C33: JR京葉線 | D33: 新習志野 | E33: 42.4 | F33: 3.3 | G33: 42.4 | H33: 68.5 | I33: 83.7 | J33: 80 | K33: 233.3 | L33: 248.5 | M33: 194.2 | N33: 209.4
A34: 東北自動車道 | B34: 浦和 | C34: 埼玉高速鉄道 | D34: 浦和美園 | E34: 6.6 | F34: 21.8 | G34: 100 | H34: 67.4 | I34: 91.4 | J34: 100 | K34: 274 | L34: 298 | M34: 289.2 | N34: 313.2
A35: 首都高川口線 | B35: 足立入谷 | C35: 都営日暮里舎人ライナー | D35: 舎人 | E35: 51.1 | F35: 43.5 | G35: 10.9 | H35: 66.4 | I35: 79.4 | J35: 20 | K35: 148.4 | L35: 161.4 | M35: 140.8 | N35: 153.8
A36: 外環道 | B36: 三郷南 | C36: JR常磐線 | D36: 松戸 | E36: 64.2 | F36: 49 | G36: 59.8 | H36: 65.3 | I36: 68.5 | J36: 80 | K36: 269.3 | L36: 272.5 | M36: 254.1 | N36: 257.3
A37: 首都高S新都心線 | B37: 新都心西 | C37: JR埼京線 | D37: 北与野 | E37: 15.3 | F37: 59.8 | G37: 19.6 | H37: 64.2 | I37: 76.1 | J37: 100 | K37: 199.1 | L37: 211 | M37: 243.6 | N37: 255.5
A38: 首都高6号三郷線 | B38: 加平 | C38: メトロ千代田線 | D38: 北綾瀬 | E38: 66.4 | F38: 33.7 | G38: 100 | H38: 64.2 | I38: 56.6 | J38: 20 | K38: 250.6 | L38: 243 | M38: 217.9 | N38: 210.3
A39: 首都高中央環状線 | B39: 小菅 | C39: 京成本線 | D39: 堀切菖蒲園 | E39: 69.6 | F39: 44.6 | G39: 76.1 | H39: 62 | I39: 59.8 | J39: 50 | K39: 257.7 | L39: 255.5 | M39: 232.7 | N39: 230.5
A40: 外環道 | B40: 市川南 | C40: メトロ東西線 | D40: 妙典 | E40: 63.1 | F40: 30.5 | G40: 3.3 | H40: 60.9 | I40: 52.2 | J40: 80 | K40: 207.3 | L40: 198.6 | M40: 174.7 | N40: 166
A41: 東名高速道路 | B41: 横浜町田 | C41: 東急田園都市線 | D41: 南町田 | E41: 1.1 | F41: 5.5 | G41: 26.1 | H41: 59.8 | I41: 72.9 | J41: 100 | K41: 187 | L41: 200.1 | M41: 191.4 | N41: 204.5
A42: 首都高K1号横羽線 | B42: 生麦 | C42: 京急本線 | D42: 生麦 | E42: 21.8 | F42: 19.6 | G42: 70.7 | H42: 59.8 | I42: 44.6 | J42: 20 | K42: 172.3 | L42: 157.1 | M42: 170.1 | N42: 154.9
A43: 首都高7号小松川線 | B43: 篠崎 | C43: 都営新宿線 | D43: 篠崎 | E43: 52.2 | F43: 57.7 | G43: 57.7 | H43: 57.7 | I43: 46.8 | J43: 50 | K43: 217.6 | L43: 206.7 | M43: 223.1 | N43: 212.2
A44: 外環道 | B44: 和光 | C44: メトロ有楽町線 | D44: 和光市 | E44: 37 | F44: 81.6 | G44: 92.4 | H44: 56.6 | I44: 44.6 | J44: 80 | K44: 266 | L44: 254 | M44: 310.6 | N44: 298.6
A45: 首都高川口線 | B45: 鹿浜橋 | C45: 都営日暮里舎人ライナー | D45: 江北 | E45: 66.4 | F45: 54.4 | G45: 10.9 | H45: 55.5 | I45: 26.1 | J45: 20 | K45: 152.8 | L45: 123.4 | M45: 140.8 | N45: 111.4
A46: 首都高K1号横羽線 | B46: 浜川崎 | C46: JR南武支線 | D46: 浜川崎 | E46: 25 | F46: 14.2 | G46: 100 | H46: 54.4 | I46: 60.9 | J46: 0 | K46: 179.4 | L46: 185.9 | M46: 168.6 | N46: 175.1
A47: 外環道 | B47: 川口西 | C47: JR京浜東北線 | D47: 蕨 | E47: 58.7 | F47: 77.2 | G47: 33.7 | H47: 53.3 | I47: 50 | J47: 50 | K47: 195.7 | L47: 192.4 | M47: 214.2 | N47: 210.9
A48: 京葉道路 | B48: 船橋 | C48: JR総武線 | D48: 船橋 | E48: 70.7 | F48: 47.9 | G48: 30.5 | H48: 52.2 | I48: 39.2 | J48: 100 | K48: 253.4 | L48: 240.4 | M48: 230.6 | N48: 217.6
A49: 京葉道路 | B49: 京葉市川 | C49: 都営新宿線 | D49: 本八幡 | E49: 39.2 | F49: 50 | G49: 100 | H49: 52.2 | I49: 57.7 | J49: 80 | K49: 271.4 | L49: 276.9 | M49: 282.2 | N49: 287.7
A50: 首都高中央環状線 | B50: 船堀橋 | C50: 都営新宿線 | D50: 東大島 | E50: 75 | F50: 82.7 | G50: 57.7 | H50: 50 | I50: 14.2 | J50: 50 | K50: 232.7 | L50: 196.9 | M50: 240.4 | N50: 204.6
A51: 首都高中央環状線 | B51: 扇大橋 | C51: 都営日暮里舎人ライナー | D51: 扇大橋 | E51: 76.1 | F51: 64.2 | G51: 10.9 | H51: 49 | I51: 67.4 | J51: 50 | K51: 186 | L51: 204.4 | M51: 174.1 | N51: 192.5
A52: 首都高7号小松川線 | B52: 一之江 | C52: 都営新宿線 | D52: 一之江 | E52: 62 | F52: 70.7 | G52: 57.7 | H52: 47.9 | I52: 58.7 | J52: 20 | K52: 187.6 | L52: 198.4 | M52: 196.3 | N52: 207.1
A53: 首都高中央環状線 | B53: 四つ木 | C53: 京成押上線 | D53: 四ツ木 | E53: 90.3 | F53: 52.2 | G53: 65.3 | H53: 47.9 | I53: 41.4 | J53: 50 | K53: 253.5 | L53: 247 | M53: 215.4 | N53: 208.9
A54: 首都高湾岸線 | B54: 浦安 | C54: JR京葉線 | D54: 新浦安 | E54: 80.5 | F54: 28.3 | G54: 42.4 | H54: 45.7 | I54: 64.2 | J54: 80 | K54: 248.6 | L54: 267.1 | M54: 196.4 | N54: 214.9
A55: 首都高S新都心線 | B55: 新都心 | C55: JR上野東京ライン | D55: さいたま新都心 | E55: 59.8 | F55: 68.5 | G55: 50 | H55: 44.6 | I55: 24 | J55: 100 | K55: 254.4 | L55: 233.8 | M55: 263.1 | N55: 242.5
A56: 首都高K3号狩場線 | B56: 阪東橋 | C56: 横浜地下鉄ブルーライン | D56: 阪東橋 | E56: 15.3 | F56: 24 | G56: 71.8 | H56: 44.6 | I56: 38.1 | J56: 20 | K56: 151.7 | L56: 145.2 | M56: 160.4 | N56: 153.9
A57: 首都高6号三郷線 | B57: 八潮 | C57: つくばエクスプレス | D57: 八潮 | E57: 53.3 | F57: 31.6 | G57: 92.4 | H57: 42.4 | I57: 62 | J57: 100 | K57: 288.1 | L57: 307.7 | M57: 266.4 | N57: 286
A58: 外環道 | B58: 市川中央 | C58: JR総武線 | D58: 市川 | E58: 84.8 | F58: 62 | G58: 30.5 | H58: 41.4 | I58: 29.4 | J58: 80 | K58: 236.7 | L58: 224.7 | M58: 213.9 | N58: 201.9
A59: 首都高6号三郷線 | B59: 三郷 | C59: つくばエクスプレス | D59: 三郷中央 | E59: 38.1 | F59: 25 | G59: 38.1 | H59: 40.3 | I59: 88.1 | J59: 80 | K59: 196.5 | L59: 244.3 | M59: 183.4 | N59: 231.2
A60: 首都高K1号横羽線 | B60: 子安 | C60: JR京浜東北線 | D60: 新子安 | E60: 57.7 | F60: 34.8 | G60: 13.1 | H60: 39.2 | I60: 53.3 | J60: 50 | K60: 160 | L60: 174.1 | M60: 137.1 | N60: 151.2
A61: 東名高速道路 | B61: 横浜青葉 | C61: 東急田園都市線 | D61: 市が尾 | E61: 3.3 | F61: 16.4 | G61: 26.1 | H61: 38.1 | I61: 51.1 | J61: 50 | K61: 117.5 | L61: 130.5 | M61: 130.6 | N61: 143.6
A62: 京葉道路 | B62: 原木 | C62: メトロ東西線 | D62: 西船橋 | E62: 47.9 | F62: 45.7 | G62: 92.4 | H62: 38.1 | I62: 45.7 | J62: 80 | K62: 258.4 | L62: 266 | M62: 256.2 | N62: 263.8
A63: 首都高中央環状線 | B63: 船堀橋 | C63: 都営新宿線 | D63: 船堀 | E63: 68.5 | F63: 75 | G63: 57.7 | H63: 35.9 | I63: 25 | J63: 50 | K63: 212.1 | L63: 201.2 | M63: 218.6 | N63: 207.7
A64: 首都高中央環状線 | B64: 平井大橋 | C64: JR総武線 | D64: 平井 | E64: 89.2 | F64: 83.7 | G64: 7.7 | H64: 34.8 | I64: 34.8 | J64: 50 | K64: 181.7 | L64: 181.7 | M64: 176.2 | N64: 176.2
A65: 首都高中央環状線 | B65: 平井大橋 | C65: JR総武線 | D65: 新小岩 | E65: 94.6 | F65: 78.3 | G65: 30.5 | H65: 33.7 | I65: 32.7 | J65: 50 | K65: 208.8 | L65: 207.8 | M65: 192.5 | N65: 191.5
A66: 首都高中央環状線 | B66: 清新町 | C66: メトロ東西線 | D66: 西葛西 | E66: 91.4 | F66: 63.1 | G66: 3.3 | H66: 32.7 | I66: 47.9 | J66: 50 | K66: 177.4 | L66: 192.6 | M66: 149.1 | N66: 164.3
A67: 首都高6号向島線 | B67: 堤通 | C67: 東武スカイツリーライン | D67: 鐘ヶ淵 | E67: 67.4 | F67: 39.2 | G67: 63.1 | H67: 31.6 | I67: 31.6 | J67: 20 | K67: 182.1 | L67: 182.1 | M67: 153.9 | N67: 153.9
A68: 首都高中央環状線 | B68: 王子北 | C68: JR京浜東北線 | D68: 王子 | E68: 89.2 | F68: 88.1 | G68: 33.7 | H68: 30.5 | I68: 22.9 | J68: 50 | K68: 203.4 | L68: 195.8 | M68: 202.3 | N68: 194.7
A69: 首都高4号新宿線 | B69: 高井戸 | C69: 京王線 | D69: 八幡山 | E69: 28.3 | F69: 94.6 | G69: 49 | H69: 30.5 | I69: 13.1 | J69: 50 | K69: =E69+$G69+H69+$J69 -> 157.8 | L69: =E69+$G69+I69+$J69 -> 140.4 | M69: =F69+$G69+H69+$J69 -> 224.1 | N69: =F69+$G69+I69+$J69 -> 206.7
A70: 東名高速道路 | B70: 東名川崎 | C70: 東急田園都市線 | D70: 宮前平 | E70: 13.1 | F70: 32.7 | G70: 26.1 | H70: 28.3 | I70: 42.4 | J70: 50 | K70: 117.5 | L70: 131.6 | M70: 137.1 | N70: 151.2
A71: 常磐自動車道 | B71: 流山 | C71: つくばエクスプレス | D71: 流山おおたかの森 | E71: 18.5 | F71: 10.9 | G71: 38.1 | H71: 27.2 | I71: 35.9 | J71: 100 | K71: 183.8 | L71: 192.5 | M71: 176.2 | N71: 184.9
A72: 首都高5号池袋線 | B72: 中台 | C72: 都営三田線 | D72: 志村三丁目 | E72: 74 | F72: 74 | G72: 52.2 | H72: 26.1 | I72: 37 | J72: 100 | K72: 252.3 | L72: 263.2 | M72: 252.3 | N72: 263.2
A73: 首都高6号三郷線 | B73: 加平 | C73: つくばエクスプレス | D73: 六町 | E73: 60.9 | F73: 43.5 | G73: 38.1 | H73: 25 | I73: 40.3 | J73: 20 | K73: 144 | L73: 159.3 | M73: 126.6 | N73: 141.9
A74: 首都高K1号横羽線 | B74: 東神奈川 | C74: JR京浜東北線 | D74: 東神奈川 | E74: 46.8 | F74: 41.4 | G74: 13.1 | H74: 24 | I74: 30.5 | J74: 50 | K74: 133.9 | L74: 140.4 | M74: 128.5 | N74: 135
A75: 首都高中央環状線 | B75: 千住新橋 | C75: JR常磐線 | D75: 北千住 | E75: 82.7 | F75: 71.8 | G75: 58.7 | H75: 22.9 | I75: 28.3 | J75: 100 | K75: 264.3 | L75: 269.7 | M75: 253.4 | N75: 258.8
A76: 首都高5号池袋線 | B76: 板橋本町 | C76: 都営三田線 | D76: 板橋本町 | E76: 89.2 | F76: 87 | G76: 52.2 | H76: 21.8 | I76: 17.4 | J76: 20 | K76: 183.2 | L76: 178.8 | M76: 181 | N76: 176.6
A77: 首都高4号新宿線 | B77: 高井戸 | C77: 京王井の頭線 | D77: 高井戸 | E77: 30.5 | F77: 92.4 | G77: 65.3 | H77: 20.7 | I77: 19.6 | J77: 50 | K77: 166.5 | L77: 165.4 | M77: 228.4 | N77: 227.3
A78: 首都高3号渋谷線 | B78: 用賀 | C78: 東急田園都市線 | D78: 用賀 | E78: 56.6 | F78: 76.1 | G78: 26.1 | H78: 19.6 | I78: 7.7 | J78: 80 | K78: 182.3 | L78: 170.4 | M78: 201.8 | N78: 189.9
A79: 首都高6号向島線 | B79: 向島 | C79: 東武スカイツリーライン | D79: 曳舟 | E79: 92.4 | F79: 58.7 | G79: 63.1 | H79: 18.5 | I79: 16.4 | J79: 50 | K79: 224 | L79: 221.9 | M79: 190.3 | N79: 188.2
A80: 首都高5号池袋線 | B80: 北池袋 | C80: メトロ有楽町線 | D80: 要町 | E80: 79.4 | F80: 96.8 | G80: 49 | H80: 17.4 | I80: 10.9 | J80: 20 | K80: 165.8 | L80: 159.3 | M80: 183.2 | N80: 176.7
A81: 首都高1号羽田線 | B81: 平和島 | C81: 京急本線 | D81: 平和島 | E81: 71.8 | F81: 65.3 | G81: 70.7 | H81: 16.4 | I81: 27.2 | J81: 20 | K81: 178.9 | L81: 189.7 | M81: 172.4 | N81: 183.2
A82: 首都高4号新宿線 | B82: 永福 | C82: 京王線 | D82: 下高井戸 | E82: 44.6 | F82: 97.9 | G82: 49 | H82: 15.3 | I82: 4.4 | J82: 50 | K82: 158.9 | L82: 148 | M82: 212.2 | N82: 201.3
A83: 首都高4号新宿線 | B83: 幡ヶ谷 | C83: 京王新線 | D83: 幡ヶ谷 | E83: 77.2 | F83: 99 | G83: 49 | H83: 14.2 | I83: 1.1 | J83: 80 | K83: 220.4 | L83: 207.3 | M83: 242.2 | N83: 229.1
A84: 首都高1号羽田線 | B84: 羽田 | C84: 京急空港線 | D84: 穴守稲荷 | E84: 41.4 | F84: 41.4 | G84: 82.7 | H84: 13.1 | I84: 33.7 | J84: 20 | K84: 157.2 | L84: 177.8 | M84: 157.2 | N84: 177.8
A85: 首都高中央環状線 | B85: 中野長者橋 | C85: メトロ丸ノ内線 | D85: 中野坂上 | E85: 83.7 | F85: 100 | G85: 49 | H85: 12 | I85: 5.5 | J85: 80 | K85: 224.7 | L85: 218.2 | M85: 241 | N85: 234.5
A86: 首都高6号向島線 | B86: 駒形 | C86: 都営浅草線 | D86: 本所吾妻橋 | E86: 96.8 | F86: 72.9 | G86: 74 | H86: 10.9 | I86: 18.5 | J86: 100 | K86: 281.7 | L86: 289.3 | M86: 257.8 | N86: 265.4
A87: 首都高1号羽田線 | B87: 勝島 | C87: 京急本線 | D87: 立会川 | E87: 74 | F87: 66.4 | G87: 70.7 | H87: 9.8 | I87: 20.7 | J87: 20 | K87: 174.5 | L87: 185.4 | M87: 166.9 | N87: 177.8
A88: 首都高1号羽田線 | B88: 鈴ヶ森 | C88: 京急本線 | D88: 大森海岸 | E88: 51.1 | F88: 53.3 | G88: 70.7 | H88: 8.7 | I88: 12 | J88: 80 | K88: 210.5 | L88: 213.8 | M88: 212.7 | N88: 216
A89: 首都高2号目黒線 | B89: 戸越 | C89: 都営浅草線 | D89: 戸越 | E89: 85.9 | F89: 89.2 | G89: 74 | H89: 7.7 | I89: 6.6 | J89: 20 | K89: 187.6 | L89: 186.5 | M89: 190.9 | N89: 189.8
A90: 常磐自動車道 | B90: 柏 | C90: つくばエクスプレス | D90: 柏の葉キャンパス | E90: 12 | F90: 4.4 | G90: 38.1 | H90: 6.6 | I90: 15.3 | J90: 100 | K90: 156.7 | L90: 165.4 | M90: 149.1 | N90: 157.8
A91: 首都高9号深川線 | B91: 木場 | C91: メトロ東西線 | D91: 木場 | E91: 97.9 | F91: 80.5 | G91: 3.3 | H91: 5.5 | I91: 8.7 | J91: 80 | K91: 186.7 | L91: 189.9 | M91: 169.3 | N91: 172.5
A92: 首都高3号渋谷線 | B92: 三軒茶屋 | C92: 東急田園都市線 | D92: 三軒茶屋 | E92: 79.4 | F92: 93.5 | G92: 26.1 | H92: 4.4 | I92: 2.2 | J92: 50 | K92: 159.9 | L92: 157.7 | M92: 174 | N92: 171.8
A93: 首都高7号小松川線 | B93: 錦糸町 | C93: 都営新宿線 | D93: 住吉 | E93: 99 | F93: 90.3 | G93: 57.7 | H93: 3.3 | I93: 21.8 | J93: 50 | K93: 210 | L93: 228.5 | M93: 201.3 | N93: 219.8
A94: 首都高7号小松川線 | B94: 錦糸町 | C94: JR総武線 | D94: 錦糸町 | E94: 95.7 | F94: 92.4 | G94: 30.5 | H94: 2.2 | I94: 9.8 | J94: 100 | K94: 228.4 | L94: 236 | M94: 225.1 | N94: 232.7
A95: 首都高9号深川線 | B95: 福住 | C95: メトロ東西線 | D95: 門前仲町 | E95: 100 | F95: 85.9 | G95: 3.3 | H95: 1.1 | I95: 3.3 | J95: 50 | K95: 154.4 | L95: 156.6 | M95: 140.3 | N95: 142.5
A96: 首都高3号渋谷線 | B96: 池尻 | C96: 東急田園都市線 | D96: 池尻大橋 | E96: 81.6 | F96: 95.7 | G96: 26.1 | H96: 0 | I96: 0 | J96: 20 | K96: 127.7 | L96: 127.7 | M96: 141.8 | N96: 141.8

Sheet 参考順位
F2: 所要時間点数 | I2: 家賃点数 | K2: 点数
A3: 0 | B3: 道路名 | C3: IC名 | D3: 鉄道路線 | E3: 駅名 | F3: 東京 | G3: 新宿 | H3: 快適性点数 | I3: 1K | J3: 2LDK | K3: 商業施設 | L3: 東京1K | M3: 東京2LDK | N3: 新宿1K | O3: 新宿2LDK
A4: =A3+1 -> 1 | B4: 東北自動車道 | C4: 岩槻 | D4: 東武野田線 | E4: 岩槻 | F4: 2.2 | G4: 15.3 | H4: 79.4 | I4: 100 | J4: 99 | K4: 80 | L4: 261.6 | M4: 260.6 | N4: 274.7 | O4: 273.7
A5: 2 | B5: 東京湾アクアライン | C5: 木更津金田 | D5: 高速バス | E5: 木更津金田BT | F5: 32.7 | G5: 6.6 | H5: 100 | I5: 99 | J5: 100 | K5: 100 | L5: 331.7 | M5: 332.7 | N5: 305.6 | O5: 306.6
A6: 3 | B6: 外環道 | C6: 草加 | D6: 東武スカイツリーライン | E6: 獨協大学前 | F6: 27.2 | G6: 18.5 | H6: 63.1 | I6: 97.9 | J6: 90.3 | K6: 80 | L6: 268.2 | M6: 260.6 | N6: 259.5 | O6: 251.9
A7: 4 | B7: 外環道 | C7: 松戸 | D7: 北総線 | E7: 北国分 | F7: 40.3 | G7: 13.1 | H7: 84.8 | I7: 96.8 | J7: 87 | K7: 80 | L7: 301.9 | M7: 292.1 | N7: 274.7 | O7: 264.9
A8: 5 | B8: 首都高S大宮線 | C8: 浦和南 | D8: JR埼京線 | E8: 南与野 | F8: 16.4 | G8: 69.6 | H8: 19.6 | I8: 95.7 | J8: 85.9 | K8: 50 | L8: 181.7 | M8: 171.9 | N8: 234.9 | O8: 225.1
A9: 6 | B9: 外環道 | C9: 松戸 | D9: 北総線 | E9: 矢切 | F9: 44.6 | G9: 20.7 | H9: 84.8 | I9: 94.6 | J9: 95.7 | K9: 50 | L9: 274 | M9: 275.1 | N9: 250.1 | O9: 251.2
A10: 7 | B10: 中央自動車道 | C10: 稲城 | D10: JR南武線 | E10: 稲城長沼 | F10: 5.5 | G10: 60.9 | H10: 15.3 | I10: 93.5 | J10: 74 | K10: 20 | L10: 134.3 | M10: 114.8 | N10: 189.7 | O10: 170.2
A11: 8 | B11: 首都高川口線 | C11: 新井宿 | D11: 埼玉高速鉄道 | E11: 新井宿 | F11: 17.4 | G11: 37 | H11: 78.3 | I11: 92.4 | J11: 96.8 | K11: 50 | L11: 238.1 | M11: 242.5 | N11: 257.7 | O11: 262.1
A12: 9 | B12: 首都高K3号狩場線 | C12: 永田 | D12: JR横須賀線 | E12: 保土ヶ谷 | F12: 49 | G12: 56.6 | H12: 4.4 | I12: 91.4 | J12: 63.1 | K12: 20 | L12: 164.8 | M12: 136.5 | N12: 172.4 | O12: 144.1
A13: 10 | B13: 東京湾アクアライン | C13: 袖ケ浦 | D13: 高速バス | E13: 袖ケ浦BT | F13: 9.8 | G13: 2.2 | H13: 100 | I13: 90.3 | J13: 99 | K13: 50 | L13: 250.1 | M13: 258.8 | N13: 242.5 | O13: 251.2
A14: 11 | B14: 外環道 | C14: 外環浦和 | D14: JR京浜東北線 | E14: 南浦和 | F14: 46.8 | G14: 68.5 | H14: 92.4 | I14: 89.2 | J14: 66.4 | K14: 80 | L14: 308.4 | M14: 285.6 | N14: 330.1 | O14: 307.3
A15: 12 | B15: 東関東自動車道 | C15: 谷津船橋IC | D15: JR京葉線 | E15: 南船橋 | F15: 55.5 | G15: 9.8 | H15: 42.4 | I15: 88.1 | J15: 80.5 | K15: 100 | L15: 286 | M15: 278.4 | N15: 240.3 | O15: 232.7
A16: 13 | B16: 首都高K3号狩場線 | C16: 花之木 | D16: 京急本線 | E16: 南太田 | F16: 20.7 | G16: 27.2 | H16: 70.7 | I16: 87 | J16: 49 | K16: 20 | L16: 198.4 | M16: 160.4 | N16: 204.9 | O16: 166.9
A17: 14 | B17: 中央自動車道 | C17: 調布 | D17: 京王線 | E17: 西調布 | F17: 5.5 | G17: 55.5 | H17: 49 | I17: 85.9 | J17: 54.4 | K17: 20 | L17: 160.4 | M17: 128.9 | N17: 210.4 | O17: 178.9
A18: 15 | B18: 首都高5号池袋線 | C18: 戸田南 | D18: JR埼京線 | E18: 戸田 | F18: 33.7 | G18: 84.8 | H18: 19.6 | I18: 84.8 | J18: 84.8 | K18: 80 | L18: 218.1 | M18: 218.1 | N18: 269.2 | O18: 269.2
A19: 16 | B19: 首都高K1号横羽線 | C19: 汐入 | D19: JR鶴見線 | E19: 弁天橋 | F19: 34.8 | G19: 26.1 | H19: 82.7 | I19: 83.7 | J19: 69.6 | K19: 0 | L19: 201.2 | M19: 187.1 | N19: 192.5 | O19: 178.4
A20: 17 | B20: 首都高川口線 | C20: 新郷 | D20: 埼玉高速鉄道 | E20: 鳩ヶ谷 | F20: 24 | G20: 46.8 | H20: 92.4 | I20: 83.7 | J20: 78.3 | K20: 50 | L20: 250.1 | M20: 244.7 | N20: 272.9 | O20: 267.5
A21: 18 | B21: 中央自動車道 | C21: 国立府中 | D21: JR南武線 | E21: 谷保 | F21: 0 | G21: 35.9 | H21: 15.3 | I21: 81.6 | J21: 65.3 | K21: 20 | L21: 116.9 | M21: 100.6 | N21: 152.8 | O21: 136.5
A22: 19 | B22: 首都高5号池袋線 | C22: 高島平 | D22: 都営三田線 | E22: 西高島平 | F22: 54.4 | G22: 51.1 | H22: 100 | I22: 80.5 | J22: 81.6 | K22: 0 | L22: 234.9 | M22: 236 | N22: 231.6 | O22: 232.7
A23: 20 | B23: 京葉道路 | C23: 花輪 | D23: 京成本線 | E23: 船橋競馬場 | F23: 26.1 | G23: 9.8 | H23: 76.1 | I23: 79.4 | J23: 75 | K23: 100 | L23: 281.6 | M23: 277.2 | N23: 265.3 | O23: 260.9
A24: 21 | B24: 外環道 | C24: 川口東 | D24: 埼玉高速鉄道 | E24: 戸塚安行 | F24: 12 | G24: 29.4 | H24: 78.3 | I24: 78.3 | J24: 93.5 | K24: 20 | L24: 188.6 | M24: 203.8 | N24: 206 | O24: 221.2
A25: 22 | B25: 外環道 | C25: 外環三郷西 | D25: JR武蔵野線 | E25: 新三郷 | F25: 8.7 | G25: 7.7 | H25: 31.6 | I25: 77.2 | J25: 89.2 | K25: 100 | L25: 217.5 | M25: 229.5 | N25: 216.5 | O25: 228.5
A26: 23 | B26: 首都高湾岸線 | C26: 葛西 | D26: JR京葉線 | E26: 葛西臨海公園 | F26: 93.5 | G26: 38.1 | H26: 42.4 | I26: 77.2 | J26: 71.8 | K26: 20 | L26: 233.1 | M26: 227.7 | N26: 177.7 | O26: 172.3
A27: 24 | B27: 京葉道路 | C27: 幕張 | D27: JR総武線 | E27: 幕張本郷 | F27: 31.6 | G27: 18.5 | H27: 7.7 | I27: 75 | J27: 77.2 | K27: 20 | L27: 134.3 | M27: 136.5 | N27: 121.2 | O27: 123.4
A28: 25 | B28: 常磐自動車道 | C28: 谷和原 | D28: つくばエクスプレス | E28: 守谷 | F28: 7.7 | G28: 0 | H28: 92.4 | I28: 74 | J28: 92.4 | K28: 100 | L28: 274.1 | M28: 292.5 | N28: 266.4 | O28: 284.8
A29: 26 | B29: 外環道 | C29: 戸田東 | D29: JR埼京線 | E29: 北戸田 | F29: 29.4 | G29: 80.5 | H29: 19.6 | I29: 72.9 | J29: 82.7 | K29: 50 | L29: 171.9 | M29: 181.7 | N29: 223 | O29: 232.8
A30: 27 | B30: 東関東自動車道 | C30: 湾岸千葉IC | D30: JR京葉線 | E30: 海浜幕張 | F30: 37 | G30: 1.1 | H30: 92.4 | I30: 71.8 | J30: 71.8 | K30: 100 | L30: 301.2 | M30: 301.2 | N30: 265.3 | O30: 265.3
A31: 28 | B31: 首都高K1号横羽線 | C31: 大師 | D31: 京急大師線 | E31: 大師橋 | F31: 24 | G31: 22.9 | H31: 82.7 | I31: 70.7 | J31: 55.5 | K31: 0 | L31: 177.4 | M31: 162.2 | N31: 176.3 | O31: 161.1
A32: 29 | B32: 京葉道路 | C32: 武石 | D32: JR総武線 | E32: 幕張 | F32: 20.7 | G32: 12 | H32: 7.7 | I32: 69.6 | J32: 94.6 | K32: 50 | L32: 148 | M32: 173 | N32: 139.3 | O32: 164.3
A33: 30 | B33: 東関東自動車道 | C33: 湾岸習志野IC | D33: JR京葉線 | E33: 新習志野 | F33: 42.4 | G33: 3.3 | H33: 42.4 | I33: 68.5 | J33: 83.7 | K33: 80 | L33: 233.3 | M33: 248.5 | N33: 194.2 | O33: 209.4
A34: 31 | B34: 東北自動車道 | C34: 浦和 | D34: 埼玉高速鉄道 | E34: 浦和美園 | F34: 6.6 | G34: 21.8 | H34: 100 | I34: 67.4 | J34: 91.4 | K34: 100 | L34: 274 | M34: 298 | N34: 289.2 | O34: 313.2
A35: 32 | B35: 首都高川口線 | C35: 足立入谷 | D35: 都営日暮里舎人ライナー | E35: 舎人 | F35: 51.1 | G35: 43.5 | H35: 10.9 | I35: 66.4 | J35: 79.4 | K35: 20 | L35: 148.4 | M35: 161.4 | N35: 140.8 | O35: 153.8
A36: =A35+1 -> 33 | B36: 外環道 | C36: 三郷南 | D36: JR常磐線 | E36: 松戸 | F36: 64.2 | G36: 49 | H36: 59.8 | I36: 65.3 | J36: 68.5 | K36: 80 | L36: 269.3 | M36: 272.5 | N36: 254.1 | O36: 257.3
A37: 34 | B37: 首都高S新都心線 | C37: 新都心西 | D37: JR埼京線 | E37: 北与野 | F37: 15.3 | G37: 59.8 | H37: 19.6 | I37: 64.2 | J37: 76.1 | K37: 100 | L37: 199.1 | M37: 211 | N37: 243.6 | O37: 255.5
A38: 35 | B38: 首都高6号三郷線 | C38: 加平 | D38: メトロ千代田線 | E38: 北綾瀬 | F38: 66.4 | G38: 33.7 | H38: 100 | I38: 64.2 | J38: 56.6 | K38: 20 | L38: 250.6 | M38: 243 | N38: 217.9 | O38: 210.3
A39: 36 | B39: 首都高中央環状線 | C39: 小菅 | D39: 京成本線 | E39: 堀切菖蒲園 | F39: 69.6 | G39: 44.6 | H39: 76.1 | I39: 62 | J39: 59.8 | K39: 50 | L39: 257.7 | M39: 255.5 | N39: 232.7 | O39: 230.5
A40: 37 | B40: 外環道 | C40: 市川南 | D40: メトロ東西線 | E40: 妙典 | F40: 63.1 | G40: 30.5 | H40: 3.3 | I40: 60.9 | J40: 52.2 | K40: 80 | L40: 207.3 | M40: 198.6 | N40: 174.7 | O40: 166
A41: 38 | B41: 東名高速道路 | C41: 横浜町田 | D41: 東急田園都市線 | E41: 南町田 | F41: 1.1 | G41: 5.5 | H41: 26.1 | I41: 59.8 | J41: 72.9 | K41: 100 | L41: 187 | M41: 200.1 | N41: 191.4 | O41: 204.5
A42: 39 | B42: 首都高K1号横羽線 | C42: 生麦 | D42: 京急本線 | E42: 生麦 | F42: 21.8 | G42: 19.6 | H42: 70.7 | I42: 59.8 | J42: 44.6 | K42: 20 | L42: 172.3 | M42: 157.1 | N42: 170.1 | O42: 154.9
A43: 40 | B43: 首都高7号小松川線 | C43: 篠崎 | D43: 都営新宿線 | E43: 篠崎 | F43: 52.2 | G43: 57.7 | H43: 57.7 | I43: 57.7 | J43: 46.8 | K43: 50 | L43: 217.6 | M43: 206.7 | N43: 223.1 | O43: 212.2
A44: 41 | B44: 外環道 | C44: 和光 | D44: メトロ有楽町線 | E44: 和光市 | F44: 37 | G44: 81.6 | H44: 92.4 | I44: 56.6 | J44: 44.6 | K44: 80 | L44: 266 | M44: 254 | N44: 310.6 | O44: 298.6
A45: 42 | B45: 首都高川口線 | C45: 鹿浜橋 | D45: 都営日暮里舎人ライナー | E45: 江北 | F45: 66.4 | G45: 54.4 | H45: 10.9 | I45: 55.5 | J45: 26.1 | K45: 20 | L45: 152.8 | M45: 123.4 | N45: 140.8 | O45: 111.4
A46: 43 | B46: 首都高K1号横羽線 | C46: 浜川崎 | D46: JR南武支線 | E46: 浜川崎 | F46: 25 | G46: 14.2 | H46: 100 | I46: 54.4 | J46: 60.9 | K46: 0 | L46: 179.4 | M46: 185.9 | N46: 168.6 | O46: 175.1
A47: 44 | B47: 外環道 | C47: 川口西 | D47: JR京浜東北線 | E47: 蕨 | F47: 58.7 | G47: 77.2 | H47: 33.7 | I47: 53.3 | J47: 50 | K47: 50 | L47: 195.7 | M47: 192.4 | N47: 214.2 | O47: 210.9
A48: 45 | B48: 京葉道路 | C48: 船橋 | D48: JR総武線 | E48: 船橋 | F48: 70.7 | G48: 47.9 | H48: 30.5 | I48: 52.2 | J48: 39.2 | K48: 100 | L48: 253.4 | M48: 240.4 | N48: 230.6 | O48: 217.6
A49: 46 | B49: 京葉道路 | C49: 京葉市川 | D49: 都営新宿線 | E49: 本八幡 | F49: 39.2 | G49: 50 | H49: 100 | I49: 52.2 | J49: 57.7 | K49: 80 | L49: 271.4 | M49: 276.9 | N49: 282.2 | O49: 287.7
A50: 47 | B50: 首都高中央環状線 | C50: 船堀橋 | D50: 都営新宿線 | E50: 東大島 | F50: 75 | G50: 82.7 | H50: 57.7 | I50: 50 | J50: 14.2 | K50: 50 | L50: 232.7 | M50: 196.9 | N50: 240.4 | O50: 204.6
A51: 48 | B51: 首都高中央環状線 | C51: 扇大橋 | D51: 都営日暮里舎人ライナー | E51: 扇大橋 | F51: 76.1 | G51: 64.2 | H51: 10.9 | I51: 49 | J51: 67.4 | K51: 50 | L51: 186 | M51: 204.4 | N51: 174.1 | O51: 192.5
A52: 49 | B52: 首都高7号小松川線 | C52: 一之江 | D52: 都営新宿線 | E52: 一之江 | F52: 62 | G52: 70.7 | H52: 57.7 | I52: 47.9 | J52: 58.7 | K52: 20 | L52: 187.6 | M52: 198.4 | N52: 196.3 | O52: 207.1
A53: 50 | B53: 首都高中央環状線 | C53: 四つ木 | D53: 京成押上線 | E53: 四ツ木 | F53: 90.3 | G53: 52.2 | H53: 65.3 | I53: 47.9 | J53: 41.4 | K53: 50 | L53: 253.5 | M53: 247 | N53: 215.4 | O53: 208.9
A54: 51 | B54: 首都高湾岸線 | C54: 浦安 | D54: JR京葉線 | E54: 新浦安 | F54: 80.5 | G54: 28.3 | H54: 42.4 | I54: 45.7 | J54: 64.2 | K54: 80 | L54: 248.6 | M54: 267.1 | N54: 196.4 | O54: 214.9
A55: 52 | B55: 首都高S新都心線 | C55: 新都心 | D55: JR上野東京ライン | E55: さいたま新都心 | F55: 59.8 | G55: 68.5 | H55: 50 | I55: 44.6 | J55: 24 | K55: 100 | L55: 254.4 | M55: 233.8 | N55: 263.1 | O55: 242.5
A56: 53 | B56: 首都高K3号狩場線 | C56: 阪東橋 | D56: 横浜地下鉄ブルーライン | E56: 阪東橋 | F56: 15.3 | G56: 24 | H56: 71.8 | I56: 44.6 | J56: 38.1 | K56: 20 | L56: 151.7 | M56: 145.2 | N56: 160.4 | O56: 153.9
A57: 54 | B57: 首都高6号三郷線 | C57: 八潮 | D57: つくばエクスプレス | E57: 八潮 | F57: 53.3 | G57: 31.6 | H57: 92.4 | I57: 42.4 | J57: 62 | K57: 100 | L57: 288.1 | M57: 307.7 | N57: 266.4 | O57: 286
A58: 55 | B58: 外環道 | C58: 市川中央 | D58: JR総武線 | E58: 市川 | F58: 84.8 | G58: 62 | H58: 30.5 | I58: 41.4 | J58: 29.4 | K58: 80 | L58: 236.7 | M58: 224.7 | N58: 213.9 | O58: 201.9
A59: 56 | B59: 首都高6号三郷線 | C59: 三郷 | D59: つくばエクスプレス | E59: 三郷中央 | F59: 38.1 | G59: 25 | H59: 38.1 | I59: 40.3 | J59: 88.1 | K59: 80 | L59: 196.5 | M59: 244.3 | N59: 183.4 | O59: 231.2
A60: 57 | B60: 首都高K1号横羽線 | C60: 子安 | D60: JR京浜東北線 | E60: 新子安 | F60: 57.7 | G60: 34.8 | H60: 13.1 | I60: 39.2 | J60: 53.3 | K60: 50 | L60: 160 | M60: 174.1 | N60: 137.1 | O60: 151.2
A61: 58 | B61: 東名高速道路 | C61: 横浜青葉 | D61: 東急田園都市線 | E61: 市が尾 | F61: 3.3 | G61: 16.4 | H61: 26.1 | I61: 38.1 | J61: 51.1 | K61: 50 | L61: 117.5 | M61: 130.5 | N61: 130.6 | O61: 143.6
A62: 59 | B62: 京葉道路 | C62: 原木 | D62: メトロ東西線 | E62: 西船橋 | F62: 47.9 | G62: 45.7 | H62: 92.4 | I62: 38.1 | J62: 45.7 | K62: 80 | L62: 258.4 | M62: 266 | N62: 256.2 | O62: 263.8
A63: 60 | B63: 首都高中央環状線 | C63: 船堀橋 | D63: 都営新宿線 | E63: 船堀 | F63: 68.5 | G63: 75 | H63: 57.7 | I63: 35.9 | J63: 25 | K63: 50 | L63: 212.1 | M63: 201.2 | N63: 218.6 | O63: 207.7
A64: 61 | B64: 首都高中央環状線 | C64: 平井大橋 | D64: JR総武線 | E64: 平井 | F64: 89.2 | G64: 83.7 | H64: 7.7 | I64: 34.8 | J64: 34.8 | K64: 50 | L64: 181.7 | M64: 181.7 | N64: 176.2 | O64: 176.2
A65: 62 | B65: 首都高中央環状線 | C65: 平井大橋 | D65: JR総武線 | E65: 新小岩 | F65: 94.6 | G65: 78.3 | H65: 30.5 | I65: 33.7 | J65: 32.7 | K65: 50 | L65: 208.8 | M65: 207.8 | N65: 192.5 | O65: 191.5
A66: 63 | B66: 首都高中央環状線 | C66: 清新町 | D66: メトロ東西線 | E66: 西葛西 | F66: 91.4 | G66: 63.1 | H66: 3.3 | I66: 32.7 | J66: 47.9 | K66: 50 | L66: 177.4 | M66: 192.6 | N66: 149.1 | O66: 164.3
A67: 64 | B67: 首都高6号向島線 | C67: 堤通 | D67: 東武スカイツリーライン | E67: 鐘ヶ淵 | F67: 67.4 | G67: 39.2 | H67: 63.1 | I67: 31.6 | J67: 31.6 | K67: 20 | L67: 182.1 | M67: 182.1 | N67: 153.9 | O67: 153.9
A68: =A67+1 -> 65 | B68: 首都高中央環状線 | C68: 王子北 | D68: JR京浜東北線 | E68: 王子 | F68: 89.2 | G68: 88.1 | H68: 33.7 | I68: 30.5 | J68: 22.9 | K68: 50 | L68: 203.4 | M68: 195.8 | N68: 202.3 | O68: 194.7
A69: 66 | B69: 首都高4号新宿線 | C69: 高井戸 | D69: 京王線 | E69: 八幡山 | F69: 28.3 | G69: 94.6 | H69: 49 | I69: 30.5 | J69: 13.1 | K69: 50 | L69: 157.8 | M69: 140.4 | N69: 224.1 | O69: 206.7
A70: 67 | B70: 東名高速道路 | C70: 東名川崎 | D70: 東急田園都市線 | E70: 宮前平 | F70: 13.1 | G70: 32.7 | H70: 26.1 | I70: 28.3 | J70: 42.4 | K70: 50 | L70: 117.5 | M70: 131.6 | N70: 137.1 | O70: 151.2
A71: 68 | B71: 常磐自動車道 | C71: 流山 | D71: つくばエクスプレス | E71: 流山おおたかの森 | F71: 18.5 | G71: 10.9 | H71: 38.1 | I71: 27.2 | J71: 35.9 | K71: 100 | L71: 183.8 | M71: 192.5 | N71: 176.2 | O71: 184.9
A72: 69 | B72: 首都高5号池袋線 | C72: 中台 | D72: 都営三田線 | E72: 志村三丁目 | F72: 74 | G72: 74 | H72: 52.2 | I72: 26.1 | J72: 37 | K72: 100 | L72: 252.3 | M72: 263.2 | N72: 252.3 | O72: 263.2
A73: 70 | B73: 首都高6号三郷線 | C73: 加平 | D73: つくばエクスプレス | E73: 六町 | F73: 60.9 | G73: 43.5 | H73: 38.1 | I73: 25 | J73: 40.3 | K73: 20 | L73: 144 | M73: 159.3 | N73: 126.6 | O73: 141.9
A74: 71 | B74: 首都高K1号横羽線 | C74: 東神奈川 | D74: JR京浜東北線 | E74: 東神奈川 | F74: 46.8 | G74: 41.4 | H74: 13.1 | I74: 24 | J74: 30.5 | K74: 50 | L74: 133.9 | M74: 140.4 | N74: 128.5 | O74: 135
A75: 72 | B75: 首都高中央環状線 | C75: 千住新橋 | D75: JR常磐線 | E75: 北千住 | F75: 82.7 | G75: 71.8 | H75: 58.7 | I75: 22.9 | J75: 28.3 | K75: 100 | L75: 264.3 | M75: 269.7 | N75: 253.4 | O75: 258.8
A76: 73 | B76: 首都高5号池袋線 | C76: 板橋本町 | D76: 都営三田線 | E76: 板橋本町 | F76: 89.2 | G76: 87 | H76: 52.2 | I76: 21.8 | J76: 17.4 | K76: 20 | L76: 183.2 | M76: 178.8 | N76: 181 | O76: 176.6
A77: 74 | B77: 首都高4号新宿線 | C77: 高井戸 | D77: 京王井の頭線 | E77: 高井戸 | F77: 30.5 | G77: 92.4 | H77: 65.3 | I77: 20.7 | J77: 19.6 | K77: 50 | L77: 166.5 | M77: 165.4 | N77: 228.4 | O77: 227.3
A78: 75 | B78: 首都高3号渋谷線 | C78: 用賀 | D78: 東急田園都市線 | E78: 用賀 | F78: 56.6 | G78: 76.1 | H78: 26.1 | I78: 19.6 | J78: 7.7 | K78: 80 | L78: 182.3 | M78: 170.4 | N78: 201.8 | O78: 189.9
A79: 76 | B79: 首都高6号向島線 | C79: 向島 | D79: 東武スカイツリーライン | E79: 曳舟 | F79: 92.4 | G79: 58.7 | H79: 63.1 | I79: 18.5 | J79: 16.4 | K79: 50 | L79: 224 | M79: 221.9 | N79: 190.3 | O79: 188.2
A80: 77 | B80: 首都高5号池袋線 | C80: 北池袋 | D80: メトロ有楽町線 | E80: 要町 | F80: 79.4 | G80: 96.8 | H80: 49 | I80: 17.4 | J80: 10.9 | K80: 20 | L80: 165.8 | M80: 159.3 | N80: 183.2 | O80: 176.7
A81: 78 | B81: 首都高1号羽田線 | C81: 平和島 | D81: 京急本線 | E81: 平和島 | F81: 71.8 | G81: 65.3 | H81: 70.7 | I81: 16.4 | J81: 27.2 | K81: 20 | L81: 178.9 | M81: 189.7 | N81: 172.4 | O81: 183.2
A82: 79 | B82: 首都高4号新宿線 | C82: 永福 | D82: 京王線 | E82: 下高井戸 | F82: 44.6 | G82: 97.9 | H82: 49 | I82: 15.3 | J82: 4.4 | K82: 50 | L82: 158.9 | M82: 148 | N82: 212.2 | O82: 201.3
A83: 80 | B83: 首都高4号新宿線 | C83: 幡ヶ谷 | D83: 京王新線 | E83: 幡ヶ谷 | F83: 77.2 | G83: 99 | H83: 49 | I83: 14.2 | J83: 1.1 | K83: 80 | L83: 220.4 | M83: 207.3 | N83: 242.2 | O83: 229.1
A84: 81 | B84: 首都高1号羽田線 | C84: 羽田 | D84: 京急空港線 | E84: 穴守稲荷 | F84: 41.4 | G84: 41.4 | H84: 82.7 | I84: 13.1 | J84: 33.7 | K84: 20 | L84: 157.2 | M84: 177.8 | N84: 157.2 | O84: 177.8
A85: 82 | B85: 首都高中央環状線 | C85: 中野長者橋 | D85: メトロ丸ノ内線 | E85: 中野坂上 | F85: 83.7 | G85: 100 | H85: 49 | I85: 12 | J85: 5.5 | K85: 80 | L85: 224.7 | M85: 218.2 | N85: 241 | O85: 234.5
A86: 83 | B86: 首都高6号向島線 | C86: 駒形 | D86: 都営浅草線 | E86: 本所吾妻橋 | F86: 96.8 | G86: 72.9 | H86: 74 | I86: 10.9 | J86: 18.5 | K86: 100 | L86: 281.7 | M86: 289.3 | N86: 257.8 | O86: 265.4
A87: 84 | B87: 首都高1号羽田線 | C87: 勝島 | D87: 京急本線 | E87: 立会川 | F87: 74 | G87: 66.4 | H87: 70.7 | I87: 9.8 | J87: 20.7 | K87: 20 | L87: 174.5 | M87: 185.4 | N87: 166.9 | O87: 177.8
A88: 85 | B88: 首都高1号羽田線 | C88: 鈴ヶ森 | D88: 京急本線 | E88: 大森海岸 | F88: 51.1 | G88: 53.3 | H88: 70.7 | I88: 8.7 | J88: 12 | K88: 80 | L88: 210.5 | M88: 213.8 | N88: 212.7 | O88: 216
A89: 86 | B89: 首都高2号目黒線 | C89: 戸越 | D89: 都営浅草線 | E89: 戸越 | F89: 85.9 | G89: 89.2 | H89: 74 | I89: 7.7 | J89: 6.6 | K89: 20 | L89: 187.6 | M89: 186.5 | N89: 190.9 | O89: 189.8
A90: 87 | B90: 常磐自動車道 | C90: 柏 | D90: つくばエクスプレス | E90: 柏の葉キャンパス | F90: 12 | G90: 4.4 | H90: 38.1 | I90: 6.6 | J90: 15.3 | K90: 100 | L90: 156.7 | M90: 165.4 | N90: 149.1 | O90: 157.8
A91: 88 | B91: 首都高9号深川線 | C91: 木場 | D91: メトロ東西線 | E91: 木場 | F91: 97.9 | G91: 80.5 | H91: 3.3 | I91: 5.5 | J91: 8.7 | K91: 80 | L91: 186.7 | M91: 189.9 | N91: 169.3 | O91: 172.5
A92: 89 | B92: 首都高3号渋谷線 | C92: 三軒茶屋 | D92: 東急田園都市線 | E92: 三軒茶屋 | F92: 79.4 | G92: 93.5 | H92: 26.1 | I92: 4.4 | J92: 2.2 | K92: 50 | L92: 159.9 | M92: 157.7 | N92: 174 | O92: 171.8
A93: 90 | B93: 首都高7号小松川線 | C93: 錦糸町 | D93: 都営新宿線 | E93: 住吉 | F93: 99 | G93: 90.3 | H93: 57.7 | I93: 3.3 | J93: 21.8 | K93: 50 | L93: 210 | M93: 228.5 | N93: 201.3 | O93: 219.8
A94: 91 | B94: 首都高7号小松川線 | C94: 錦糸町 | D94: JR総武線 | E94: 錦糸町 | F94: 95.7 | G94: 92.4 | H94: 30.5 | I94: 2.2 | J94: 9.8 | K94: 100 | L94: 228.4 | M94: 236 | N94: 225.1 | O94: 232.7
A95: 92 | B95: 首都高9号深川線 | C95: 福住 | D95: メトロ東西線 | E95: 門前仲町 | F95: 100 | G95: 85.9 | H95: 3.3 | I95: 1.1 | J95: 3.3 | K95: 50 | L95: 154.4 | M95: 156.6 | N95: 140.3 | O95: 142.5
A96: 93 | B96: 首都高3号渋谷線 | C96: 池尻 | D96: 東急田園都市線 | E96: 池尻大橋 | F96: 81.6 | G96: 95.7 | H96: 26.1 | I96: 0 | J96: 0 | K96: 20 | L96: 127.7 | M96: 127.7 | N96: 141.8 | O96: 141.8

Sheet Sheet2 (hidden)
A4: IC | B4: 施設名 | C4: 接続路線名 | D4: 起点から | E4: BS | F4: 備考 | G4: 所在地
A5: 番号 | D5: (km)
A6: Shuto Urban Expwy Sign B.svg 首都高速湾岸線
A7: 1 | C7: C3 東京外環自動車道 | D7: 0 | F7: 東京外環道のJCT番号は「92」 | G7: 千葉県 | H7: 市川市
A8: 1900-01-02 | B8: 湾岸市川IC | C8: 国道357号 | D8: 1 | F8: 成田方面出入口
A9: 2020-02-01 | B9: 谷津船橋IC | C9: 国道357号 | D9: 5.5 | F9: 東京方面出入口 | H9: 習志野市
C10: 県道15号千葉船橋海浜線
A11: 1900-01-03 | B11: 湾岸習志野IC | C11: 国道357号 | D11: 7.9 | F11: 東京方面出入口
A12: - | C12: 本線料金所 | D12: 8.4 | F12: 通称“習志野バリア”
A13: - | C13: - | D13: 8.7 | H13: 千葉市美浜区
A14: 4 | B14: 湾岸千葉IC | C14: 国道357号 | D14: 11.6 | F14: 成田方面出入口
A15: 5 | C15: E14 京葉道路 | D15: 16.7 | F15: 東京方面からは東金・館山方面のみ接続。 | H15: 千葉市稲毛区
F16: 京葉道路のJCT番号は「7-1」[5]
